{"text_format":"2","workbook":"xlsx","n_sheets":6,"sheets":["Planilha_orçamentária","RESUMO - CIVIL","RESUMO - MONTAGEM HIDRO","RESUMO - FORNEC HIDRO","AUXILIAR","PLAN1"],"not_rendered":{"charts":0,"images":0,"macros":0,"external_links":1,"defined_names":326,"comments":0,"pivot_tables":0},"unopened":[],"bounds":{"document_bytes":16777216,"sheet_cells":100000,"run_cost":"one","rows_first":2000,"rows_last":500,"rows_between":2000,"halvings":0,"cell_chars":16384,"cell_head_chars":4096},"cells_cut":0,"cells_raw":0,"read":"whole","date_system":"1900"}

{"sheet":"Planilha_orçamentária","index":0,"n_rows":71,"n_cols":10,"rows_kept":71,"cut":false,"hidden":false,"merged":[[70,7,70,9],[0,1,0,9],[2,1,2,4],[51,1,51,4],[55,1,55,4],[63,1,63,4],[58,1,58,4],[60,1,60,4],[1,7,2,7],[1,9,2,9]]}
[null,"LOTE II"]
[null,"ITEM","DESCRIÇÃO","UNID.","QUANTID.",null,null,"PREÇO UNITÁRIO ADOTADO",null,"PREÇO TOTAL ADOTADO"]
[null,"TOMADAS D'ÁGUA − CANAL PRINCIPAL − TRECHO \"E\" (TA-25 ATÉ TA-49, TRS-21)"]
[null,null,"TOMADA D' ÁGUA TA-25"]
[null,"1.0","COMPORTA PLANA CIRCULAR, EM FERRO DUCTIL, DN=400 MM, COMPLETA C/QUADRO DE VEDAÇÃO, PEÇAS FIXAS, HASTE, MANCAIS E PEDESTAL DE MANOBRA E ALTURA DO CENTRO DA COMPORTA Á BASE DO PEDESTAL DE 2,00M. (TA-25)","un",1,null,null,14488,null,{"$f":"H5*E5","v":14488}]
[null,null,"TOMADA D' ÁGUA TA-26"]
[null,"2.0","COMPORTA PLANA CIRCULAR, EM FERRO DUCTIL, DN=500 MM, COMPLETA C/QUADRO DE VEDAÇÃO, PEÇAS FIXAS, HASTE, MANCAIS E PEDESTAL DE MANOBRA E ALTURA DO CENTRO DA COMPORTA Á BASE DO PEDESTAL DE 1,95M. (TA-26)","un",1,null,null,18130,null,{"$f":"H7*E7","v":18130}]
[null,null,"TOMADA D' ÁGUA TA-28"]
[null,"3.0","COMPORTA PLANA CIRCULAR, EM FERRO DUCTIL, DN=300 MM, MOTORIZADA, COMPLETA  C/QUADRO DE VEDAÇÃO, PEÇAS FIXAS, HASTE, MANCAIS, PEDESTAL E ATUADOR ELETRICO E ALTURA DO CENTRO DA COMPORTA Á BASE DO PEDESTAL DE 1,95M. (TA-28)","un",1,null,null,27625,null,27625]
[null,null,"TOMADA D' ÁGUA TA-29"]
[null,"4.0","COMPORTA PLANA CIRCULAR, EM FERRO DUCTIL, DN=400 MM, COMPLETA C/QUADRO DE VEDAÇÃO, PEÇAS FIXAS, HASTE, MANCAIS E PEDESTAL DE MANOBRA E ALTURA DO CENTRO DA COMPORTA Á BASE DO PEDESTAL DE 1,99M. (TA-29)","un",1,null,null,14484,null,14484]
[null,null,"TOMADA D' ÁGUA TA-30"]
[null,"5.0","COMPORTA PLANA CIRCULAR, EM FERRO DUCTIL, DN=200 MM, MOTORIZADA, COMPLETA  C/QUADRO DE VEDAÇÃO, PEÇAS FIXAS, HASTE, MANCAIS, PEDESTAL E ATUADOR ELETRICO E ALTURA DO CENTRO DA COMPORTA Á BASE DO PEDESTAL DE 2,00M. (TA-30)","un",1,null,null,25089,null,25089]
[null,null,"TOMADA D' ÁGUA TA-31"]
[null,"6.0","COMPORTA PLANA CIRCULAR, EM FERRO DUCTIL, DN=500 MM, COMPLETA C/QUADRO DE VEDAÇÃO, PEÇAS FIXAS, HASTE, MANCAIS E PEDESTAL DE MANOBRA E ALTURA DO CENTRO DA COMPORTA Á BASE DO PEDESTAL DE 2,02M. (TA-31)","un",1,null,null,18151,null,18151]
[null,null,"TOMADA D' ÁGUA TA-32"]
[null,"7.0","COMPORTA PLANA CIRCULAR, EM FERRO DUCTIL, DN=300 MM, MOTORIZADA, COMPLETA  C/QUADRO DE VEDAÇÃO, PEÇAS FIXAS, HASTE, MANCAIS, PEDESTAL E ATUADOR ELETRICO E ALTURA DO CENTRO DA COMPORTA Á BASE DO PEDESTAL DE 1,95M. (TA-32)","un",1,null,null,27625,null,27625]
[null,null,"TOMADA D' ÁGUA TA-33"]
[null,"8.0","COMPORTA PLANA CIRCULAR, EM FERRO DUCTIL, DN=300 MM, MOTORIZADA, COMPLETA  C/QUADRO DE VEDAÇÃO, PEÇAS FIXAS, HASTE, MANCAIS, PEDESTAL E ATUADOR ELETRICO E ALTURA DO CENTRO DA COMPORTA Á BASE DO PEDESTAL DE 1,95M. (TA-33)","un",1,null,null,27625,null,27625]
[null,null,"TOMADA D' ÁGUA TA-34"]
[null,"9.0","COMPORTA PLANA CIRCULAR, EM FERRO DUCTIL, DN=300 MM, MOTORIZADA, COMPLETA  C/QUADRO DE VEDAÇÃO, PEÇAS FIXAS, HASTE, MANCAIS, PEDESTAL E ATUADOR ELETRICO E ALTURA DO CENTRO DA COMPORTA Á BASE DO PEDESTAL DE 1,95M. (TA-34)","un",1,null,null,27625,null,27625]
[null,null,"TOMADA D' ÁGUA TA-35"]
[null,"10.0","COMPORTA PLANA CIRCULAR, EM FERRO DUCTIL, DN=300 MM, MOTORIZADA, COMPLETA  C/QUADRO DE VEDAÇÃO, PEÇAS FIXAS, HASTE, MANCAIS, PEDESTAL E ATUADOR ELETRICO E ALTURA DO CENTRO DA COMPORTA Á BASE DO PEDESTAL DE 1,95M. (TA-35)","un",1,null,null,27625,null,27625]
[null,null,"TOMADA D' ÁGUA TA-36"]
[null,"11.0","COMPORTA PLANA CIRCULAR, EM FERRO DUCTIL, DN=300 MM, MOTORIZADA, COMPLETA  C/QUADRO DE VEDAÇÃO, PEÇAS FIXAS, HASTE, MANCAIS, PEDESTAL E ATUADOR ELETRICO E ALTURA DO CENTRO DA COMPORTA Á BASE DO PEDESTAL DE 2,29M. (TA-36)","un",1,null,null,27726,null,27726]
[null,null,"TOMADA D' ÁGUA TA-37"]
[null,"12.0","COMPORTA PLANA CIRCULAR, EM FERRO DUCTIL, DN=300 MM, MOTORIZADA, COMPLETA C/QUADRO DE VEDAÇÃO, PEÇAS FIXAS, HASTE, MANCAIS, PEDESTAL E ATUADOR ELETRICO E ALTURA DO CENTRO DA COMPORTA Á BASE DO PEDESTAL DE 1,95M. (TA-37)","un",1,null,null,27625,null,27625]
[null,null,"TOMADA D' ÁGUA TA-38"]
[null,"13.0","COMPORTA PLANA CIRCULAR, EM FERRO DUCTIL, DN=300 MM, MOTORIZADA, COMPLETA  C/QUADRO DE VEDAÇÃO, PEÇAS FIXAS, HASTE, MANCAIS, PEDESTAL E ATUADOR ELETRICO E ALTURA DO CENTRO DA COMPORTA Á BASE DO PEDESTAL DE 1,95M. (TA-38)","un",1,null,null,27625,null,27625]
[null,null,"TOMADA D' ÁGUA TA-39"]
[null,"14.0","COMPORTA PLANA CIRCULAR, EM FERRO DUCTIL, DN=200 MM, MOTORIZADA, COMPLETA  C/QUADRO DE VEDAÇÃO, PEÇAS FIXAS, HASTE, MANCAIS, PEDESTAL E ATUADOR ELETRICO E ALTURA DO CENTRO DA COMPORTA Á BASE DO PEDESTAL DE 2,02M. (TA-39)","un",1,null,null,25095,null,25095]
[null,null,"TOMADA D' ÁGUA TA-41"]
[null,"15.0","COMPORTA PLANA CIRCULAR, EM FERRO DUCTIL, DN=300 MM, MOTORIZADA, COMPLETA  C/QUADRO DE VEDAÇÃO, PEÇAS FIXAS, HASTE, MANCAIS, PEDESTAL E ATUADOR ELETRICO E ALTURA DO CENTRO DA COMPORTA Á BASE DO PEDESTAL DE 1,58M.(TA-41)","un",1,null,null,27517,null,27517]
[null,null,"TOMADA D' ÁGUA TA-42"]
[null,"16.0","COMPORTA PLANA CIRCULAR, EM FERRO DUCTIL, DN=500 MM, COMPLETA C/QUADRO DE VEDAÇÃO, PEÇAS FIXAS, HASTE, MANCAIS E PEDESTAL DE MANOBRA E ALTURA DO CENTRO DA COMPORTA Á BASE DO PEDESTAL DE 1,60M. (TA-42)","un",1,null,null,18025,null,18025]
[null,null,"TOMADA D' ÁGUA TA-43"]
[null,"17.0","COMPORTA PLANA CIRCULAR,EM FERRO DUCTIL, DN=300 MM, MOTORIZADA, COMPLETA  C/QUADRO DE VEDAÇÃO, PEÇAS FIXAS, HASTE, MANCAIS, PEDESTAL E ATUADOR ELETRICO E ALTURA DO CENTRO DA COMPORTA Á BASE DO PEDESTAL DE 1,32M. (TA-43)","un",1,null,null,27442,null,27442]
[null,null,"TOMADA D' ÁGUA TA-44"]
[null,"18.0","COMPORTA PLANA CIRCULAR, EM FERRO DUCTIL, DN=300 MM, MOTORIZADA, COMPLETA  C/QUADRO DE VEDAÇÃO, PEÇAS FIXAS, HASTE, MANCAIS, PEDESTAL E ATUADOR ELETRICO E ALTURA DO CENTRO DA COMPORTA Á BASE DO PEDESTAL DE 1,35M. (TA-44)","un",1,null,null,27450,null,27450]
[null,null,"TOMADA D' ÁGUA TA-45"]
[null,"19.0","COMPORTA PLANA CIRCULAR, EM FERRO DUCTIL, DN=300 MM, MOTORIZADA, COMPLETA  C/QUADRO DE VEDAÇÃO, PEÇAS FIXAS, HASTE, MANCAIS, PEDESTAL E ATUADOR ELETRICO E ALTURA DO CENTRO DA COMPORTA Á BASE DO PEDESTAL DE 1,40M. (TA-45)","un",1,null,null,27465,null,27465]
[null,null,"TOMADA D' ÁGUA TA-46"]
[null,"20.0","COMPORTA PLANA CIRCULAR, EM FERRO DUCTIL, DN=300 MM, MOTORIZADA, COMPLETA  C/QUADRO DE VEDAÇÃO, PEÇAS FIXAS, HASTE, MANCAIS, PEDESTAL E ATUADOR ELETRICO E ALTURA DO CENTRO DA COMPORTA Á BASE DO PEDESTAL DE 2,01M. (TA-46)","un",1,null,null,27644,null,27644]
[null,null,"TOMADA D' ÁGUA TA-47"]
[null,"21.0","COMPORTA PLANA CIRCULAR, EM FERRO DUCTIL, DN=300 MM, MOTORIZADA, COMPLETA  C/QUADRO DE VEDAÇÃO, PEÇAS FIXAS, HASTE, MANCAIS, PEDESTAL E ATUADOR ELETRICO E ALTURA DO CENTRO DA COMPORTA Á BASE DO PEDESTAL DE 1,66M. (TA-47)","un",1,null,null,27540,null,27540]
[null,null,"TOMADA D' ÁGUA TA-48"]
[null,"22.0","COMPORTA PLANA CIRCULAR, EM FERRO DUCTIL, DN=400 MM, MOTORIZADA, COMPLETA  C/QUADRO DE VEDAÇÃO, PEÇAS FIXAS, HASTE, MANCAIS, PEDESTAL E ATUADOR ELETRICO E ALTURA DO CENTRO DA COMPORTA Á BASE DO PEDESTAL DE 1,61M. (TA-48)","un",1,null,null,28484,null,28484]
[null,null,"TOMADA D' ÁGUA TA-49"]
[null,"23.0","COMPORTA PLANA CIRCULAR, EM FERRO DUCTIL, DN=600 MM, MOTORIZADA, COMPLETA  C/QUADRO DE VEDAÇÃO, PEÇAS FIXAS, HASTE, MANCAIS, PEDESTAL E ATUADOR ELETRICO E ALTURA DO CENTRO DA COMPORTA Á BASE DO PEDESTAL DE 2,16M. (TA-49)","un",1,null,null,43569,null,43569]
[null,null,"TOMADA D' ÁGUA TRS-21"]
[null,"24.0","COMPORTA PLANA CIRCULAR, EM FERRO DUCTIL, DN=700 MM, MOTORIZADA, COMPLETA  C/QUADRO DE VEDAÇÃO, PEÇAS FIXAS, HASTE, MANCAIS, PEDESTAL E ATUADOR ELETRICO E ALTURA DO CENTRO DA COMPORTA Á BASE DO PEDESTAL DE 3,41M. (TRS-21)","un",1,null,null,50878,null,50878]
[null,"TOMADAS D'ÁGUA − CANAL SECUNDÁRIO − CS02 (TS-32,TS-33 e TS-34)"]
[null,"25.0","COMPORTA PLANA CIRCULAR, EM FERRO DUCTIL, DN=400 MM, COMPLETA C/QUADRO DE VEDAÇÃO, PEÇAS FIXAS, HASTE, MANCAIS E PEDESTAL DE MANOBRA E ALTURA DO CENTRO DA COMPORTA Á BASE DO PEDESTAL DE 1,60M. (TS-32)","un",1,null,null,14371,null,14371]
[null,"26.0","COMPORTA PLANA CIRCULAR, EM FERRO DUCTIL, DN=400 MM, COMPLETA C/QUADRO DE VEDAÇÃO, PEÇAS FIXAS, HASTE, MANCAIS E PEDESTAL DE MANOBRA E ALTURA DO CENTRO DA COMPORTA Á BASE DO PEDESTAL DE 1,79M. (TS-33)","un",1,null,null,14428,null,14428]
[null,"27.0","COMPORTA PLANA CIRCULAR, EM FERRO DUCTIL, DN=900 MM, COMPLETA C/QUADRO DE VEDAÇÃO, PEÇAS FIXAS, HASTE, MANCAIS E PEDESTAL DE MANOBRA E ALTURA DO CENTRO DA COMPORTA Á BASE DO PEDESTAL DE 2,00M. (TS-34)","un",1,null,null,45798,null,45798]
[null,"TOMADAS D'ÁGUA − CANAL SECUNDÁRIO − CS03 (TS-21,TS-22 e TS-22a)"]
[null,"28.0","COMPORTA PLANA CIRCULAR, EM FERRO DUCTIL, DN=700 MM, MOTORIZADA, COMPLETA  C/QUADRO DE VEDAÇÃO, PEÇAS FIXAS, HASTE, MANCAIS, PEDESTAL E ATUADOR ELETRICO E ALTURA DO CENTRO DA COMPORTA Á BASE DO PEDESTAL DE 1,78M. (TS-22a)","un",1,null,null,50210,null,50210]
[null,"29.0","COMPORTA PLANA CIRCULAR, EM FERRO DUCTIL, DN=300 MM, MOTORIZADA, COMPLETA  C/QUADRO DE VEDAÇÃO, PEÇAS FIXAS, HASTE, MANCAIS, PEDESTAL E ATUADOR ELETRICO E ALTURA DO CENTRO DA COMPORTA Á BASE DO PEDESTAL DE 1,28M. (TS-21/ TS-22)","un",2,null,null,27071.185000000001,null,54142.37]
[null,"TOMADA D'ÁGUA TA51 DO CANAL PRINCIPAL − TRECHO \"F\""]
[null,"30.0","COMPORTA PLANA CIRCULAR, EM FERRO DUCTIL, DN=200 MM, MOTORIZADA, COMPLETA  C/QUADRO DE VEDAÇÃO, PEÇAS FIXAS, HASTE, MANCAIS, PEDESTAL E ATUADOR ELETRICO E ALTURA DO CENTRO DA COMPORTA Á BASE DO PEDESTAL DE 1,81M.","un",1,null,null,25032,null,25032]
[null,"TOMADAS D'ÁGUA TA52 E TA53 DO CANAL/RESERVATÓRIO RS-25"]
[null,"31.0","COMPORTA PLANA CIRCULAR, EM FERRO DUCTIL, DN=700 MM, MOTORIZADA, COMPLETA  C/QUADRO DE VEDAÇÃO, PEÇAS FIXAS, HASTE, MANCAIS, PEDESTAL E ATUADOR ELETRICO E ALTURA DO CENTRO DA COMPORTA Á BASE DO PEDESTAL DE 2,60M (TA-52)","un",1,null,null,50546,null,50546]
[null,"32.0","COMPORTA PLANA CIRCULAR, EM FERRO DUCTIL, DN=800 MM, MOTORIZADA, COMPLETA  C/QUADRO DE VEDAÇÃO, PEÇAS FIXAS, HASTE, MANCAIS, PEDESTAL E ATUADOR ELETRICO E ALTURA DO CENTRO DA COMPORTA Á BASE DO PEDESTAL DE 2,85M. (TA-53)","un",1,null,null,53810,null,53810]
[null,"TOMADAS D'ÁGUA − CANAL SECUNDÁRIO − CS-04 (TS-45, TS-46, TS-47, TS-48 e TS-48a)"]
[null,"33.0","COMPORTA PLANA CIRCULAR, EM FERRO DUCTIL, DN=400 MM, MOTORIZADA, COMPLETA  C/QUADRO DE VEDAÇÃO, PEÇAS FIXAS, HASTE, MANCAIS, PEDESTAL E ATUADOR ELETRICO E ALTURA DO CENTRO DA COMPORTA Á BASE DO PEDESTAL DE 1,90M. (TS-48a)","un",1,null,null,28569,null,28569]
[null,"34.0","COMPORTA PLANA CIRCULAR, EM FERRO DUCTIL, DN=300 MM, MOTORIZADA, COMPLETA  C/QUADRO DE VEDAÇÃO, PEÇAS FIXAS, HASTE, MANCAIS, PEDESTAL E ATUADOR ELETRICO E ALTURA DO CENTRO DA COMPORTA Á BASE DO PEDESTAL DE 1,44M. (TS-45)","un",1,null,null,27477,null,27477]
[null,"35.0","COMPORTA PLANA CIRCULAR, EM FERRO DUCTIL, DN=300 MM, MOTORIZADA, COMPLETA  C/QUADRO DE VEDAÇÃO, PEÇAS FIXAS, HASTE, MANCAIS, PEDESTAL E ATUADOR ELETRICO E ALTURA DO CENTRO DA COMPORTA Á BASE DO PEDESTAL DE 1,61M. (TS-46)","un",1,null,null,26899,null,26899]
[null,"36.0","COMPORTA PLANA CIRCULAR, EM FERRO DUCTIL, DN=300 MM, MOTORIZADA, COMPLETA  C/QUADRO DE VEDAÇÃO, PEÇAS FIXAS, HASTE, MANCAIS, PEDESTAL E ATUADOR ELETRICO E ALTURA DO CENTRO DA COMPORTA Á BASE DO PEDESTAL DE 1,74M. (TS-47)","un",1,null,null,27565,null,{"$f":"H68*E68","v":27565}]
[null,"37.0","COMPORTA PLANA CIRCULAR, EM FERRO DUCTIL, DN=300 MM, MOTORIZADA, COMPLETA  C/QUADRO DE VEDAÇÃO, PEÇAS FIXAS, HASTE, MANCAIS, PEDESTAL E ATUADOR ELETRICO E ALTURA DO CENTRO DA COMPORTA Á BASE DO PEDESTAL DE 1,42M. (TS-48)","un",1,null,null,27471,null,27471]
[]
[{"$nulls":7},{"$f":"SUM(J5:J69)","v":1088870.3700000001}]

{"sheet":"RESUMO - CIVIL","index":1,"n_rows":44,"n_cols":17,"rows_kept":44,"cut":false,"hidden":true,"merged":[[0,0,0,11],[40,10,40,11],[42,10,42,11]]}
["ORÇAMENTO DO PROJETO PONTAL - ÁREA NORTE                                                                               RESUMO - OBRAS CIVIS"]
["ITEM","CÓDIGO","FONTE","DESCRIÇÃO NOVA(SINAPI/SICRO/COMPOSIÇÃO)","DESCRIÇÃO ANTIGA(projeto)","UNID.","QUANTID. M20","QUANTID. M23","QUANTID. TOTAL","PREÇO UNIT. S/BDI","PREÇO UNIT. C/BDI","PREÇO TOTAL",null,"BDI = ",1.18]
[1,"OBRAS CIVIS"]
["1.1.1","74254/001","SINAPI","ARMACAO ACO CA-50 DIAM.16,0 (5/8) À 25,0MM (1) - FORNECIMENTO/ CORTE(PERDA DE 10%) / DOBRA / COLOCAÇÃO.  ",null,"kg",{"$f":"SUMIF(#REF!,'RESUMO - CIVIL'!B4,#REF!)","v":{"$error":"#REF!"}},{"$f":"SUMIF(#REF!,'RESUMO - CIVIL'!B4,#REF!)","v":{"$error":"#REF!"}},{"$f":"G4+H4","v":{"$error":"#REF!"}},5.72,{"$f":"J4*$O$2","v":6.7495999999999992},{"$f":"K4*I4","v":{"$error":"#REF!"}},null,{"$f":"K4*G4","v":{"$error":"#REF!"}},{"$f":"K4*H4","v":{"$error":"#REF!"}}]
["1.1.1","74254/002","SINAPI","ARMACAO ACO CA-50, DIAM. 6,3 (1/4) À 12,5MM(1/2) -FORNECIMENTO/ CORTE (PERDA DE 10%) / DOBRA / COLOCAÇÃO.  ",null,"kg",{"$f":"SUMIF(#REF!,'RESUMO - CIVIL'!B5,#REF!)","v":{"$error":"#REF!"}},{"$f":"SUMIF(#REF!,'RESUMO - CIVIL'!B5,#REF!)","v":{"$error":"#REF!"}},{"$f":"G5+H5","v":{"$error":"#REF!"}},6.41,{"$f":"J5*$O$2","v":7.5637999999999996},{"$f":"K5*I5","v":{"$error":"#REF!"}},null,{"$f":"K5*G5","v":{"$error":"#REF!"}},{"$f":"K5*H5","v":{"$error":"#REF!"}}]
["1.1.2","73998/006","SINAPI","ALVENARIA DE BLOCOS DE CONCRETO ESTRUTURAL 19X19X39CM, ESPESSURA 19CM, ASSENTADOS COM ARGAMASSA TRACO 1:0,25:4 (CIMENTO, CAL E AREIA)","ALVENARIA DE BLOCOS DE CONCRETO - 19x19x39cm","m²",{"$f":"SUMIF(#REF!,'RESUMO - CIVIL'!B6,#REF!)","v":{"$error":"#REF!"}},{"$f":"SUMIF(#REF!,'RESUMO - CIVIL'!B6,#REF!)","v":{"$error":"#REF!"}},{"$error":"#REF!"},59.26,69.9268,{"$error":"#REF!"},null,{"$error":"#REF!"},{"$error":"#REF!"}]
["1.1.4",73468,"SINAPI","ARGAMASSA CIMENTO/AREIA 1:3 - PREPARO MECANICO","ARGAMASSA DE CIMENTO AREIA 1:3","m³",{"$f":"SUMIF(#REF!,'RESUMO - CIVIL'!B7,#REF!)","v":{"$error":"#REF!"}},{"$f":"SUMIF(#REF!,'RESUMO - CIVIL'!B7,#REF!)","v":{"$error":"#REF!"}},{"$error":"#REF!"},339.42,400.51560000000001,{"$error":"#REF!"},null,{"$error":"#REF!"},{"$error":"#REF!"}]
["1.1.5","C.P.U.001",null,"ATERRO COMPACTADO MECANICAMICAMENTE EM CAMADAS DE 20CM, C/CONT., MAT. JAZIDA, C/T ATE 1000 m - 95% PN","ATERRO COMPACTADO MECANICAM., C/CONT., MAT. JAZIDA, C/T ATE 1000 m - 95% PN","m³",{"$f":"SUMIF(#REF!,'RESUMO - CIVIL'!B8,#REF!)","v":{"$error":"#REF!"}},{"$f":"SUMIF(#REF!,'RESUMO - CIVIL'!B8,#REF!)","v":{"$error":"#REF!"}},{"$error":"#REF!"},{"$f":"#REF!","v":{"$error":"#REF!"}},{"$error":"#REF!"},{"$error":"#REF!"},null,{"$error":"#REF!"},{"$error":"#REF!"}]
["1.1.9","74199/001","SINAPI","CHAPISCO RUSTICO TRACO 1:3 (CIMENTO E AREIA), ESPESSURA 2CM, PREPARO MANUAL","CHAPISCO","m²",{"$f":"SUMIF(#REF!,'RESUMO - CIVIL'!B9,#REF!)","v":{"$error":"#REF!"}},{"$f":"SUMIF(#REF!,'RESUMO - CIVIL'!B9,#REF!)","v":{"$error":"#REF!"}},{"$error":"#REF!"},23.62,27.871600000000001,{"$error":"#REF!"},null,{"$error":"#REF!"},{"$error":"#REF!"}]
["1.1.10",73685,"SINAPI","CIMBRAMENTO DE MADEIRA","CIMBRAMENTO","m³",{"$f":"SUMIF(#REF!,'RESUMO - CIVIL'!B10,#REF!)","v":{"$error":"#REF!"}},{"$f":"SUMIF(#REF!,'RESUMO - CIVIL'!B10,#REF!)","v":{"$error":"#REF!"}},{"$error":"#REF!"},25.95,30.620999999999999,{"$error":"#REF!"},null,{"$error":"#REF!"},{"$error":"#REF!"}]
["1.1.11",73634,"SINAPI","COBERTURA COM TELHA DE FIBROCIMENTO ESTRUTURAL LARGURA ÚTIL 49CM OU 44CM, INCLUSO ACESSÓRIOS DE FIXAÇÃO E VEDAÇÃO","COBERTURA CIMENTO AMIANTO TIPO CANALETE C/ENGRADAM., ACESSÓRIOS","m²",{"$f":"SUMIF(#REF!,'RESUMO - CIVIL'!B11,#REF!)","v":{"$error":"#REF!"}},{"$f":"SUMIF(#REF!,'RESUMO - CIVIL'!B11,#REF!)","v":{"$error":"#REF!"}},{"$error":"#REF!"},86.95,102.601,{"$error":"#REF!"},null,{"$error":"#REF!"},{"$error":"#REF!"}]
["1.1.12",6105,"SINAPI","PREPARO MECANICO E LANÇAMENTO MANUAL DE CONCRETO CICLÓPICO 1:3:5, COM 30% DE PEDRA DE MÃO, CAVAS ATÉ 80CM DE LARGURA.","CONCRETO CICLÓPICO","m³",{"$f":"SUMIF(#REF!,'RESUMO - CIVIL'!B12,#REF!)","v":{"$error":"#REF!"}},{"$f":"SUMIF(#REF!,'RESUMO - CIVIL'!B12,#REF!)","v":{"$error":"#REF!"}},{"$error":"#REF!"},249.14,293.98519999999996,{"$error":"#REF!"},null,{"$error":"#REF!"},{"$error":"#REF!"}]
["1.1.13","2S0332600","SICRO","CONCRETO ESTRUTURAL FCK=20 MPA-CONTR.RAZ.USO GER.CONF.E LANÇ","CONCRETO ESTRUTURAL FCK=>20 MPa","m³",{"$f":"SUMIF(#REF!,'RESUMO - CIVIL'!B13,#REF!)","v":{"$error":"#REF!"}},{"$f":"SUMIF(#REF!,'RESUMO - CIVIL'!B13,#REF!)","v":{"$error":"#REF!"}},{"$error":"#REF!"},292.8,345.50400000000002,{"$error":"#REF!"},null,{"$error":"#REF!"},{"$error":"#REF!"}]
["1.1.14","73936/011 ","SINAPI","CONCRETO 1:4:8, CONCRETO MAGRO, C/ BRITA 1 E 2, C/BETONEIRA","CONCRETO SIMPLES FCK=>11 MPa","m³",{"$f":"SUMIF(#REF!,'RESUMO - CIVIL'!B14,#REF!)","v":{"$error":"#REF!"}},{"$f":"SUMIF(#REF!,'RESUMO - CIVIL'!B14,#REF!)","v":{"$error":"#REF!"}},{"$error":"#REF!"},252.89,298.41019999999997,{"$error":"#REF!"},null,{"$error":"#REF!"},{"$error":"#REF!"}]
["1.1.15","73859/001 ","SINAPI","DESMATAMENTO/LIMPEZA TERRENOS C/EQUIP MECAN(TRATOR:1000M2/H)","DESMATAMENTO, DESTOCAMENTO E LIMPEZA DO TERRENO - ESP=50CM","m²",{"$f":"SUMIF(#REF!,'RESUMO - CIVIL'!B15,#REF!)","v":{"$error":"#REF!"}},{"$f":"SUMIF(#REF!,'RESUMO - CIVIL'!B15,#REF!)","v":{"$error":"#REF!"}},{"$error":"#REF!"},0.21,0.24779999999999996,{"$error":"#REF!"},null,{"$error":"#REF!"},{"$error":"#REF!"}]
["1.1.16","C.P.U.003",null,"DRENO DE BRITA MEDINDO 50CMX50CMX50CM ","DRENO DE BRITA","un",{"$f":"SUMIF(#REF!,'RESUMO - CIVIL'!B16,#REF!)","v":{"$error":"#REF!"}},{"$f":"SUMIF(#REF!,'RESUMO - CIVIL'!B16,#REF!)","v":{"$error":"#REF!"}},{"$error":"#REF!"},{"$f":"#REF!","v":{"$error":"#REF!"}},{"$error":"#REF!"},{"$error":"#REF!"},null,{"$error":"#REF!"},{"$error":"#REF!"}]
["1.1.18","C.P.U.020",null,"ESCADA TIPO MARINHEIRO COM MONTANTES EM CHAPA 3/8\" (9,53MM) E DEGRAUS EM TUBO DE AÇO 1 1/2\" COM LARGURA DE 45CM E DISTANCIA EIXO A EIXO DE 30CM","ESCADA DE MARINHEIRO","m",{"$f":"SUMIF(#REF!,'RESUMO - CIVIL'!B17,#REF!)","v":{"$error":"#REF!"}},{"$f":"SUMIF(#REF!,'RESUMO - CIVIL'!B17,#REF!)","v":{"$error":"#REF!"}},{"$error":"#REF!"},{"$f":"#REF!","v":{"$error":"#REF!"}},{"$error":"#REF!"},{"$error":"#REF!"},null,{"$error":"#REF!"},{"$error":"#REF!"}]
["1.1.21","2 S 01 100 22","SICRO","ESC. MEC. CARGA TRANSP. MAT 1ª CAT DMT 50 A 200M C/E","ESCAVAÇÃO MAT. DE 1A, C/T ATE 200m","m³",{"$f":"SUMIF(#REF!,'RESUMO - CIVIL'!B18,#REF!)","v":{"$error":"#REF!"}},{"$f":"SUMIF(#REF!,'RESUMO - CIVIL'!B18,#REF!)","v":{"$error":"#REF!"}},{"$error":"#REF!"},4.1500000000000004,4.8970000000000002,{"$error":"#REF!"},null,{"$error":"#REF!"},{"$error":"#REF!"}]
["1.1.22","2 S 01 101 26","SICRO","ESC. MEC. CARGA TRANSP. MAT 2A CAT DMT 800 A 1000M C/E","ESCAVAÇÃO MAT. DE 2A C/T ATE 1000m","m³",{"$f":"SUMIF(#REF!,'RESUMO - CIVIL'!B19,#REF!)","v":{"$error":"#REF!"}},{"$f":"SUMIF(#REF!,'RESUMO - CIVIL'!B19,#REF!)","v":{"$error":"#REF!"}},{"$error":"#REF!"},7.5,8.85,{"$error":"#REF!"},null,{"$error":"#REF!"},{"$error":"#REF!"}]
["1.1.23","2 S 01 102 06","SICRO","ESC. MEC. CARGA TRANSP. MAT 3A CAT DMT 800 A 1000M","ESCAVAÇÃO MAT. DE 3A C/T ATE 1000m","m³",{"$f":"SUMIF(#REF!,'RESUMO - CIVIL'!B20,#REF!)","v":{"$error":"#REF!"}},{"$f":"SUMIF(#REF!,'RESUMO - CIVIL'!B20,#REF!)","v":{"$error":"#REF!"}},{"$error":"#REF!"},22.6,26.667999999999999,{"$error":"#REF!"},null,{"$error":"#REF!"},{"$error":"#REF!"}]
["1.1.25","C.P.U.005",null,"ESCAV MEC.VALA N ESCORADA,  MAT 1A, PROF. DE 1,5 A 3M, C/T ATE 200m","ESCAVAÇÃO VALA, MAT. DE 1A, PROF. 2-3m, C/T ATE 200m","m³",{"$f":"SUMIF(#REF!,'RESUMO - CIVIL'!B21,#REF!)","v":{"$error":"#REF!"}},{"$f":"SUMIF(#REF!,'RESUMO - CIVIL'!B21,#REF!)","v":{"$error":"#REF!"}},{"$error":"#REF!"},{"$f":"#REF!","v":{"$error":"#REF!"}},{"$error":"#REF!"},{"$error":"#REF!"},null,{"$error":"#REF!"},{"$error":"#REF!"}]
["1.1.26","C.P.U.006",null,"ESCAV MEC.VALA N ESCORADA,  MAT 1A, PROF. ATE 1,5M, C/T ATE 200m","ESCAVAÇÃO VALA, MAT. DE 1A, PROF. ATE 1m, C/T ATE 200m","m³",{"$f":"SUMIF(#REF!,'RESUMO - CIVIL'!B22,#REF!)","v":{"$error":"#REF!"}},{"$f":"SUMIF(#REF!,'RESUMO - CIVIL'!B22,#REF!)","v":{"$error":"#REF!"}},{"$error":"#REF!"},{"$f":"#REF!","v":{"$error":"#REF!"}},{"$error":"#REF!"},{"$error":"#REF!"},null,{"$error":"#REF!"},{"$error":"#REF!"}]
["1.1.27","C.P.U.007",null,"ESCAVAÇÃO MEC. VALA N ESCORADA, MAT. DE 2A, PROF. 1-2m, C/T ATE 1000m","ESCAVAÇÃO VALA, MAT. DE 2A, PROF. 1-2m, C/T ATE 1000m","m³",{"$f":"SUMIF(#REF!,'RESUMO - CIVIL'!B23,#REF!)","v":{"$error":"#REF!"}},{"$f":"SUMIF(#REF!,'RESUMO - CIVIL'!B23,#REF!)","v":{"$error":"#REF!"}},{"$error":"#REF!"},{"$f":"#REF!","v":{"$error":"#REF!"}},{"$error":"#REF!"},{"$error":"#REF!"},null,{"$error":"#REF!"},{"$error":"#REF!"}]
["1.1.28","C.P.U.008",null,"ESCAVAÇÃO MEC. VALA N ESCORADA, MAT. DE 2A, PROF. 2-3m, C/T ATE 1000m","ESCAVAÇÃO VALA, MAT. DE 2A, PROF. 2-3m, C/T ATE 1000m","m³",{"$f":"SUMIF(#REF!,'RESUMO - CIVIL'!B24,#REF!)","v":{"$error":"#REF!"}},{"$f":"SUMIF(#REF!,'RESUMO - CIVIL'!B24,#REF!)","v":{"$error":"#REF!"}},{"$error":"#REF!"},{"$f":"#REF!","v":{"$error":"#REF!"}},{"$error":"#REF!"},{"$error":"#REF!"},null,{"$error":"#REF!"},{"$error":"#REF!"}]
["1.1.29","C.P.U.009",null,"ESCAVAÇÃO  MEC. VALA N ESCORADA, MAT. DE 3A, C/T ATE 1000m","ESCAVAÇÃO VALA, MAT. DE 3A, PROF. 1-2m, C/T ATE 1000m","m³",{"$f":"SUMIF(#REF!,'RESUMO - CIVIL'!B25,#REF!)","v":{"$error":"#REF!"}},{"$f":"SUMIF(#REF!,'RESUMO - CIVIL'!B25,#REF!)","v":{"$error":"#REF!"}},{"$error":"#REF!"},{"$f":"#REF!","v":{"$error":"#REF!"}},{"$error":"#REF!"},{"$error":"#REF!"},null,{"$error":"#REF!"},{"$error":"#REF!"}]
["1.1.32","74075/001","SINAPI","FORMA MADEIRA COMP RESINADA 12MM P/ESTRUTURA REAPROV 2 VEZES - CORTE/MONTAGEM/ESCORAMENTO/DESFORMA","FORMA PARA ESTRUTURAS","m²",{"$f":"SUMIF(#REF!,'RESUMO - CIVIL'!B26,#REF!)","v":{"$error":"#REF!"}},{"$f":"SUMIF(#REF!,'RESUMO - CIVIL'!B26,#REF!)","v":{"$error":"#REF!"}},{"$error":"#REF!"},66.790000000000006,78.812200000000004,{"$error":"#REF!"},null,{"$error":"#REF!"},{"$error":"#REF!"}]
["1.1.38","1A0117001","SICRO","COLCHAO DE AREIA EXTRAÍDA COM ESCAVADEIRA HIDRÁULICA","FORNECIMENTO E EXECUÇÃO DE LEITO DE AREIA","m³",{"$f":"SUMIF(#REF!,'RESUMO - CIVIL'!B27,#REF!)","v":{"$error":"#REF!"}},{"$f":"SUMIF(#REF!,'RESUMO - CIVIL'!B27,#REF!)","v":{"$error":"#REF!"}},{"$error":"#REF!"},34.97,41.264599999999994,{"$error":"#REF!"},null,{"$error":"#REF!"},{"$error":"#REF!"}]
["1.1.39",73631,"SINAPI","GUARDA-CORPO EM TUBO DE ACO GALVANIZADO 1 1/2\"","GUARDA-CORPO METÁLICO - FORNEC. E INSTAL.","m²",{"$f":"SUMIF(#REF!,'RESUMO - CIVIL'!B28,#REF!)","v":{"$error":"#REF!"}},{"$f":"SUMIF(#REF!,'RESUMO - CIVIL'!B28,#REF!)","v":{"$error":"#REF!"}},{"$error":"#REF!"},191.54,226.01719999999997,{"$error":"#REF!"},null,{"$error":"#REF!"},{"$error":"#REF!"}]
["1.1.43","C.P.U.019",null,"JANELA METÁLICA, TIPO BASCULANTE COM TELA DE PROTEÇÃO CONTRA ROEDORES","JANELA METÁLICA TIPO BASCULANTE","m²",{"$f":"SUMIF(#REF!,'RESUMO - CIVIL'!B29,#REF!)","v":{"$error":"#REF!"}},{"$f":"SUMIF(#REF!,'RESUMO - CIVIL'!B29,#REF!)","v":{"$error":"#REF!"}},{"$f":"G29+H29","v":{"$error":"#REF!"}},{"$f":"#REF!","v":{"$error":"#REF!"}},{"$f":"J29*$O$2","v":{"$error":"#REF!"}},{"$f":"K29*I29","v":{"$error":"#REF!"}},null,{"$f":"K29*G29","v":{"$error":"#REF!"}},{"$f":"K29*H29","v":{"$error":"#REF!"}}]
["1.1.46","C.P.U.010",null,"MOMENTO EXTRAORDINÁRIO DE TRANSP. DE MAT. DE 1A E/OU 2A","MOMENTO EXTRAORDINÁRIO DE TRANSP. DE MAT. DE 1A E/OU 2A","m³ x km",{"$f":"SUMIF(#REF!,'RESUMO - CIVIL'!B30,#REF!)","v":{"$error":"#REF!"}},{"$f":"SUMIF(#REF!,'RESUMO - CIVIL'!B30,#REF!)","v":{"$error":"#REF!"}},{"$error":"#REF!"},{"$f":"#REF!","v":{"$error":"#REF!"}},{"$error":"#REF!"},{"$error":"#REF!"},null,{"$error":"#REF!"},{"$error":"#REF!"}]
["1.1.47","C.P.U.011",null,"MOMENTO EXTRAORDINÁRIO DE TRANSPORTE DE MAT. DE 3A","MOMENTO EXTRAORDINÁRIO DE TRANSPORTE DE MAT. DE 3A","m³ x km",{"$f":"SUMIF(#REF!,'RESUMO - CIVIL'!B31,#REF!)","v":{"$error":"#REF!"}},{"$f":"SUMIF(#REF!,'RESUMO - CIVIL'!B31,#REF!)","v":{"$error":"#REF!"}},{"$error":"#REF!"},{"$f":"#REF!","v":{"$error":"#REF!"}},{"$error":"#REF!"},{"$error":"#REF!"},null,{"$error":"#REF!"},{"$error":"#REF!"}]
["1.1.49","73954/002 ","SINAPI","PINTURA LATEX ACRILICA AMBIENTES INTERNOS/EXTERNOS, DUAS DEMAOS","PINTURA A BASE DE TINTA LÁTEX - 2 DEMÃOS","m²",{"$f":"SUMIF(#REF!,'RESUMO - CIVIL'!B32,#REF!)","v":{"$error":"#REF!"}},{"$f":"SUMIF(#REF!,'RESUMO - CIVIL'!B32,#REF!)","v":{"$error":"#REF!"}},{"$error":"#REF!"},11.07,13.0626,{"$error":"#REF!"},null,{"$error":"#REF!"},{"$error":"#REF!"}]
["1.1.50",79466,"SINAPI","PINTURA VERNIZ EM MADEIRA 2 DEMAOS","PINTURA A BASE DE VERNIZ POLIURETANO - 2 DEMÃOS","m²",{"$f":"SUMIF(#REF!,'RESUMO - CIVIL'!B33,#REF!)","v":{"$error":"#REF!"}},{"$f":"SUMIF(#REF!,'RESUMO - CIVIL'!B33,#REF!)","v":{"$error":"#REF!"}},{"$error":"#REF!"},7.34,8.6611999999999991,{"$error":"#REF!"},null,{"$error":"#REF!"},{"$error":"#REF!"}]
["1.1.52","73922/003","SINAPI","PISO CIMENTADO LISO DESEMPENADO, TRACO 1:3 (CIMENTO E AREIA), ESPESSURA 2,0CM, PREPARO MANUAL","PISO CIMENTADO LISO","m²",{"$f":"SUMIF(#REF!,'RESUMO - CIVIL'!B34,#REF!)","v":{"$error":"#REF!"}},{"$f":"SUMIF(#REF!,'RESUMO - CIVIL'!B34,#REF!)","v":{"$error":"#REF!"}},{"$error":"#REF!"},23.94,28.249199999999998,{"$error":"#REF!"},null,{"$error":"#REF!"},{"$error":"#REF!"}]
["1.1.55","73933/002","SINAPI","PORTA DE FERRO ABRIR TIPO CHAPA LISA 0,87X2,10M, INCLUSO GUARNICOES","PORTA METÁLICA, INCLUSIVE FERRAGENS","m²",{"$f":"SUMIF(#REF!,'RESUMO - CIVIL'!B35,#REF!)","v":{"$error":"#REF!"}},{"$f":"SUMIF(#REF!,'RESUMO - CIVIL'!B35,#REF!)","v":{"$error":"#REF!"}},{"$error":"#REF!"},220.13,259.7534,{"$error":"#REF!"},null,{"$error":"#REF!"},{"$error":"#REF!"}]
["1.1.58","76444/002","SINAPI","REATERRO DE VALAS COMPACTACAO MECANICA, C/CONTR.DO GC >= 95% DO PN(C/COMPACTADOR SOLOS C/ PLACA VIBRATORIA MOTOR DIESEL/GASOLINA 7 A 10 HP)","REATERRO COMPACTADO MECANICAMENTE, C/ CONTROLE","m³",{"$f":"SUMIF(#REF!,'RESUMO - CIVIL'!B36,#REF!)","v":{"$error":"#REF!"}},{"$f":"SUMIF(#REF!,'RESUMO - CIVIL'!B36,#REF!)","v":{"$error":"#REF!"}},{"$error":"#REF!"},10.68,12.602399999999999,{"$error":"#REF!"},null,{"$error":"#REF!"},{"$error":"#REF!"}]
["1.1.59","73964/005","SINAPI","REATERRO DE VALA/CAVA SEM CONTROLE DE COMPACTAÇÃO , UTILIZANDO RETRO-ESCAVADEIRA E COMPACTACADOR VIBRATORIO COM MATERIAL REAPROVEITADO","REATERRO COMPACTADO MECANICAMENTE, S/ CONTROLE","m³",{"$f":"SUMIF(#REF!,'RESUMO - CIVIL'!B37,#REF!)","v":{"$error":"#REF!"}},{"$f":"SUMIF(#REF!,'RESUMO - CIVIL'!B37,#REF!)","v":{"$error":"#REF!"}},{"$error":"#REF!"},6.02,7.1035999999999992,{"$error":"#REF!"},null,{"$error":"#REF!"},{"$error":"#REF!"}]
["1.1.60","73927/006","SINAPI","EMBOCO PAULISTA (MASSA UNICA) TRACO 1:1:6 (CIMENTO, CAL E AREIA), ESPESSURA 2,0CM, PREPARO MANUAL","REBOCO PAULISTA (MASSA ÚNICA)","m²",{"$f":"SUMIF(#REF!,'RESUMO - CIVIL'!B38,#REF!)","v":{"$error":"#REF!"}},{"$f":"SUMIF(#REF!,'RESUMO - CIVIL'!B38,#REF!)","v":{"$error":"#REF!"}},{"$error":"#REF!"},16.489999999999998,19.458199999999998,{"$error":"#REF!"},null,{"$error":"#REF!"},{"$error":"#REF!"}]
["1.1.66",72829,"SINAPI","ESCAVACAO, CARGA E TRANSPORTE DE MATERIAL DE 1A CATEGORIA, CAMINHO DE SERVICO REVESTIMENTO PRIMARIO, COM ESCAVADEIRA HIDRAULICA E CAMINHAO BASCULANTE 6 M3, DMT 800 ATE 1.000 M","REVESTIMENTO PRIMÁRIO C/ MAT. DE JAZIDA, C/T ATE 1000m","m³",{"$f":"SUMIF(#REF!,'RESUMO - CIVIL'!B39,#REF!)","v":{"$error":"#REF!"}},{"$f":"SUMIF(#REF!,'RESUMO - CIVIL'!B39,#REF!)","v":{"$error":"#REF!"}},{"$error":"#REF!"},4.17,4.9205999999999994,{"$error":"#REF!"},null,{"$error":"#REF!"},{"$error":"#REF!"}]
[null,"C.P.U.024",null,"TAMPA EM CHAPA XADREZ",null,"kg",{"$f":"SUMIF(#REF!,'RESUMO - CIVIL'!B40,#REF!)","v":{"$error":"#REF!"}},{"$f":"SUMIF(#REF!,'RESUMO - CIVIL'!B40,#REF!)","v":{"$error":"#REF!"}},{"$error":"#REF!"},{"$f":"#REF!","v":{"$error":"#REF!"}},{"$error":"#REF!"},{"$error":"#REF!"},null,{"$error":"#REF!"},{"$error":"#REF!"}]
[{"$nulls":4},"TOTAL",{"$nulls":4},"R$",{"$f":"SUM(L4:L40)","v":{"$error":"#REF!"}},null,null,{"$f":"SUM(N4:N40)","v":{"$error":"#REF!"}},{"$f":"SUM(O4:O40)","v":{"$error":"#REF!"}},null,{"$f":"N41+O41","v":{"$error":"#REF!"}}]
[]
["OBS: os itens marcados em vermenho, ainda falta o levantamento dos quantitativos e/ou composição de preços para adequar a planilha SINAPI",{"$nulls":9},{"$f":"#REF!+#REF!","v":{"$error":"#REF!"}},null,null,{"$f":"#REF!","v":{"$error":"#REF!"}},{"$f":"#REF!","v":{"$error":"#REF!"}},null,{"$f":"N43+O43","v":{"$error":"#REF!"}}]
[{"$nulls":11},{"$f":"K41-K43","v":{"$error":"#REF!"}},null,{"$f":"N41-N43","v":{"$error":"#REF!"}},{"$f":"O41-O43","v":{"$error":"#REF!"}}]

{"sheet":"RESUMO - MONTAGEM HIDRO","index":2,"n_rows":53,"n_cols":7,"rows_kept":53,"cut":false,"hidden":true,"merged":[[0,0,0,6],[52,5,52,6]]}
["ORÇAMENTO DO PROJETO PONTAL - ÁREA NORTE                                                                                RESUMO - MONTAGEM - HIDROMECÂNICOS"]
["ITEM","DESCRIÇÃO","UNID.","QUANTID.","PREÇO UNIT. S/BDI","PREÇO UNIT. C/BDI","PREÇO TOTAL"]
[]
[1,"MONTAGEM - HIDROMECÂNICOS"]
["1.1","MONT. COMP.PLANA, C/PEDESTAL E VOLANTE, 1,00 X 1,00M","un",10,1088,1414.4,{"$f":"F5*D5","v":14144}]
["1.2","MONT. TUBO PVC RIGIDO, J/E, DEFOFO, DIAM.100MM","m",1730,2.4900000000000002,3.24,5605.2000000000007]
["1.3","MONT. TUBO PVC RIGIDO, J/E, DEFOFO, DIAM.300MM","m",800,10.49,13.64,10912]
["1.4","MONT.VALV. ADMISSAO DE AR DN=80MM, PN-10","un",2,27.73,36.049999999999997,72.099999999999994]
["1.5","MONT.VALV. GAVETA ACION. DIRETO VOLANTE, PN-10, DN=50MM","un",10,7.71,10.02,100.19999999999999]
["1.6","MONTAGEM COMPORTA TIPO SEGMENTO","cj",7,8045.95,10459.74,73218.179999999993]
["1.7","MONTAGEM DE COMP. PLANA C/PEDESTAL DN=200MM - MOTORIZADA","un",3,650,845,2535]
["1.8","MONTAGEM DE COMP. PLANA C/PEDESTAL DN=300MM - MOTORIZADA","un",22,884,1149.2,25282.400000000001]
["1.9","MONTAGEM DE COMP. PLANA C/PEDESTAL DN=400MM - MOTORIZADA","un",2,1049.75,1364.68,2729.36]
["1.10","MONTAGEM DE COMP. PLANA C/PEDESTAL DN=500MM - MOTORIZADA","un",1,1100,1430,1430]
["1.11","MONTAGEM DE COMPORTA ENSECADEIRA DE AÇO","m²",8,213.25,277.23,2217.84]
["1.12","MONTAGEM DE COMPORTA PLANA C/PEDESTAL DN=400MM","un",4,537.46,698.7,2794.8]
["1.13","MONTAGEM DE COMPORTA PLANA C/PEDESTAL DN=500MM","un",3,594.04,772.25,2316.75]
["1.14","MONTAGEM DE COMPORTA PLANA C/PEDESTAL DN=700MM - MOTORIZADA","un",2,859.94,1117.92,2235.84]
["1.15","MONTAGEM DE COMPORTA PLANA C/PEDESTAL DN=800MM - MOTORIZADA","un",1,956.12,1242.96,1242.96]
["1.16","MONTAGEM DE COMPORTA PLANA C/PEDESTAL DN=900MM ","un",1,851,1106.3,1106.3]
["1.17","MONTAGEM DE GRADE DE PROTEÇÃO","m²",10,105.79,137.53,1375.3]
["1.18","MONTAGEM DE REGISTRO DE GAVETA COM FLANGES FO.FO. DN 100","un",14,30.44,39.57,553.98]
["1.19","MONTAGEM DE REGISTRO DE GAVETA COM FLANGES FO.FO. DN 150","un",4,42.93,55.81,223.24]
["1.20","MONTAGEM DE REGISTRO DE GAVETA COM FLANGES FO.FO. DN 80","un",2,16.14,20.98,41.96]
["1.21","MONTAGEM DE TALHA MANUAL C/MONOVIA CAP=1,0TON","un",4,4530.5,5889.65,23558.6]
["1.22","MONTAGEM DE VÁLVULA DE ADMISSÃO DE AR, DN=100MM","un",2,103.845,135,270]
["1.23","MONTAGEM DE VÁLVULA TIPO BORBOLETA DN=400MM C/ATUADOR","un",1,210,273,273]
["1.24","MONTAGEM DE VÁLVULA TIPO BORBOLETA DN=500MM C/ATUADOR","un",1,295,383.5,383.5]
["1.25","MONTAGEM DE VÁLVULA TIPO BORBOLETA DN=800MM C/ATUADOR","un",3,452.6,588.38,1765.1399999999999]
["1.26","MONTAGEM DE VENTOSA DE TRIPLICE FUNÇÃO DN=150","un",5,31.33,40.729999999999997,203.64999999999998]
["1.27","MONTAGEM DE VENTOSA SIMPLES FUNÇÃO DN 50","un",10,25.6,33.28,332.8]
["1.28","MONTAGEM REGISTRO DE GAVETA COM FLANGES FO.FO. DN 100","un",10,30.44,39.57,395.7]
["1.29","MONTAGEM REGISTRO DE GAVETA COM FLANGES FO.FO. DN=150MM","un",1,42.93,55.81,55.81]
["1.30","MONTAGEM REGISTRO DE GAVETA COM FLANGES FO.FO. DN=300MM","un",39,121.55,158.02000000000001,6162.7800000000007]
["1.31","MONTAGEM REGISTRO GAVETA FO.FO. DN 200","un",4,65.23,84.8,339.2]
["1.32","MONTAGEM TUBO FO.FO., K-7, P&B, JUNTA ELAST., DIAM. 300MM ","m",2581,32.15,41.8,107885.79999999999]
["1.33","MONTAGEM TUBO FO.FO., K-7, P&B, JUNTA ELAST., DIAM. 350MM ","m",688,42.21,54.87,37750.559999999998]
["1.34","MONTAGEM TUBO FO.FO., K-7, P&B, JUNTA ELAST., DIAM. 400MM  ","m",3433,51.12,66.459999999999994,228157.18]
["1.35","MONTAGEM TUBO FO.FO., K-7, P&B, JUNTA ELAST., DIAM. 450MM  ","m",2004,53.32,69.319999999999993,138917.28]
["1.36","MONTAGEM TUBO FO.FO., K-7, P&B, JUNTA ELAST., DIAM. 500MM ","m",1295,69.27,90.05,116614.75]
["1.37","MONTAGEM TUBO FO.FO., K-7, P&B, JUNTA ELAST., DIAM. 600MM ","m",2228,90.11,117.14,260987.92]
["1.38","MONTAGEM TUBO FO.FO., K-7, P&B, JUNTA ELAST., DIAM. 700MM ","m",1835,115.67,150.37,275928.95]
["1.39","MONTAGEM TUBO FO.FO., K-7, P&B, JUNTA ELAST., DIAM. 800MM","m",430,140.52000000000001,182.68,78552.400000000009]
["1.40","MONTAGEM TUBO FO.FO., P&F, PN-10, DIAM. 200MM (TOMADAS)","m",24,23.99,31.19,748.56000000000006]
["1.41","MONTAGEM TUBO FO.FO., P&F, PN-10, DIAM. 300MM (TOMADAS)","m",440,37.130000000000003,48.27,21238.800000000003]
["1.42","MONTAGEM TUBO FO.FO., P&F, PN-10, DIAM. 400MM (TOMADAS)","m",95,49.97,64.959999999999994,6171.2]
["1.43","MONTAGEM TUBO FO.FO., P&F, PN-10, DIAM. 500MM (TOMADAS)","m",60,67.06,87.18,5230.8]
["1.44","MONTAGEM TUBO FO.FO., P&F, PN-10, DIAM. 700MM (TOMADAS)","m",20,115.67,150.37,3007.4]
["1.45","MONTAGEM TUBO FO.FO., P&F, PN-10, DIAM. 800MM (TOMADAS)","m",11,140.52000000000001,182.68,2009.48]
["1.46","MONTAGEM TUBO FO.FO., P&F, PN-10, DIAM. 900MM (TOMADAS)","m",22,204.66,266.06,5853.32]
["1.47","MONTAGEM TUBUL. E PECAS DE AÇO CARBONO DN=1200MM C/TESTE HIDROST.","m",7753,112.67,146.47,1135581.9099999999]
["1.48","MONTAGEM VENTOSA DE TRIPLICE FUNÇÃO FO.FO DN 100","un",11,26.87,34.93,384.23]
[null,"TOTAL",null,null,"R$",{"$f":"SUM(G5:G52)","v":2608898.1299999994}]

{"sheet":"RESUMO - FORNEC HIDRO","index":3,"n_rows":91,"n_cols":7,"rows_kept":91,"cut":false,"hidden":true,"merged":[[0,0,0,6],[90,5,90,6]]}
["ORÇAMENTO DO PROJETO PONTAL - ÁREA NORTE                                                                                RESUMO - FORNECIMENTO - HIDROMECÂNICOS"]
["ITEM","DESCRIÇÃO","UNID.","QUANTID.","PREÇO UNIT. S/BDI","PREÇO UNIT. C/BDI","PREÇO TOTAL"]
[]
[1,"FORNECIMENTO - HIDROMECÂNICOS"]
["1.1","COLAR DE AÇO ASTM-A-36 C/TRATAMENTO E PECAS (TOMADAS D'ÁGUA)","kg",220,5,6,{"$f":"F5*D5","v":1320}]
["1.2","COMPORTA ENSECADEIRA EM 1 PAINEL DE AÇO DE 1420x1380mm","cj",2,20140,24168,48336]
["1.3","COMPORTA ENSECADEIRA EM 1 PAINEL DE AÇO DE 1720x1380mm","cj",4,22388.57,26866.28,107465.12]
["1.4","COMPORTA ENSECADEIRA EM 1 PAINEL DE AÇO DE 1960x1840mm","cj",2,28430.33,34116.400000000001,68232.800000000003]
["1.5","COMPORTA ENSECADEIRA EM 2 PAINEIS DE AÇO DE 1320x900mm","cj",2,18730.7,22476.84,44953.68]
["1.6","COMPORTA ENSECADEIRA EM 2 PAINEIS DE AÇO DE 1420x1000mm","cj",2,22388.57,26866.28,53732.56]
["1.7","COMPORTA ENSECADEIRA EM 2 PAINEIS DE AÇO DE 1820x1000mm","cj",2,28695.21,34434.25,68868.5]
["1.8","COMPORTA ENSECADEIRA EM 2 PAINEIS DE AÇO DE 3064x1150mm","cj",1,55555.19,66666.23,66666.23]
["1.9","COMPORTA PLANA CIRCULAR C/PEDESTAL, DN=200MM - MOTORIZADA","cj",3,2300,3266,9798]
["1.10","COMPORTA PLANA CIRCULAR C/PEDESTAL, DN=300MM - MOTORIZADA","cj",22,2959.2,4202.0600000000004,92445.32]
["1.11","COMPORTA PLANA CIRCULAR C/PEDESTAL, DN=400MM ","cj",4,2453.8000000000002,3484.4,13937.6]
["1.12","COMPORTA PLANA CIRCULAR C/PEDESTAL, DN=400MM - MOTORIZADA","cj",2,3699,5252.58,10505.16]
["1.13","COMPORTA PLANA CIRCULAR C/PEDESTAL, DN=500MM ","cj",3,2851.53,4049.17,12147.51]
["1.14","COMPORTA PLANA CIRCULAR C/PEDESTAL, DN=500MM - MOTORIZADA","cj",1,4665.2,6624.58,6624.58]
["1.15","COMPORTA PLANA CIRCULAR C/PEDESTAL, DN=700MM - MOTORIZADA","cj",2,6658.2,9454.64,18909.28]
["1.16","COMPORTA PLANA CIRCULAR C/PEDESTAL, DN=800MM - MOTORIZADA","cj",1,7651.81,10865.57,10865.57]
["1.17","COMPORTA PLANA CIRCULAR C/PEDESTAL, DN=900MM ","cj",1,6551.1,9302.56,9302.56]
["1.18","COMPORTA PLANA QUADRADA C/PEDESTAL 1000X1000MM","cj",10,8089.42,11486.98,114869.79999999999]
["1.19","COMPORTA SETOR 1,10X1,90 - RAIO=2,00M COM. HIDRAUL. - COMPLETA","cj",1,52150,62580,62580]
["1.20","COMPORTA SETOR 1,20X1,50 - RAIO=1,50M COM. HIDRAUL. - COMPLETA","cj",1,54081,64897.2,64897.2]
["1.21","COMPORTA SETOR 1,20X2,00 - RAIO=2,00M COM. HIDRAUL. - COMPLETA","cj",1,59930,71916,71916]
["1.22","COMPORTA SETOR 1,50X1,80 - RAIO=2,00M COM. HIDRAUL. - COMPLETA","cj",2,63625.38,76350.460000000006,152700.92000000001]
["1.23","COMPORTA SETOR 1,60X2,00 - RAIO=2,00M COM. HIDRAUL. - COMPLETA","cj",1,85046,102055.2,102055.2]
["1.24","COMPORTA SETOR 2,80X2,20 - RAIO=2,50M COM. HIDRAUL. - COMPLETA","cj",1,153700,184440,184440]
["1.25","CONEXÕES DE FO.FO. PARA AS TOMADAS - DN=200MM","VB",3,623.79999999999995,748.56,2245.6799999999998]
["1.26","CONEXÕES DE FO.FO. PARA AS TOMADAS - DN=300MM","VB",24,2050,2460,59040]
["1.27","CONEXÕES DE FO.FO. PARA AS TOMADAS - DN=400MM","VB",5,2450,2940,14700]
["1.28","CONEXÕES DE FO.FO. PARA AS TOMADAS - DN=500MM","VB",4,2850,3420,13680]
["1.29","CONEXÕES DE FO.FO. PARA AS TOMADAS - DN=700MM","VB",2,3650,4380,8760]
["1.30","CONEXÕES DE FO.FO. PARA AS TOMADAS - DN=800MM","VB",1,4850,5820,5820]
["1.31","CONEXÕES DE FO.FO. PARA AS TOMADAS - DN=900MM","VB",1,5350,6420,6420]
["1.32","CONEXÕES E PEÇAS ESPECIAIS DA TUBUL TR03","VB",1,25450,30540,30540]
["1.33","CONEXÕES E PEÇAS ESPECIAIS DA TUBUL TR04","VB",1,56060,67272,{"$f":"F37*D37","v":67272}]
["1.34","CONEXÕES E PEÇAS ESPECIAIS DO SIFÃO SF01","VB",1,74990,89988,89988]
["1.35","CONEXÕES E PEÇAS ESPECIAIS DO SIFÃO SF02","VB",1,98080,117696,117696]
["1.36","CONEXÕES E TUBOS DN=100MM P/DESCARGAS DE FUNDO","CJ",11,701,841.2,9253.2000000000007]
["1.37","EXTREMIDADE FO.FO., FLANGE E BOLSA, PN10, J.ELAST. DN=300MM","un",3,472.32,566.78,1700.34]
["1.38","FORNECIMENTO DE TUBOS DE FOFO PONTA/FLANGE P/TOMADAS D'ÁGUA","VB",1,3690,4428,4428]
["1.39","FORNECIMENTO DE TUBOS DE FOFO PONTA/FLANGE P/TOMADAS D'ÁGUA","VB",1,8700,10440,10440]
["1.40","FORNECIMENTO DE TUBOS DE FOFO PONTA/FLANGE P/TOMADAS D'ÁGUA","VB",1,9520,11424,11424]
["1.41","FORNECIMENTO DE TUBOS DE FOFO PONTA/FLANGE P/TOMADAS D'ÁGUA","VB",1,10332.9,12399.48,12399.48]
["1.42","FORNECIMENTO DE TUBOS DE FOFO PONTA/FLANGE P/TOMADAS D'ÁGUA","VB",1,12730,15276,15276]
["1.43","FORNECIMENTO DE TUBOS DE FOFO PONTA/FLANGE P/TOMADAS D'ÁGUA","VB",1,19300,23160,23160]
["1.44","FORNECIMENTO DE TUBOS DE FOFO PONTA/FLANGE P/TOMADAS D'ÁGUA","VB",1,47000,56400,56400]
["1.45","FORNECIMENTO DE TUBOS DE FOFO PONTA/FLANGE P/TOMADAS D'ÁGUA","VB",1,205851,247021.2,247021.2]
["1.46","GRADE DE BARRAS FIXA - 1760x1830mm","un",3,18192.52,21831.02,65493.06]
["1.47","JUNTA DE MONTAGEM, DN=800MMM","un",3,3211,3853.2,11559.599999999999]
["1.48","JUNTA DRESSER, ESTILO 38, DN=700MM","un",2,2748.8,3298.56,6597.12]
["1.49","JUNTA DRESSER, ESTILO 38, DN=800MM","un",1,3106.69,3728.03,3728.03]
["1.50","JUNTA DRESSER, ESTILO 38, DN=900MM","un",1,4497.92,5397.5,5397.5]
["1.51","JUNTA GIBAULT DN=200MM","un",3,297.36,356.83,1070.49]
["1.52","JUNTA GIBAULT DN=300MM","un",61,517.86,621.42999999999995,37907.229999999996]
["1.53","JUNTA GIBAULT DN=400MM","un",6,220.41,264.49,1586.94]
["1.54","JUNTA GIBAULT DN=500MM","un",4,780.99,937.19,3748.76]
["1.55","PROTEÇÃO CATÓDICA EM TUBULAÇÃO DE AÇO","VB",1,30000,36000,36000]
["1.56","PROTEÇÃO CATÓDICA EM TUBULAÇÃO DE AÇO","VB",1,39100,46920,46920]
["1.57","PROTEÇÃO CATÓDICA EM TUBULAÇÃO DE AÇO","VB",1,43700,52440,52440]
["1.58","PROTEÇÃO CATÓDICA EM TUBULAÇÃO DE AÇO","VB",1,52000,62400,62400]
["1.59","TALHA MANUAL C/MONOVIA CAP=1 TON - COMPLETA","un",4,43155,51786,207144]
["1.60","TUBO FO.FO.,K-7,P&B,JUNTA ELAST. JE2GS, DIAM. 300MM","m",2581,107.16,128.59,331890.79000000004]
["1.61","TUBO FO.FO.,K-7,P&B,JUNTA ELAST. JE2GS, DIAM. 350MM","m",688,140.72,168.86,116175.68000000001]
["1.62","TUBO FO.FO.,K-7,P&B,JUNTA ELAST. JE2GS, DIAM. 400MM","m",3433,170.42,204.5,702048.5]
["1.63","TUBO FO.FO.,K-7,P&B,JUNTA ELAST. JE2GS, DIAM. 450MM","m",2004,200.68,240.82,482603.27999999997]
["1.64","TUBO FO.FO.,K-7,P&B,JUNTA ELAST. JE2GS, DIAM. 500MM","m",1295,230.93,277.12,358870.4]
["1.65","TUBO FO.FO.,K-7,P&B,JUNTA ELAST. JE2GS, DIAM. 600MM","m",2228,300.38,360.46,{"$f":"F69*D69","v":803104.88}]
["1.66","TUBO FO.FO.,K-7,P&B,JUNTA ELAST. JE2GS, DIAM. 700MM","m",1835,385.56,462.67,848999.45000000007]
["1.67","TUBO FO.FO.,K-7,P&B,JUNTA ELAST. JE2GS, DIAM. 800MM","m",430,468.4,562.08000000000004,241694.40000000002]
["1.68","TUBO PVC RIGIDO, J/E, DEFOFO, DIAM 100MM","m",1730,12.41,14.89,25759.7]
["1.69","TUBO PVC RIGIDO, J/E, DEFOFO, DIAM 300MM","m",800,80.63,96.76,77408]
["1.70","TUBOS DE AÇO CARBONO DN=1200MM C/TRATAMENTO","m",7753,889.84,1067.81,8278730.9299999997]
["1.71","VÁLV. ADMISSÃO DE AR, DN=100MM, PN-10","un",2,2710,3252,6504]
["1.72","VÁLV. ADMISSÃO DE AR, DN=80MM, PN-10","un",2,867.3,1040.76,2081.52]
["1.73","VÁLV. GAVETA ACION. DIRETO VOLANTE, PN-10, DN= 150MM","un",1,650.57000000000005,780.68,780.68]
["1.74","VÁLV. GAVETA ACION. DIRETO VOLANTE, PN-10, DN= 300MM","un",39,2093.39,2512.0700000000002,97970.73000000001]
["1.75","VÁLV. GAVETA ACION. DIRETO VOLANTE, PN-10, DN=100MM","un",24,414.85,497.82,11947.68]
["1.76","VÁLV. GAVETA ACION. DIRETO VOLANTE, PN-10, DN=150MM","un",4,650.57000000000005,780.68,3122.72]
["1.77","VÁLV. GAVETA ACION. DIRETO VOLANTE, PN-10, DN=200MM","un",4,993.63,1192.3599999999999,4769.4399999999996]
["1.78","VÁLV. GAVETA ACION. DIRETO VOLANTE, PN-10, DN=50MM","un",11,234.24,281.08999999999997,3091.99]
["1.79","VÁLV. GAVETA ACION. DIRETO VOLANTE, PN-10, DN=80MM","un",2,346.92,416.3,832.6]
["1.80","VÁLVULA BORBOLETA C/ATUADOR ELÉTRICO DN=800MM PN-10","cj",3,37750.639999999999,45300.77,135902.31]
["1.81","VÁLVULA BORBOLETA COM FLANGES E ATUADOR MECANICO FOFO DN=400","cj",1,7386.78,8864.14,8864.14]
["1.82","VÁLVULA BORBOLETA COM FLANGES E ATUADOR MECANICO FOFO DN=500","cj",1,8058.3,9669.9599999999991,9669.9599999999991]
["1.83","VENTOSA DE TRIPLICE FUNÇÃO FO.FO. DN 100","un",11,904.51,1085.4100000000001,11939.51]
["1.84","VENTOSA DE TRIPLICE FUNÇÃO, FOFO, DN=150MM","un",5,1392.74,1671.29,8356.4500000000007]
["1.85","VENTOSA SIMPLES EFEITO DN=50MM PN10 - FLANGEADA","un",10,134.82,161.78,1617.8]
["1.86","VISITA EM AÇO CARBONO","kg",347,4,4.8,1665.6]
[null,"TOTAL",null,null,"R$",{"$f":"SUM(G5:G90)","v":15323629.360000001}]

{"sheet":"AUXILIAR","index":4,"n_rows":195,"n_cols":3,"rows_kept":195,"cut":false,"hidden":true,"merged":[[39,0,41,0]]}
[null,"AÇO ESPECIAL CA-50/60"]
["ACO CA-50 3/4\" (19,05 MM)",null,"ACO CA-50 3/4\" (19,05 MM)"]
["ACO CA-50 1/2\" (12,70 MM)",null,"ACO CA-50 1/2\" (12,70 MM)"]
["ACO CA-50 1/4\" (6,35 MM)",null,"ACO CA-50 1/4\" (6,35 MM)"]
["ACO CA-50 3/8\" (9,52 MM)",null,"ACO CA-50 3/8\" (9,52 MM)"]
["ACO CA-50 5/8\" (15,87 MM)",null,"ACO CA-50 5/8\" (15,87 MM)"]
["ACO CA-60 - 5,0MM",null,"ACO CA-60 - 5,0MM"]
["ALVENARIA DE BLOCOS DE CONCRETO ESTRUTURAL 19X19X39CM, ESPESSURA 19CM, ASSENTADOS COM ARGAMASSA TRACO 1:0,25:4 (CIMENTO, CAL E AREIA)","ALVENARIA DE BLOCOS DE CONCRETO - 19x19x39cm","ALVENARIA DE BLOCOS DE CONCRETO ESTRUTURAL 19X19X39CM, ESPESSURA 19CM, ASSENTADOS COM ARGAMASSA TRACO 1:0,25:4 (CIMENTO, CAL E AREIA)"]
["APARELHO APOIO ESTRUTURAL DE NEOPRENE FRETADO","APARELHO DE APOIO, DE NEOPRENE","APARELHO APOIO ESTRUTURAL DE NEOPRENE FRETADO"]
["ARGAMASSA CIMENTO/AREIA 1:3 - PREPARO MECANICO","ARGAMASSA DE CIMENTO AREIA 1:3","ARGAMASSA CIMENTO/AREIA 1:3 - PREPARO MECANICO"]
["ATERRO COMPACTADO MECANICAMICAMENTE EM CAMADAS DE 20CM, C/CONT., MAT. JAZIDA, C/T ATE 1000 m - 95% PN","ATERRO COMPACTADO MECANICAM., C/CONT., MAT. JAZIDA, C/T ATE 1000 m - 95% PN","ATERRO COMPACTADO MECANICAMICAMENTE EM CAMADAS DE 20CM, C/CONT., MAT. JAZIDA, C/T ATE 1000 m - 95% PN"]
["ATERRO COMPACTADO, EM CAMADA DE 20 CM  C/ CONTROLE.,  C/ REAPROV. DE MATERIAL (SOLOS COLAPSÍVEIS - 100% PN) C/T ATÉ 200 m","ATERRO COMPACTADO,  C/ CONTROLE.,  C/ REAPROV. DE MATERIAL (SOLOS COLAPSÍVEIS - 100% PN) C/T ATÉ 200 m","ATERRO COMPACTADO, EM CAMADA DE 20 CM  C/ CONTROLE.,  C/ REAPROV. DE MATERIAL (SOLOS COLAPSÍVEIS - 100% PN) C/T ATÉ 200 m"]
["PEDRA BRITADA BICA CORRIDA (NÃO CLASSIFICADA)","BRITA","AZULEJO 1A 15X15CM FIXADO ARGAMASSA COLANTE, REJUNTAMENTO COM CIMENTO BRANCO"]
["CERCA COM MOURÕES DE CONCRETO, SEÇÃO \"T\" PONTA INCLINADA, 7,5X7,5CM, ESPAÇAMENTO DE 3M, CRAVADOS 0,5M, COM 11 FIOS DE ARAME FARPADO Nº14 CLASSE 250 - FORNEC E COLOC.","CERCA C/ MOIRÕES DE CONCRETO E ARAME FARPADO (11 FIOS)","BANCA (TAMPO) DE MARMORE SINTETICO 120X60CM COM CUBA, VALVULA EM PLASTICO BRANCO 1\", SIFAO PLASTICO TIPO COPO 1\" E TORNEIRA CROMADA LONGA 1/2\" OU 3/4\" PARA PIA PADRAO POPULAR - FORNECIMENTO E INSTALACAO"]
["CHAPISCO RUSTICO TRACO 1:3 (CIMENTO E AREIA), ESPESSURA 2CM, PREPARO MANUAL","CHAPISCO","BUEIROS - CANAL PRINCIPAL - TRECHO \"F\" (BU-13 A BU-15)"]
["CIMBRAMENTO DE MADEIRA","CIMBRAMENTO","BUEIROS - CANAL SECUNDÁRIO CS04  (BU-16 A BU-17)"]
["COBERTURA COM TELHA DE FIBROCIMENTO ESTRUTURAL LARGURA ÚTIL 49CM OU 44CM, INCLUSO ACESSÓRIOS DE FIXAÇÃO E VEDAÇÃO","COBERTURA CIMENTO AMIANTO TIPO CANALETE C/ENGRADAM., ACESSÓRIOS","Cabo de cobre nu têmpera meio-mole bitola 16 mm2 - Ref.: Ficap"]
["PREPARO MECANICO E LANÇAMENTO MANUAL DE CONCRETO CICLÓPICO 1:3:5, COM 30% DE PEDRA DE MÃO, CAVAS ATÉ 80CM DE LARGURA.","CONCRETO CICLÓPICO","Cabo de cobre nu têmpera meio-mole bitola 25 mm2 - Ref.: Ficap"]
["CONCRETO USINADO, IMPORTADO, ESTRUTURAL FCK=20MPA INCLUS. TRANSPORTE HORIZONTAL ATÉ 20M (PROD. 2M3/H) EM CARRINHOS, ADENSAMENTO E ACABAMENTO","CONCRETO ESTRUTURAL FCK=>20 MPa","Cabo de cobre nu têmpera meio-mole bitola 35 mm2 - Ref.: Ficap"]
["CONCRETO 1:4:8, CONCRETO MAGRO, C/ BRITA 1 E 2, C/BETONEIRA","CONCRETO SIMPLES FCK=>11 MPa","Cabo de cobre nu têmpera meio-mole bitola 70 mm2 - Ref.: Ficap"]
["DESMATAMENTO/LIMPEZA TERRENOS C/EQUIP MECAN(TRATOR:1000M2/H)","DESMATAMENTO, DESTOCAMENTO E LIMPEZA DO TERRENO - ESP=50CM","Cabo isolado 450/750V BWF Antiflan bitola 70 mm2 - Ref.: Ficap "]
["CAIXA DE BRITA PARA DRENAGEM MEDINDO 50CMX50CMX50CM ","DRENO DE BRITA","CAIXA DE BRITA PARA DRENAGEM MEDINDO 50CMX50CMX50CM "]
["ENROCAMENTO MANUAL C/ PEDRA JOGADA-E/C/T/D ATE 1000m","ENROCAMENTO C/ PEDRA JOGADA-E/C/T/D ATE 1000m","CAIXA DE INSPEÇÃO EM ALVENARIA DE TIJOLO MACIÇO 60X60X60CM, REVESTIDA INTERNAMENTO COM BARRA LISA (CIMENTO E AREIA, TRAÇO 1:4) E=2,0CM, COM TAMPA PRÉ-MOLDADA DE CONCRETO E FUNDO DE CONCRETO 15MPA TIPO C - ESCAVAÇÃO E CONFECÇÃO"]
["ESCADA TIPO MERINHEIRO COM MONTANTES EM CHAPA 3/8\" (9,53MM) E DEGRAUS EM TUBO DE AÇO 1 1/2\" COM LARGURA DE 45CM E DISTANCIA EIXO A EIXO DE 30CM","ESCADA DE MARINHEIRO","CANAL PRINCIPAL - TRECHO \"F\""]
[null,"ESCADA DE SEGURANÇA EM AÇO","CANAL SECUNDÁRIO - CS04"]
["ESCAVAÇÃO MECÂNICA DE VALA EM MAT.1A CAT.","ESCAV. P/ EXEC. DE SEÇÃO DO CANAL EM  MAT 1a CAT. C/ CONCHA INCLUSIVE REGULARIZAÇÃO DE TALUDES (a regularização será orçada no item1.1.61 regularização de taludes )","CANAL/RESERVATÓRIO - RS25"]
["ESC. MEC. CARGA TRANSP. MAT 1ª CAT DMT 50 A 200M C/E","ESCAVAÇÃO MAT. DE 1A, C/T ATE 200m","CERCA COM MOURÕES DE CONCRETO, SEÇÃO \"T\" PONTA INCLINADA, 7,5X7,5CM, ESPAÇAMENTO DE 3M, CRAVADOS 0,5M, COM 11 FIOS DE ARAME FARPADO Nº14 CLASSE 250 - FORNEC E COLOC."]
["ESC. MEC. CARGA TRANSP. MAT 2A CAT DMT 800 A 1000M C/E","ESCAVAÇÃO MAT. DE 2A C/T ATE 1000m","CHAPISCO RUSTICO TRACO 1:3 (CIMENTO E AREIA), ESPESSURA 2CM, PREPARO MANUAL"]
["ESC. MEC. CARGA TRANSP. MAT 3A CAT DMT 800 A 1000M","ESCAVAÇÃO MAT. DE 3A C/T ATE 1000m","CHUVEIRO PLASTICO BRANCO SIMPLES - FORNECIMENTO E INSTALACAO"]
[null,"ESCAVAÇÃO VALA, MAT. DE 1A, PROF. 1-2m, C/T ATE 200m","CIMBRAMENTO DE MADEIRA"]
["ESCAV MEC.VALA N ESCORADA,  MAT 1A, PROF. DE 1,5 A 3M, C/T ATE 200m","ESCAVAÇÃO VALA, MAT. DE 1A, PROF. 2-3m, C/T ATE 200m","COBERTURA COM TELHA DE FIBROCIMENTO ESTRUTURAL LARGURA ÚTIL 49CM OU 44CM, INCLUSO ACESSÓRIOS DE FIXAÇÃO E VEDAÇÃO"]
["ESCAV MEC.VALA N ESCORADA,  MAT 1A, PROF. ATE 1,5M, C/T ATE 200m","ESCAVAÇÃO VALA, MAT. DE 1A, PROF. ATE 1m, C/T ATE 200m","COBERTURA COM TELHA DE FIBROCIMENTO ESTRUTURAL LARGURA ÚTIL 49CM OU 44CM, INCLUSO ACESSÓRIOS DE FIXAÇÃO E VEDAÇÃO"]
["ESCAVAÇÃO MEC. VALA N ESCORADA, MAT. DE 2A, PROF. 1-2m, C/T ATE 1000m","ESCAVAÇÃO VALA, MAT. DE 2A, PROF. 1-2m, C/T ATE 1000m","COLCHAO DE AREIA, INCLUSIVE MAO-DE-OBRA DE ESPALHAMENTO, TRANSPORTE COM CARRO DE MAO E FORNECIMENTO COMERCIAL"]
["ESCAVAÇÃO MEC. VALA N ESCORADA, MAT. DE 2A, PROF. 2-3m, C/T ATE 1000m","ESCAVAÇÃO VALA, MAT. DE 2A, PROF. 2-3m, C/T ATE 1000m","COMPORTA ENSECADEIRA EM 1 PAINEL DE AÇO DE 1420x1380mm"]
["ESCAVAÇÃO  MEC. VALA N ESCORADA, MAT. DE 3A, C/T ATE 1000m","ESCAVAÇÃO VALA, MAT. DE 3A, PROF. 1-2m, C/T ATE 1000m","COMPORTA ENSECADEIRA EM 2 PAINEIS DE AÇO DE 1320x900mm"]
[null,"ESCAVAÇÃO VALA, MAT. DE 3A, PROF. 2-3m, C/T ATE 1000m","COMPORTA PLANA CIRCULAR C/PEDESTAL, DN=200MM - MOTORIZADA"]
[null,"ESQUADRIAS DE ALUMÍNIO COM VIDRO","COMPORTA PLANA CIRCULAR C/PEDESTAL, DN=300MM - MOTORIZADA"]
["FORMA MADEIRA COMP RESINADA 12MM P/ESTRUTURA REAPROV 2 VEZES - CORTE/MONTAGEM/ESCORAMENTO/DESFORMA","FORMA PARA ESTRUTURAS","COMPORTA PLANA CIRCULAR C/PEDESTAL, DN=400MM - MOTORIZADA"]
["FORMA PINHO 3A P/CONCRETO EM FUNDAÇÃO S/REAPROVEITAMENTO - CORTE/MONTAGEM/ESCORAMENTO/DESFORMA, NÃO INCLUÍDO DESMOLDANTE","FORMA PARA FUNDAÇÕES","COMPORTA PLANA CIRCULAR C/PEDESTAL, DN=700MM - MOTORIZADA"]
["estes itens serão desmembrados conforme a lista de material de aterramento de cada Estação","FORNEC. E INSTAL. CABO NU COBRE, ENTERRADO, PARA ATERRAMENTO","COMPORTA PLANA CIRCULAR C/PEDESTAL, DN=800MM - MOTORIZADA"]
[null,"FORNEC. E INSTAL. CONEXÃO APARAFUS., CABO COBRE, P/ATERRAMENTO","COMPORTA PLANA QUADRADA C/PEDESTAL 1000X1000MM"]
[null,"FORNEC. E INSTAL. HASTE ATERRAMENTO DIAM. 3/4\", 3M ","COMPORTA SETOR 1,10X1,90 - RAIO=2,00M COM. HIDRAUL. - COMPLETA"]
["FORNECIMENTO/ASSENTAMENTO DE MANTA GEOTEXTIL RT-31 (ANT OP-60) BIDIM","FORNECIMENTO E COLOCAÇÃO DE BIDIM OP-30","COMPORTA SETOR 1,20X1,50 - RAIO=1,50M COM. HIDRAUL. - COMPLETA"]
["COLCHAO DE AREIA, INCLUSIVE MAO-DE-OBRA DE ESPALHAMENTO, TRANSPORTE COM CARRO DE MAO E FORNECIMENTO COMERCIAL","FORNECIMENTO E EXECUÇÃO DE LEITO DE AREIA","CONCRETO 1:4:8, CONCRETO MAGRO, C/ BRITA 1 E 2, C/BETONEIRA"]
["GUARDA-CORPO EM TUBO DE ACO GALVANIZADO 1 1/2\"","GUARDA-CORPO METÁLICO - FORNEC. E INSTAL.","CONCRETO FCK= 15,0 MPA ( 1: 2,5:3) , INCLUIDO PREPARO MECANICO, LANÇAMENTO E ADENSAMENTO."]
[null,"INSTALAÇÕES HIDROSANITARIAS - INCL. APARELHOS E PEÇAS SANITÁRIAS - ESTAÇÕES DE BOMBEAMENTO","CONCRETO USINADO, IMPORTADO, ESTRUTURAL FCK=20MPA INCLUS. TRANSPORTE HORIZONTAL ATÉ 20M (PROD. 2M3/H) EM CARRINHOS, ADENSAMENTO E ACABAMENTO"]
["RESERVATÓRIO DÁGUA DE FIBROCIMENTO CILÍNDRICO OU RETANGULAR, CAPACIDADE 1.000L - FORNECIMENTO E COLOCAÇÃO ( EXCLUSIVE TUBULAÇÕES E BOIA)",null,"Conector grampo de encaixe tipo KVS26 - Ref.: Burndy"]
["BANCA (TAMPO) DE MARMORE SINTETICO 120X60CM COM CUBA, VALVULA EM PLASTICO BRANCO 1\", SIFAO PLASTICO TIPO COPO 1\" E TORNEIRA CROMADA LONGA 1/2\" OU 3/4\" PARA PIA PADRAO POPULAR - FORNECIMENTO E INSTALACAO",null,"Conector para fixação de condutor em superfície plana tipo K2C23 Ref.: Burndy"]
["LAVATORIO EM LOUCA BRANCA, SEM COLUNA PADRAO POPULAR, COM TORNEIRA CROMADA POPULAR , SIFAO,VALVULA E ENGATE PLASTICO",null,"Conector para superfícies planas 16-70 mm2 tipo GB26 - ref.: Burndy"]
["PONTO DE AGUA FRIA PVC 3/4\" - MEDIA 5,00M DE TUBO DE PVC ROSCAVEL AGUA FRIA 3/4\" E 2 JOELHOS DE PVC ROSCAVEL 90GRAUS AGUA FRIA 3/4\" - FORNECIMENTO E INSTALACAO",null,"Conector terminal cabo/barra 25-35 mm2 tipo QAIC-B - Ref.: Burndy"]
["CHUVEIRO PLASTICO BRANCO SIMPLES - FORNECIMENTO E INSTALACAO",null,"CONEXÕES DE FO.FO. PARA AS TOMADAS - DN=200MM"]
["TUBO PVC ESGOTO JS PREDIAL DN 40MM, INCLUSIVE CONEXOES - FORNECIMENTO E INSTALACAO",null,"CONEXÕES DE FO.FO. PARA AS TOMADAS - DN=300MM"]
["TUBO PVC ESGOTO PREDIAL DN 50MM, INCLUSIVE CONEXOES - FORNECIMENTO E INSTALACAO",null,"CONEXÕES DE FO.FO. PARA AS TOMADAS - DN=400MM"]
["VASO SANITARIO SIFONADO LOUÇA BRANCA PADRAO POPULAR, COM CONJUNTO PARA FIXAÇAO PARA VASO SANITÁRIO COM PARAFUSO, ARRUELA E BUCHA - FORNECIMENTO E INSTALACAO",null,"CONEXÕES DE FO.FO. PARA AS TOMADAS - DN=700MM"]
["TUBO PVC ESGOTO PREDIAL DN 100MM, INCLUSIVE CONEXOES - FORNECIMENTO E INSTALACAO",null,"CONEXÕES DE FO.FO. PARA AS TOMADAS - DN=800MM"]
["RALO SECO DE PVC 100X100MM SIMPLES - FORNECIMENTO E INSTALACAO",null,"CONEXÕES E PEÇAS ESPECIAIS DA TUBUL TR04"]
["RALO SIFONADO DE PVC 100X100MM SIMPLES - FORNECIMENTO E INSTALACAO",null,"CONEXÕES E PEÇAS ESPECIAIS DO SIFÃO SF02"]
["CAIXA DE INSPEÇÃO EM ALVENARIA DE TIJOLO MACIÇO 60X60X60CM, REVESTIDA INTERNAMENTO COM BARRA LISA (CIMENTO E AREIA, TRAÇO 1:4) E=2,0CM, COM TAMPA PRÉ-MOLDADA DE CONCRETO E FUNDO DE CONCRETO 15MPA TIPO C - ESCAVAÇÃO E CONFECÇÃO",null,"CX DE VÁLVULA/VISITAS/ENVELOP./DESCARGA DE FUNDO (SIFÃO SF02)"]
["FOSSA SEPTICA EM ALVENARIA DE TIJOLO CERAMICO MACICO DIMENSOES EXTERNAS 1,90X1,10X1,40M, 1.500 LITROS, REVESTIDA INTERNAMENTE COM BARRA LISA, COM TAMPA EM CONCRETO ARMADO COM ESPESSURA 8CM",null,"DESMATAMENTO/LIMPEZA TERRENOS C/EQUIP MECAN(TRATOR:1000M2/H)"]
["SUMIDOURO EM ALVENARIA DE TIJOLO CERAMICO MACIÇO DIAMETRO 1,40M E ALTURA 5,00M, COM TAMPA EM CONCRETO ARMADO DIAMETRO 1,60M E ESPESSURA 10CM",null,"Eletroduto de aço galvanizado com luva em uma das extremidades e protetor de rosca na outra diâm. 1” x 3000 mm Ref.: Mannesmann"]
[null,"INSTALAÇÕES HIDROSANITARIAS - INCL. APARELHOS E PEÇAS SANITÁRIAS - EB05","EMBOCO PAULISTA (MASSA UNICA) TRACO 1:1:6 (CIMENTO, CAL E AREIA), ESPESSURA 2,0CM, PREPARO MANUAL"]
[null,"INSTALAÇÕES HIDROSANITARIAS - INCL. APARELHOS E PEÇAS SANITÁRIAS - EN01","ENROCAMENTO MANUAL C/ PEDRA JOGADA-E/C/T/D ATE 1000m"]
["JANELA METÁLICA, TIPO BASCULANTE COM TELA DE PROTEÇÃO CONTRA ROEDORES","JANELA METÁLICA TIPO BASCULANTE","ESC. MEC. CARGA TRANSP. MAT 1ª CAT DMT 50 A 200M C/E"]
[null,"JUNTA DE DIL. C/ SEL. A BASE DE POLIUR. MONOC. (1,5cm x 1,5cm)","ESC. MEC. CARGA TRANSP. MAT 2A CAT DMT 800 A 1000M C/E"]
[" JUNTA DILATACAO ELASTICA (PVC) P/ CONCRETO (FUGENBAND) O-220/6 PRESSAO ATE 30 MCA","JUNTA TIPO FUGENBAND O-22","ESC. MEC. CARGA TRANSP. MAT 3A CAT DMT 800 A 1000M"]
["MOMENTO EXTRAORDINÁRIO DE TRANSP. DE MAT. DE 1A E/OU 2A","MOMENTO EXTRAORDINÁRIO DE TRANSP. DE MAT. DE 1A E/OU 2A","ESCADA TIPO MERINHEIRO COM MONTANTES EM CHAPA 3/8\" (9,53MM) E DEGRAUS EM TUBO DE AÇO 1 1/2\" COM LARGURA DE 45CM E DISTANCIA EIXO A EIXO DE 30CM"]
["MOMENTO EXTRAORDINÁRIO DE TRANSPORTE DE MAT. DE 3A","MOMENTO EXTRAORDINÁRIO DE TRANSPORTE DE MAT. DE 3A","ESCAV MEC.VALA N ESCORADA,  MAT 1A, PROF. ATE 1,5M, C/T ATE 200m"]
[null,"PERFIL METÁLICO COLOCADO COMO GUIA DE TRANSFORMADORES","ESCAV MEC.VALA N ESCORADA,  MAT 1A, PROF. DE 1,5 A 3M, C/T ATE 200m"]
["PINTURA LATEX ACRILICA AMBIENTES INTERNOS/EXTERNOS, DUAS DEMAOS","PINTURA A BASE DE TINTA LÁTEX - 2 DEMÃOS","ESCAVAÇÃO  MEC. VALA N ESCORADA, MAT. DE 3A, C/T ATE 1000m"]
["PINTURA VERNIZ EM MADEIRA 2 DEMAOS","PINTURA A BASE DE VERNIZ POLIURETANO - 2 DEMÃOS","ESCAVAÇÃO MEC. VALA N ESCORADA, MAT. DE 2A, PROF. 2-3m, C/T ATE 1000m"]
["PISO CERAMICO GRES 1A PEI-4 30X30CM, ASSENTADO COM ARGAMASSA TRACO 1:4 (CIMENTO E AREIA) PREPARO MANUAL, COM REJUNTE EM CIMENTO COMUM","PISO CERÂMICO","ESCAVAÇÃO MECÂNICA DE VALA EM MAT.1A CAT."]
["PISO CIMENTADO LISO DESEMPENADO, TRACO 1:3 (CIMENTO E AREIA), ESPESSURA 2,0CM, PREPARO MANUAL","PISO CIMENTADO LISO","ESCAVACAO, CARGA E TRANSPORTE DE MATERIAL DE 1A CATEGORIA, CAMINHO DE SERVICO REVESTIMENTO PRIMARIO, COM ESCAVADEIRA HIDRAULICA E CAMINHAO BASCULANTE 6 M3, DMT 800 ATE 1.000 M"]
["PISO DE BORRACHA PASTILHADO, ESPESSURA 7MM, ASSENTADO COM ARGAMASSA TRACO 1:3 (CIMENTO E AREIA)","PISO DE BORRACHA PLURIGOMA, LISO","ESTAÇÃO DE BOMBEAMENTO - EB05 (C/SUBESTAÇÃO)"]
[null,"PORTA DE MADEIRA LISA, INCLUSIVE FERRAGENS","ESTRUTURA DE ENTRADA DO CANAL/RESERVATÓRIO RS25"]
[null,"PORTA METÁLICA, INCLUSIVE FERRAGENS","ESTRUTURA DE ENTRADA DO SIFÃO SF02"]
[null,"PORTÃO C/ARMAÇÃO DE FERRO E TELA TIPO QUADRADA","ESTRUTURA DE SAÍDA DO SIFÃO SF02"]
[null,"PORTÃO DE ALUMÍNIO LISO","EXTRAVASOR - CANAL SECUNDÁRIO - CS04 (EX-17)"]
["REATERRO DE VALAS COMPACTACAO MECANICA, C/CONTR.DO GC >= 95% DO PN(C/COMPACTADOR SOLOS C/ PLACA VIBRATORIA MOTOR DIESEL/GASOLINA 7 A 10 HP)","REATERRO COMPACTADO MECANICAMENTE, C/ CONTROLE","EXTRAVASOR DO CANAL/RESERVATÓRIO RS25"]
["REATERRO DE VALA/CAVA SEM CONTROLE DE COMPACTAÇÃO , UTILIZANDO RETRO-ESCAVADEIRA E COMPACTACADOR VIBRATORIO COM MATERIAL REAPROVEITADO","REATERRO COMPACTADO MECANICAMENTE, S/ CONTROLE","EXTRAVASOR EX11 DO CANAL PRINCIPAL - TRECHO \"F\""]
["EMBOCO PAULISTA (MASSA UNICA) TRACO 1:1:6 (CIMENTO, CAL E AREIA), ESPESSURA 2,0CM, PREPARO MANUAL","REBOCO PAULISTA (MASSA ÚNICA)","EXTRAVASOR EX12 DO CANAL PRINCIPAL - TRECHO \"F\""]
["REGULARIZAÇÃO DE TALUDES","REGULARIZAÇÃO DE TALUDES (RESERVATÓRIOS)","EXTREMIDADE FO.FO., FLANGE E BOLSA, PN10, J.ELAST. DN=300MM"]
["REGULARIZAÇÃO DO SUBLEITO","REGULARIZAÇÃO DO SUBLEITO","Fazer Composição"]
["AZULEJO 1A 15X15CM FIXADO ARGAMASSA COLANTE, REJUNTAMENTO COM CIMENTO BRANCO","REVESTIMENTO C/ AZULEJO BRANCO, DE 1A","FORMA MADEIRA COMP RESINADA 12MM P/ESTRUTURA REAPROV 2 VEZES - CORTE/MONTAGEM/ESCORAMENTO/DESFORMA"]
["CONCRETO FCK= 15,0 MPA ( 1: 2,5:3) , INCLUIDO PREPARO MECANICO, LANÇAMENTO E ADENSAMENTO.","REVESTIMENTO CONCRETO SIMPLES PARA CANAIS FCK=>15 MPa","FORMA PINHO 3A P/CONCRETO EM FUNDAÇÃO S/REAPROVEITAMENTO - CORTE/MONTAGEM/ESCORAMENTO/DESFORMA, NÃO INCLUÍDO DESMOLDANTE"]
["MANTA TERMOPLÁSTICA, PEAD, GEOMEMBRANA TEXTURIZADA, E = 1,00 MM, NBR 15352","REVESTIMENTO EM GEOMEMBRANA DE PEAD, ESP=1mm, TEXT. NAS 2 FACES","FORNEC. E INSTAL. CABO NU COBRE, ENTERRADO, PARA ATERRAMENTO "]
["ESCAVACAO, CARGA E TRANSPORTE DE MATERIAL DE 1A CATEGORIA, CAMINHO DE SERVICO REVESTIMENTO PRIMARIO, COM ESCAVADEIRA HIDRAULICA E CAMINHAO BASCULANTE 6 M3, DMT 800 ATE 1.000 M","REVESTIMENTO PRIMÁRIO C/ MAT. DE JAZIDA, C/T ATE 1000m","FORNEC. E INSTAL. CONEXÃO APARAFUS., CABO COBRE, P/ATERRAMENTO"]
[" SOLEIRA DE CIMENTO ALISADO, LARGURA 15CM, COM IMPERMEABILIZANTE","RODAPÉ DE CIMENTO LISO COM 15 cm DE ALTURA","FORNEC. E INSTAL. HASTE ATERRAMENTO DIAM. 3/4\", 3M "]
[null,"TAMPAS E GRADES METÁLICAS","FORNECIMENTO - HIDROMECÂNICOS"]
["TELADO COM ARMAÇÃO DE FERRO E TELA DE ARAME GALV FIO 12 BWG (2,77MM) MALHA 2\" (5x5cm) QUADRADA INCLUSIVE PINTURA","TELADO COM REQUADRO DE FERRO","FORNECIMENTO DE MATERIAL ELÉTRICO PARA ATERRAMENTO"]
["TELADO COM REQUADRO DE FERRO E TELA DE ARAME GALV FIO 12 BWG (2,77MM) MALHA 2\" (5x5cm) QUADRADA INCLUSIVE PINTURA",null,"FORNECIMENTO DE TUBOS DE FOFO PONTA/FLANGE P/TOMADAS D'ÁGUA"]
["FORNECIMENTO E ASSENTAMENTO DE TUBO DE CONCRETO ARMADO CLASSE PA-2 DN 800MM, JUNTA EM ARGAMASSA 1:3 CIMENTO:AREIA","TUBO DE CONCRETO ARMADO CA-2, DIAM. 0,80M-FORNECIMENTO E ASSENT.","FORNECIMENTO E ASSENTAMENTO DE TUBO DE CONCRETO ARMADO CLASSE PA-2 DN 1000MM, JUNTA EM ARGAMASSA 1:3 CIMENTO:AREIA"]
["FORNECIMENTO E ASSENTAMENTO DE TUBO DE CONCRETO ARMADO CLASSE PA-2 DN 1000MM, JUNTA EM ARGAMASSA 1:3 CIMENTO:AREIA","TUBO DE CONCRETO ARMADO CA-2, DIAM. 1,00M-FORNECIMENTO E ASSENT.","FORNECIMENTO E ASSENTAMENTO DE TUBO DE CONCRETO ARMADO CLASSE PA-2 DN 1200MM, JUNTA EM ARGAMASSA 1:3 CIMENTO:AREIA"]
["FORNECIMENTO E ASSENTAMENTO DE TUBO DE CONCRETO ARMADO CLASSE PA-2 DN 1200MM, JUNTA EM ARGAMASSA 1:3 CIMENTO:AREIA","TUBO DE CONCRETO ARMADO CA-2, DIAM. 1,20M-FORNECIMENTO E ASSENT.","FOSSA SEPTICA EM ALVENARIA DE TIJOLO CERAMICO MACICO DIMENSOES EXTERNA\nS 1,90X1,10X1,40M, 1.500 LITROS, REVESTIDA INTERNAMENTE COM BARRA LISA, COM TAMPA EM CONCRETO ARMADO COM ESPESSURA 8CM"]
[null,null,"GRADE DE BARRAS FIXA - 1760x1830mm"]
[null,null,"Grampo de aterramento haste/cabo - ø 3/4 \" -70mm² - tipo GP6426"]
[null,null,"GUARDA-CORPO EM TUBO DE ACO GALVANIZADO 1 1/2\""]
[null,null,"Haste de aterramento tipo “copperweld” diâm. 3/4” x 1500 mm - Ref.: Burndy"]
[null,null,"INSTALAÇÕES HIDROSANITARIAS - INCL. APARELHOS E PEÇAS SANITÁRIAS "]
[null,null,"JANELA EM ALUMÍNIO ANODIZADO NA COR NATURAL, EM 1 FOLHA, TIPO MAXIM-AR,COM VIDRO CRISTAL 4mm 115x60cm"]
[null,null,"JANELA EM ALUMÍNIO ANODIZADO NA COR NATURAL, EM 3 FOLHAS TIPO MAXIM-AR, COM VIDRO DE CRISTAL 4mm DE 330x120cm "]
[null,null,"JANELA EM ALUMÍNIO ANODIZADO NA COR NATURAL, EM 3 FOLHAS, TIPO MAXIM-AR,COM VIDRO CRISTAL 4mm 327.5x120cm"]
[null,null,"JANELA METÁLICA, TIPO BASCULANTE 100x120cm COM TELA DE PROTEÇÃO CONTRA ROEDORES"]
[null,null,"JANELA METÁLICA, TIPO BASCULANTE 100x80cm COM TELA DE PROTEÇÃO CONTRA ROEDORES"]
[null,null,"JUNTA DE DIL. C/ SEL. A BASE DE POLIUR. MONOC. (1,5cm x 1,5cm)"]
[null,null,"JUNTA DE MONTAGEM, DN=800MMM"]
[null,null,"JUNTA DILATACAO ELASTICA (PVC) P/ CONCRETO (FUGENBAND) O-220/6 PRESSAO ATE 30 MCA"]
[null,null,"JUNTA DRESSER, ESTILO 38, DN=700MM"]
[null,null,"JUNTA DRESSER, ESTILO 38, DN=800MM"]
[null,null,"JUNTA GIBAULT DN=200MM"]
[null,null,"JUNTA GIBAULT DN=300MM"]
[null,null,"JUNTA GIBAULT DN=400MM"]
[null,null,"LAVATORIO EM LOUCA BRANCA, SEM COLUNA PADRAO POPULAR, COM TORNEIRA CROMADA POPULAR , SIFAO,VALVULA E ENGATE PLASTICO"]
[null,null,"MANTA TERMOPLÁSTICA, PEAD, GEOMEMBRANA TEXTURIZADA, E = 1,00 MM, NBR 15352"]
[null,null,"Mistura despolarizante/redutora “ATERRAGEL”"]
[null,null,"MOMENTO EXTRAORDINÁRIO DE TRANSP. DE MAT. DE 1A E/OU 2A"]
[null,null,"MOMENTO EXTRAORDINÁRIO DE TRANSPORTE DE MAT. DE 3A"]
[null,null,"MONT. COMP.PLANA, C/PEDESTAL E VOLANTE, 1,00 X 1,00M"]
[null,null,"MONT. TUBO PVC RIGIDO, J/E, DEFOFO, DIAM.300MM"]
[null,null,"MONTAGEM - HIDROMECÂNICOS"]
[null,null,"MONTAGEM ATERRAMENTO"]
[null,null,"MONTAGEM COMPORTA TIPO SEGMENTO"]
[null,null,"MONTAGEM DE COMP. PLANA C/PEDESTAL DN=200MM - MOTORIZADA"]
[null,null,"MONTAGEM DE COMP. PLANA C/PEDESTAL DN=300MM - MOTORIZADA"]
[null,null,"MONTAGEM DE COMP. PLANA C/PEDESTAL DN=400MM - MOTORIZADA"]
[null,null,"MONTAGEM DE COMPORTA PLANA C/PEDESTAL DN=700MM - MOTORIZADA"]
[null,null,"MONTAGEM DE COMPORTA PLANA C/PEDESTAL DN=800MM - MOTORIZADA"]
[null,null,"MONTAGEM DE GRADE DE PROTEÇÃO"]
[null,null,"MONTAGEM DE REGISTRO DE GAVETA COM FLANGES FO.FO. DN 100"]
[null,null,"MONTAGEM DE TALHA MANUAL C/MONOVIA CAP=1,0TON"]
[null,null,"MONTAGEM DE VÁLVULA DE ADMISSÃO DE AR, DN=100MM"]
[null,null,"MONTAGEM DE VÁLVULA TIPO BORBOLETA DN=800MM C/ATUADOR"]
[null,null,"MONTAGEM DE VENTOSA DE TRIPLICE FUNÇÃO DN=150"]
[null,null,"MONTAGEM REGISTRO DE GAVETA COM FLANGES FO.FO. DN=150MM"]
[null,null,"MONTAGEM REGISTRO DE GAVETA COM FLANGES FO.FO. DN=300MM"]
[null,null,"MONTAGEM REGISTRO GAVETA FO.FO. DN 200"]
[null,null,"MONTAGEM TUBO FO.FO., P&F, PN-10, DIAM. 200MM (TOMADAS)"]
[null,null,"MONTAGEM TUBO FO.FO., P&F, PN-10, DIAM. 300MM (TOMADAS)"]
[null,null,"MONTAGEM TUBO FO.FO., P&F, PN-10, DIAM. 400MM (TOMADAS)"]
[null,null,"MONTAGEM TUBO FO.FO., P&F, PN-10, DIAM. 700MM (TOMADAS)"]
[null,null,"MONTAGEM TUBO FO.FO., P&F, PN-10, DIAM. 800MM (TOMADAS)"]
[null,null,"MONTAGEM TUBUL. E PECAS DE AÇO CARBONO DN=1200MM C/TESTE HIDROST."]
[null,null,"OBRAS CIVIS"]
[null,null,"PEDRA BRITADA BICA CORRIDA (NÃO CLASSIFICADA)"]
[null,null,"PERFIL METÁLICO COLOCADO COMO GUIA DE TRANSFORMADORES"]
[null,null,"PINTURA LATEX ACRILICA AMBIENTES INTERNOS/EXTERNOS, DUAS DEMAOS"]
[null,null,"PINTURA VERNIZ EM MADEIRA 2 DEMAOS"]
[null,null,"PISO CERAMICO GRES 1A PEI-4 30X30CM, ASSENTADO COM ARGAMASSA TRACO 1:4 (CIMENTO E AREIA) PREPARO MANUAL, COM REJUNTE EM CIMENTO COMUM"]
[null,null,"PISO CIMENTADO LISO DESEMPENADO, TRACO 1:3 (CIMENTO E AREIA), ESPESSURA 2,0CM, PREPARO MANUAL"]
[null,null,"PISO DE BORRACHA PASTILHADO, ESPESSURA 7MM, ASSENTADO COM ARGAMASSA TRACO 1:3 (CIMENTO E AREIA)"]
[null,null,"PONTO DE AGUA FRIA PVC 3/4\" - MEDIA 5,00M DE TUBO DE PVC ROSCAVEL AGUA FRIA 3/4\" E 2 JOELHOS DE PVC ROSCAVEL 90GRAUS AGUA FRIA 3/4\" - FORNECIMENTO E INSTALACAO"]
[null,null,"PORTA DE MADEIRA EM CEDRO LISO INTERNO/EXTERNO DE 60x210cm, COM PINTURA À ÓLEO"]
[null,null,"PORTA METÁLICA 80x210cm"]
[null,null,"PORTÃO COM ARMAÇÃO DE FERRO E TELA TIPO QUADRADA DE 12mm BITOLA 12 BWG, 260x284cm EM 2 FOLHAS COM PINTURA ELETROSTÁTICA NA COR GRAFITE"]
[null,null,"PORTÃO COM ARMAÇÃO DE FERRO E TELA TIPO QUADRADA DE 12mm BITOLA 12 BWG, 80x210cm COM PINTURA ELETROSTÁTICA NA COR GRAFITE "]
[null,null,"PORTÃO EM CHAPA DE ALUMÍNIO ANODIZADO NA COR NATURAL, COM 4 FOLHAS, DE 300x294cm "]
[null,null,"PREPARO MECANICO E LANÇAMENTO MANUAL DE CONCRETO CICLÓPICO 1:3:5, COM 30% DE PEDRA DE MÃO, CAVAS ATÉ 80CM DE LARGURA."]
[null,null,"PROTEÇÃO CATÓDICA EM TUBULAÇÃO DE AÇO"]
[null,null,"RALO SECO DE PVC 100X100MM SIMPLES - FORNECIMENTO E INSTALACAO"]
[null,null,"RALO SIFONADO DE PVC 100X100MM SIMPLES - FORNECIMENTO E INSTALACAO"]
[null,null,"REATERRO DE VALA/CAVA SEM CONTROLE DE COMPACTAÇÃO , UTILIZANDO RETRO-ESCAVADEIRA E COMPACTACADOR VIBRATORIO COM MATERIAL REAPROVEITADO"]
[null,null,"REATERRO DE VALAS COMPACTACAO MECANICA, C/CONTR.DO GC >= 95% DO PN(C/COMPACTADOR SOLOS C/ PLACA VIBRATORIA MOTOR DIESEL/GASOLINA 7 A 10 HP)"]
[null,null,"REGULARIZAÇÃO DE TALUDES"]
[null,null,"REGULARIZAÇÃO DO SUBLEITO"]
[null,null,"RESERVATÓRIO DÁGUA DE FIBROCIMENTO CILÍNDRICO OU RETANGULAR, CAPACIDADE 1.000L - FORNECIMENTO E COLOCAÇÃO ( EXCLUSIVE TUBULAÇÕES E BOIA)"]
[null,null,"RODAPÉ DE CIMENTO LISO COM 15 cm DE ALTURA"]
[null,null,"SIFÃO SF02 - ITENS GLOBAIS"]
[null,null,"SISTEMA VIÁRIO"]
[null,null,"SUMIDOURO EM ALVENARIA DE TIJOLO CERAMICO MACIÇO DIAMETRO 1,40M E ALTURA 5,00M, COM TAMPA EM CONCRETO ARMADO DIAMETRO 1,60M E ESPESSURA 10CM"]
[null,null,"TALHA MANUAL C/MONOVIA CAP=1 TON - COMPLETA"]
[null,null,"TAMPAS E GRADES METÁLICAS"]
[null,null,"TELADO COM ARMAÇÃO DE FERRO EM TELA TIPO QUADRADA DE 2\", 140x150cm, COM PINTURA ELETROSTÁSTICA NA COR GRAFITE "]
[null,null,"TELADO COM ARMAÇÃO DE FERRO EM TELA TIPO QUADRADA DE 2\", 390x150cm, COM PINTURA ELETROSTÁSTICA NA COR GRAFITE"]
[null,null,"TELADO COM ARMAÇÃO DE FERRO EM TELA TIPO QUADRADA DE 2\", 60x150cm, COM PINTURA ELETROSTÁSTICA NA COR GRAFITE"]
[null,null,"TELADO COM REQUADRO DE FERRO 337.5x60cm (TELA TIPO QUADRADA DE 12mm BITOLA 12 BWG), COM PINTURA ELETROSTÁTICA NA COR GRAFITE"]
[null,null,"TELADO COM REQUADRO DE FERRO 377.5x60cm (TELA TIPO QUADRADA DE 12mm BITOLA 12 BWG), COM PINTURA ELETROSTÁTICA NA COR GRAFITE"]
[null,null,"TOMADA D'ÁGUA TA50 - CANAL SECUNDÁRIO CS04"]
[null,null,"TOMADA D'ÁGUA TA51 DO CANAL PRINCIPAL - TRECHO \"F\""]
[null,null,"TOMADAS D'ÁGUA- CANAL SECUNDÁRIO - CS04 (TS45,TS46,TS47,TS48eTS-48a)"]
[null,null,"TOMADAS D'ÁGUA TA52 E TA53 DO CANAL/RESERVATÓRIO RS25"]
[null,null,"TUBO PVC ESGOTO JS PREDIAL DN 40MM, INCLUSIVE CONEXOES - FORNECIMENTO E INSTALACAO"]
[null,null,"TUBO PVC ESGOTO PREDIAL DN 100MM, INCLUSIVE CONEXOES - FORNECIMENTO E INSTALACAO"]
[null,null,"TUBO PVC ESGOTO PREDIAL DN 50MM, INCLUSIVE CONEXOES - FORNECIMENTO E INSTALACAO"]
[null,null,"TUBO PVC RIGIDO, J/E, DEFOFO, DIAM 300MM"]
[null,null,"TUBOS DE AÇO CARBONO DN=1200MM C/TRATAMENTO"]
[null,null,"TUBULAÇÃO DE RECALQUE - TR04"]
[null,null,"VALETAS E SARJETAS"]
[null,null,"VÁLV. ADMISSÃO DE AR, DN=100MM, PN-10"]
[null,null,"VÁLV. GAVETA ACION. DIRETO VOLANTE, PN-10, DN= 150MM"]
[null,null,"VÁLV. GAVETA ACION. DIRETO VOLANTE, PN-10, DN= 300MM"]
[null,null,"VÁLV. GAVETA ACION. DIRETO VOLANTE, PN-10, DN=100MM"]
[null,null,"VÁLV. GAVETA ACION. DIRETO VOLANTE, PN-10, DN=200MM"]
[null,null,"VÁLVULA BORBOLETA C/ATUADOR ELÉTRICO DN=800MM PN-10"]
[null,null,"VASO SANITARIO SIFONADO LOUÇA BRANCA PADRAO POPULAR, COM CONJUNTO PARA FIXAÇAO PARA VASO SANITÁRIO COM PARAFUSO, ARRUELA E BUCHA - FORNECIMENTO E INSTALACAO"]
[null,null,"VENTOSA DE TRÍPLICE FUNÇÃO, FOFO, DN=150MM"]
[null,null,"VISITA EM AÇO CARBONO"]

{"sheet":"PLAN1","index":5,"n_rows":513,"n_cols":16,"rows_kept":513,"cut":false,"hidden":true,"merged":[]}
["1.1",null,null,"OBRAS CIVIS"]
[null,"C.P.U.006",null,"ESCAV MEC.VALA N ESCORADA,  MAT 1A, PROF. ATE 1,5M, C/T ATE 200m","m³",180,12.95,15.28,2750.4]
[null,"C.P.U.005",null,"ESCAV MEC.VALA N ESCORADA,  MAT 1A, PROF. DE 1,5 A 3M, C/T ATE 200m","m³",null,14.52,17.13,0]
["1.1.2","73964/005","SINAPI","REATERRO DE VALA/CAVA SEM CONTROLE DE COMPACTAÇÃO , UTILIZANDO RETRO-ESCAVADEIRA E COMPACTACADOR VIBRATORIO COM MATERIAL REAPROVEITADO","m³",12,6.02,7.1,85.2]
["1.1.3","C.P.U.010",null,"MOMENTO EXTRAORDINÁRIO DE TRANSP. DE MAT. DE 1A E/OU 2A","m³ x km",700,0.96940128000000003,1.1399999999999999,798]
["1.1.4","73998/006","sinapi","ALVENARIA DE BLOCOS DE CONCRETO ESTRUTURAL 19X19X39CM, ESPESSURA 19CM, ASSENTADOS COM ARGAMASSA TRACO 1:0,25:4 (CIMENTO, CAL E AREIA)","m²",70,59.26,69.930000000000007,4895.1000000000004]
["1.1.5","74137/003","SINAPI ","CONCRETO USINADO, IMPORTADO, ESTRUTURAL FCK=20MPA INCLUS. TRANSPORTE HORIZONTAL ATÉ 20M (PROD. 2M3/H) EM CARRINHOS, ADENSAMENTO E ACABAMENTO","m³",62,334.42,394.62,24466.44]
["1.1.6","73936/011 ","sinapi","CONCRETO 1:4:8, CONCRETO MAGRO, C/ BRITA 1 E 2, C/BETONEIRA","m³",13,252.89,298.41000000000003,3879.33]
[null,"00000031","SINAPI","ACO CA-50 1/2\" (12,70 MM)","kg",1450,3.94,4.6500000000000004,6742.5]
[null,"00000032","SINAPI","ACO CA-50 1/4\" (6,35 MM)","kg",197,4.57,5.39,1061.83]
[null,"00000034","SINAPI","ACO CA-50 3/8\" (9,52 MM)","kg",3578,4.0599999999999996,4.79,17138.62]
["1.1.8","74075/001","SINAPI","FORMA MADEIRA COMP RESINADA 12MM P/ESTRUTURA REAPROV 2 VEZES - CORTE/MONTAGEM/ESCORAMENTO/DESFORMA","m²",219,66.790000000000006,78.81,17259.39]
["1.1.9",73685,"sinapi","CIMBRAMENTO DE MADEIRA","m³",19,25.95,30.62,581.78]
["1.1.10","74199/001","sinapi","CHAPISCO RUSTICO TRACO 1:3 (CIMENTO E AREIA), ESPESSURA 2CM, PREPARO MANUAL","m²",65,23.62,27.87,1811.55]
["1.1.11","73927/006","SINAPI","EMBOCO PAULISTA (MASSA UNICA) TRACO 1:1:6 (CIMENTO, CAL E AREIA), ESPESSURA 2,0CM, PREPARO MANUAL","m²",65,16.489999999999998,19.46,1264.9000000000001]
["1.1.12","73954/002 ","SINAPI","PINTURA LATEX ACRILICA AMBIENTES INTERNOS/EXTERNOS, DUAS DEMAOS","m²",65,11.07,13.06,848.9]
["1.1.13",79466,"SINAPI","PINTURA VERNIZ EM MADEIRA 2 DEMAOS","m²",55,7.34,8.66,476.3]
["1.1.14","73922/003","SINAPI","PISO CIMENTADO LISO DESEMPENADO, TRACO 1:3 (CIMENTO E AREIA), ESPESSURA 2,0CM, PREPARO MANUAL","m²",38,23.94,28.25,1073.5,null,"quant.","largura","altura","área","a.total"]
[null,"C.P.U.019",null,"JANELA METÁLICA, TIPO BASCULANTE 100x120cm COM TELA DE PROTEÇÃO CONTRA ROEDORES","m²",2.4,240.91749999999999,284.27999999999997,682.27199999999993,null,2,1,1.2,1.2,2.4]
[null,"C.P.U.019",null,"JANELA METÁLICA, TIPO BASCULANTE 100x80cm COM TELA DE PROTEÇÃO CONTRA ROEDORES","m²",0.8,240.91749999999999,284.27999999999997,227.42399999999998,null,1,1,0.8,0.8,0.8,3.2]
[null,"00004938 ","SINAPI","PORTA METÁLICA 80x210cm","unid",3,319.2,376.66,1129.98,null,3,0.8,2.1,1.68,5.04]
["17.1.17",73634,"sinapi"," COBERTURA COM TELHA DE FIBROCIMENTO ESTRUTURAL LARGURA ÚTIL 49CM OU 44CM, INCLUSO ACESSÓRIOS DE FIXAÇÃO E VEDAÇÃO","m²",27,86.95,102.6,2770.2]
["17.1.18","74142/004","sinapi","CERCA COM MOURÕES DE CONCRETO, SEÇÃO \"T\" PONTA INCLINADA, 7,5X7,5CM, ESPAÇAMENTO DE 3M, CRAVADOS 0,5M, COM 11 FIOS DE ARAME FARPADO Nº14 CLASSE 250 - FORNEC E COLOC.","m",50,26.65,31.45,1572.5]
["1.1.17",73634,"sinapi"," COBERTURA COM TELHA DE FIBROCIMENTO ESTRUTURAL LARGURA ÚTIL 49CM OU 44CM, INCLUSO ACESSÓRIOS DE FIXAÇÃO E VEDAÇÃO","m²",27,86.95,102.6,2770.2]
["1.1.18","74142/004","sinapi","CERCA COM MOURÕES DE CONCRETO, SEÇÃO \"T\" PONTA INCLINADA, 7,5X7,5CM, ESPAÇAMENTO DE 3M, CRAVADOS 0,5M, COM 11 FIOS DE ARAME FARPADO Nº14 CLASSE 250 - FORNEC E COLOC.","m",50,26.65,31.45,1572.5]
["1.2",null,null,"FORNECIMENTO - HIDROMECÂNICOS"]
["1.2.1",null,null,"COMPORTA ENSECADEIRA EM 2 PAINEIS DE AÇO DE 1320x900mm","cj",2,null,0,0]
["1.2.2",null,null,"COMPORTA SETOR 1,10X1,90 - RAIO=2,00M COM. HIDRAUL. - COMPLETA","cj",1,null,0,0]
["1.3",null,null,"MONTAGEM - HIDROMECÂNICOS"]
["1.3.1",null,null,"MONTAGEM COMPORTA TIPO SEGMENTO","cj",1,null,0,0]
["2.0",null,null,"CANAL PRINCIPAL - TRECHO \"F\"",null,"R$",6288174.7720000008]
["2.1",null,null,"OBRAS CIVIS"]
["2.1.1","73859/001 ","SINAPI","DESMATAMENTO/LIMPEZA TERRENOS C/EQUIP MECAN(TRATOR:1000M2/H)","m²",300000,0.21,0.25,75000]
["2.1.2","C.P.U.010",null,"MOMENTO EXTRAORDINÁRIO DE TRANSP. DE MAT. DE 1A E/OU 2A","m³ x km",698230,0.96940128000000003,1.1399999999999999,795982.2]
["2.1.3","C.P.U.011",null,"MOMENTO EXTRAORDINÁRIO DE TRANSPORTE DE MAT. DE 3A","m³ x km",4500,1.182566,1.4,6300]
["2.1.4","2 S 04 001 00 ","sicro","ESCAVAÇÃO MECÂNICA DE VALA EM MAT.1A CAT.","m³",10248,4.6500000000000004,5.49,56261.52]
[null,"C.P.U.012",null,"REGULARIZAÇÃO DE TALUDES","m²",17534.8,0.24874000000000002,0.28999999999999998,5085.0919999999996]
["2.1.5","2 S 01 100 22","SICRO","ESC. MEC. CARGA TRANSP. MAT 1ª CAT DMT 50 A 200M C/E","m³",65604,4.1500000000000004,4.9000000000000004,321459.59999999998]
["2.1.6","2 S 01 101 26","SICRO","ESC. MEC. CARGA TRANSP. MAT 2A CAT DMT 800 A 1000M C/E","m³",396,7.5,8.85,3504.6]
["2.1.7","2 S 01 102 06","SICRO","ESC. MEC. CARGA TRANSP. MAT 3A CAT DMT 800 A 1000M","m³",1080,22.6,26.67,28803.599999999999]
["2.1.8","C.P.U.001",null,"ATERRO COMPACTADO MECANICAMICAMENTE EM CAMADAS DE 20CM, C/CONT., MAT. JAZIDA, C/T ATE 1000 m - 95% PN","m³",165384,17.23,20.329999999999998,3362256.72]
["2.1.9","C.P.U.002",null,"ATERRO COMPACTADO, EM CAMADA DE 20 CM  C/ CONTROLE.,  C/ REAPROV. DE MATERIAL (SOLOS COLAPSÍVEIS - 100% PN) C/T ATÉ 200 m","m³",64038,9.7200000000000006,11.47,734515.86]
["2.1.10",72829,"SINAPI","ESCAVACAO, CARGA E TRANSPORTE DE MATERIAL DE 1A CATEGORIA, CAMINHO DE SERVICO REVESTIMENTO PRIMARIO, COM ESCAVADEIRA HIDRAULICA E CAMINHAO BASCULANTE 6 M3, DMT 800 ATE 1.000 M","m³",1826,4.17,4.92,8983.92]
["2.1.11",73406,"SINAPI","CONCRETO FCK= 15,0 MPA ( 1: 2,5:3) , INCLUIDO PREPARO MECANICO, LANÇAMENTO E ADENSAMENTO.","m³",1166,374.09,441.43,514707.38]
["2.1.12",25871,"SINAPI","MANTA TERMOPLÁSTICA, PEAD, GEOMEMBRANA TEXTURIZADA, E = 1,00 MM, NBR 15352","m²",21846,14.56,17.18,375314.28]
["3.0",null,null,"EXTRAVASOR EX11 DO CANAL PRINCIPAL - TRECHO \"F\"",null,"R$",29940.83]
["3.1",null,null,"OBRAS CIVIS"]
[null,"C.P.U.006",null,"ESCAV MEC.VALA N ESCORADA,  MAT 1A, PROF. ATE 1,5M, C/T ATE 200m","m³",22,12.95,15.28,336.16]
[null,"C.P.U.005",null,"ESCAV MEC.VALA N ESCORADA,  MAT 1A, PROF. DE 1,5 A 3M, C/T ATE 200m","m³",24,14.52,17.13,411.12]
["3.1.2","73964/005","SINAPI","REATERRO DE VALA/CAVA SEM CONTROLE DE COMPACTAÇÃO , UTILIZANDO RETRO-ESCAVADEIRA E COMPACTACADOR VIBRATORIO COM MATERIAL REAPROVEITADO","m³",9,6.02,7.1,63.9]
["3.1.3","74075/001","SINAPI","FORMA MADEIRA COMP RESINADA 12MM P/ESTRUTURA REAPROV 2 VEZES - CORTE/MONTAGEM/ESCORAMENTO/DESFORMA","m²",92,66.790000000000006,78.81,7250.52]
["3.1.4",73685,"sinapi","CIMBRAMENTO DE MADEIRA","m³",9,25.95,30.62,275.58]
["3.1.5","74137/003","SINAPI ","CONCRETO USINADO, IMPORTADO, ESTRUTURAL FCK=20MPA INCLUS. TRANSPORTE HORIZONTAL ATÉ 20M (PROD. 2M3/H) EM CARRINHOS, ADENSAMENTO E ACABAMENTO","m³",16,334.42,394.62,6313.92]
["3.1.6","73936/011 ","sinapi","CONCRETO 1:4:8, CONCRETO MAGRO, C/ BRITA 1 E 2, C/BETONEIRA","m³",1,252.89,298.41000000000003,298.41000000000003]
["3.1.7",6105,"sinapi","PREPARO MECANICO E LANÇAMENTO MANUAL DE CONCRETO CICLÓPICO 1:3:5, COM 30% DE PEDRA DE MÃO, CAVAS ATÉ 80CM DE LARGURA.","m³",9,249.14,293.99,2645.91]
[null,"00000031","SINAPI","ACO CA-50 1/2\" (12,70 MM)","kg",495,3.94,4.6500000000000004,2301.75]
[null,"00000032","SINAPI","ACO CA-50 1/4\" (6,35 MM)","kg",188,4.57,5.39,1013.32]
[null,"00000034","SINAPI","ACO CA-50 3/8\" (9,52 MM)","kg",1365,4.0599999999999996,4.79,6538.35]
["3.1.9","C.P.U.014",null,"FORNECIMENTO E ASSENTAMENTO DE TUBO DE CONCRETO ARMADO CLASSE PA-2 DN 1000MM, JUNTA EM ARGAMASSA 1:3 CIMENTO:AREIA","m",7,178.3,210.39,1472.73]
["3.1.10","C.P.U.004",null,"ENROCAMENTO MANUAL C/ PEDRA JOGADA-E/C/T/D ATE 1000m","m³",6,143.94999999999999,169.86,1019.16]
["3.2",null,null,"FORNECIMENTO - HIDROMECÂNICOS"]
["3.2.1",null,null,"COMPORTA PLANA QUADRADA C/PEDESTAL 1000X1000MM","cj",1,null,0,0]
["3.3",null,null,"MONTAGEM - HIDROMECÂNICOS"]
["3.3.1",null,null,"MONT. COMP.PLANA, C/PEDESTAL E VOLANTE, 1,00 X 1,00M","un",1,null,0,0]
["4.0",null,null,"EXTRAVASOR EX12 DO CANAL PRINCIPAL - TRECHO \"F\"",null,"R$",37325.040000000001]
["4.1",null,null,"OBRAS CIVIS"]
[null,"C.P.U.006",null,"ESCAV MEC.VALA N ESCORADA,  MAT 1A, PROF. ATE 1,5M, C/T ATE 200m","m³",33,12.95,15.28,504.24]
[null,"C.P.U.005",null,"ESCAV MEC.VALA N ESCORADA,  MAT 1A, PROF. DE 1,5 A 3M, C/T ATE 200m","m³",38,14.52,17.13,650.94000000000005]
["4.1.2","73964/005","SINAPI","REATERRO DE VALA/CAVA SEM CONTROLE DE COMPACTAÇÃO , UTILIZANDO RETRO-ESCAVADEIRA E COMPACTACADOR VIBRATORIO COM MATERIAL REAPROVEITADO","m³",13,6.02,7.1,92.3]
["4.1.3","C.P.U.010",null,"MOMENTO EXTRAORDINÁRIO DE TRANSP. DE MAT. DE 1A E/OU 2A","m³ x km",241,0.96940128000000003,1.1399999999999999,274.74]
["4.1.4","74075/001","SINAPI","FORMA MADEIRA COMP RESINADA 12MM P/ESTRUTURA REAPROV 2 VEZES - CORTE/MONTAGEM/ESCORAMENTO/DESFORMA","m²",122,66.790000000000006,78.81,9614.82]
["4.1.5",73685,"sinapi","CIMBRAMENTO DE MADEIRA","m³",10,25.95,30.62,306.2]
["4.1.6","74137/003","SINAPI ","CONCRETO USINADO, IMPORTADO, ESTRUTURAL FCK=20MPA INCLUS. TRANSPORTE HORIZONTAL ATÉ 20M (PROD. 2M3/H) EM CARRINHOS, ADENSAMENTO E ACABAMENTO","m³",17,334.42,394.62,6708.54]
["4.1.7","73936/011 ","sinapi","CONCRETO 1:4:8, CONCRETO MAGRO, C/ BRITA 1 E 2, C/BETONEIRA","m³",1,252.89,298.41000000000003,298.41000000000003]
["4.1.8",6105,"sinapi","PREPARO MECANICO E LANÇAMENTO MANUAL DE CONCRETO CICLÓPICO 1:3:5, COM 30% DE PEDRA DE MÃO, CAVAS ATÉ 80CM DE LARGURA.","m³",18,249.14,293.99,5291.82]
[null,"00000031","SINAPI","ACO CA-50 1/2\" (12,70 MM)","kg",545,3.94,4.6500000000000004,2534.25]
[null,"00000032","SINAPI","ACO CA-50 1/4\" (6,35 MM)","kg",236,4.57,5.39,1272.04]
[null,"00000034","SINAPI","ACO CA-50 3/8\" (9,52 MM)","kg",1433,4.0599999999999996,4.79,6864.07]
["4.1.10","C.P.U.014",null,"FORNECIMENTO E ASSENTAMENTO DE TUBO DE CONCRETO ARMADO CLASSE PA-2 DN 1000MM, JUNTA EM ARGAMASSA 1:3 CIMENTO:AREIA","m",9,178.3,210.39,1893.51]
["4.1.11","C.P.U.004",null,"ENROCAMENTO MANUAL C/ PEDRA JOGADA-E/C/T/D ATE 1000m","m³",6,143.94999999999999,169.86,1019.16]
["4.2",null,null,"FORNECIMENTO - HIDROMECÂNICOS"]
["4.2.1",null,null,"COMPORTA PLANA QUADRADA C/PEDESTAL 1000X1000MM","cj",1,null,0,0]
["4.3",null,null,"MONTAGEM - HIDROMECÂNICOS"]
["4.3.1",null,null,"MONT. COMP.PLANA, C/PEDESTAL E VOLANTE, 1,00 X 1,00M","un",1,null,0,0]
["5.0",null,null,"TOMADA D'ÁGUA TA51 DO CANAL PRINCIPAL - TRECHO \"F\"",null,"R$",25329.86]
["5.1",null,null,"OBRAS CIVIS"]
["5.1.1","C.P.U.010",null,"MOMENTO EXTRAORDINÁRIO DE TRANSP. DE MAT. DE 1A E/OU 2A","m³ x km",393,0.96940128000000003,1.1399999999999999,448.02]
[null,"C.P.U.005",null,"ESCAV MEC.VALA N ESCORADA,  MAT 1A, PROF. DE 1,5 A 3M, C/T ATE 200m","m³",125,14.52,17.13,2141.25]
["5.1.3","76444/002","SINAPI","REATERRO DE VALAS COMPACTACAO MECANICA, C/CONTR.DO GC >= 95% DO PN(C/COMPACTADOR SOLOS C/ PLACA VIBRATORIA MOTOR DIESEL/GASOLINA 7 A 10 HP)","m³",49,10.68,12.6,617.4]
["5.1.4","73964/005","SINAPI","REATERRO DE VALA/CAVA SEM CONTROLE DE COMPACTAÇÃO , UTILIZANDO RETRO-ESCAVADEIRA E COMPACTACADOR VIBRATORIO COM MATERIAL REAPROVEITADO","m³",33,6.02,7.1,234.3]
["5.1.5","C.P.U.001",null,"ATERRO COMPACTADO MECANICAMICAMENTE EM CAMADAS DE 20CM, C/CONT., MAT. JAZIDA, C/T ATE 1000 m - 95% PN","m³",12,17.23,20.329999999999998,243.96]
["5.1.6","74137/003","SINAPI ","CONCRETO USINADO, IMPORTADO, ESTRUTURAL FCK=20MPA INCLUS. TRANSPORTE HORIZONTAL ATÉ 20M (PROD. 2M3/H) EM CARRINHOS, ADENSAMENTO E ACABAMENTO","m³",15,334.42,394.62,5919.3]
["5.1.7","73936/011 ","sinapi","CONCRETO 1:4:8, CONCRETO MAGRO, C/ BRITA 1 E 2, C/BETONEIRA","m³",1,252.89,298.41000000000003,298.41000000000003]
[null,"00000031","SINAPI","ACO CA-50 1/2\" (12,70 MM)","kg",223,3.94,4.6500000000000004,1036.95]
[null,"00000032","SINAPI","ACO CA-50 1/4\" (6,35 MM)","kg",45,4.57,5.39,242.55]
[null,"00000034","SINAPI","ACO CA-50 3/8\" (9,52 MM)","kg",1177,4.0599999999999996,4.79,5637.83]
["5.1.9","74075/001","SINAPI","FORMA MADEIRA COMP RESINADA 12MM P/ESTRUTURA REAPROV 2 VEZES - CORTE/MONTAGEM/ESCORAMENTO/DESFORMA","m²",104,66.790000000000006,78.81,8196.24]
["5.1.10",73685,"sinapi","CIMBRAMENTO DE MADEIRA","m³",6,25.95,30.62,183.72]
["5.1.11","C.P.U.003",null,"CAIXA DE BRITA PARA DRENAGEM MEDINDO 50CMX50CMX50CM ","un",1,17.71875,20.91,20.91]
["5.1.12",73615,"SINAPI","COLCHAO DE AREIA, INCLUSIVE MAO-DE-OBRA DE ESPALHAMENTO, TRANSPORTE COM CARRO DE MAO E FORNECIMENTO COMERCIAL","m³",1,92.39,109.02,109.02]
["5.2",null,null,"FORNECIMENTO - HIDROMECÂNICOS"]
["5.2.1",null,null,"COMPORTA PLANA CIRCULAR C/PEDESTAL, DN=200MM - MOTORIZADA","cj",1,null,0,0]
["5.2.2",null,null,"CONEXÕES DE FO.FO. PARA AS TOMADAS - DN=200MM","VB",1,null,0,0]
["5.2.3",null,null,"FORNECIMENTO DE TUBOS DE FOFO PONTA/FLANGE P/TOMADAS D'ÁGUA","VB",1,null,0,0]
["5.2.4",null,null,"JUNTA GIBAULT DN=200MM","un",1,null,0,0]
["5.2",null,null,"MONTAGEM - HIDROMECÂNICOS"]
["5.3.1",null,null,"MONTAGEM DE COMP. PLANA C/PEDESTAL DN=200MM - MOTORIZADA","un",1,null,0,0]
["5.3.2",null,null,"MONTAGEM TUBO FO.FO., P&F, PN-10, DIAM. 200MM (TOMADAS)","m",8,null,0,0]
["6.0",null,null,"ESTRUTURA DE ENTRADA DO SIFÃO SF02",null,"R$",55081.356000000007]
["6.1",null,null,"OBRAS CIVIS"]
["6.1.1","74137/003","SINAPI ","CONCRETO USINADO, IMPORTADO, ESTRUTURAL FCK=20MPA INCLUS. TRANSPORTE HORIZONTAL ATÉ 20M (PROD. 2M3/H) EM CARRINHOS, ADENSAMENTO E ACABAMENTO","m³",52,334.42,394.62,20520.240000000002]
["6.1.2","73936/011 ","sinapi","CONCRETO 1:4:8, CONCRETO MAGRO, C/ BRITA 1 E 2, C/BETONEIRA","m³",3,252.89,298.41000000000003,895.23]
[null,"00000031","SINAPI","ACO CA-50 1/2\" (12,70 MM)","kg",535,3.94,4.6500000000000004,2487.75]
[null,"00000032","SINAPI","ACO CA-50 1/4\" (6,35 MM)","kg",263,4.57,5.39,1417.57]
[null,"00000034","SINAPI","ACO CA-50 3/8\" (9,52 MM)","kg",3362,4.0599999999999996,4.79,16103.98]
["6.1.4","74075/001","SINAPI","FORMA MADEIRA COMP RESINADA 12MM P/ESTRUTURA REAPROV 2 VEZES - CORTE/MONTAGEM/ESCORAMENTO/DESFORMA","m²",128,66.790000000000006,78.81,10087.68]
["6.1.5",73685,"sinapi","CIMBRAMENTO DE MADEIRA","m³",11,25.95,30.62,336.82]
["6.1.6",73631,"sinapi","GUARDA-CORPO EM TUBO DE ACO GALVANIZADO 1 1/2\"","m²",14.3,191.54,226.02,3232.0860000000002]
["6.1.7",null,null,"TAMPAS E GRADES METÁLICAS","kg",368,null,0,0]
["6.2",null,null,"FORNECIMENTO - HIDROMECÂNICOS"]
["6.2.1",null,null,"TALHA MANUAL C/MONOVIA CAP=1 TON - COMPLETA","un",1,null,0,0]
["6.2.2",null,null,"GRADE DE BARRAS FIXA - 1760x1830mm","un",1,null,0,0]
["6.3",null,null,"MONTAGEM - HIDROMECÂNICOS"]
["6.3.1",null,null,"MONTAGEM DE TALHA MANUAL C/MONOVIA CAP=1,0TON","un",1,null,0,0]
["6.3.2",null,null,"MONTAGEM DE GRADE DE PROTEÇÃO","m²",3,null,0,0]
["7.0",null,null,"SIFÃO SF02 - ITENS GLOBAIS",null,"R$",1969513.32]
["7.1",null,null,"OBRAS CIVIS"]
["7.1.1","73859/001 ","SINAPI","DESMATAMENTO/LIMPEZA TERRENOS C/EQUIP MECAN(TRATOR:1000M2/H)","m²",186000,0.21,0.25,46500]
["7.1.2","C.P.U.010",null,"MOMENTO EXTRAORDINÁRIO DE TRANSP. DE MAT. DE 1A E/OU 2A","m³ x km",117603,0.96940128000000003,1.1399999999999999,134067.42000000001]
["7.1.3","C.P.U.011",null,"MOMENTO EXTRAORDINÁRIO DE TRANSPORTE DE MAT. DE 3A","m³ x km",31825,1.182566,1.4,44555]
[null,"C.P.U.006",null,"ESCAV MEC.VALA N ESCORADA,  MAT 1A, PROF. ATE 1,5M, C/T ATE 200m","m³",5750,12.95,15.28,87860]
[null,"C.P.U.005",null,"ESCAV MEC.VALA N ESCORADA,  MAT 1A, PROF. DE 1,5 A 3M, C/T ATE 200m","m³",6471,14.52,17.13,110848.23]
["7.1.5","C.P.U.008",null,"ESCAVAÇÃO MEC. VALA N ESCORADA, MAT. DE 2A, PROF. 2-3m, C/T ATE 1000m","m³",10693,15.31,18.07,193222.51]
["7.1.6","C.P.U.009",null,"ESCAVAÇÃO  MEC. VALA N ESCORADA, MAT. DE 3A, C/T ATE 1000m","m³",7638,60.64,71.56,546575.28]
["7.1.7","76444/002","SINAPI","REATERRO DE VALAS COMPACTACAO MECANICA, C/CONTR.DO GC >= 95% DO PN(C/COMPACTADOR SOLOS C/ PLACA VIBRATORIA MOTOR DIESEL/GASOLINA 7 A 10 HP)","m³",5831,10.68,12.6,73470.600000000006]
["7.1.8","73964/005","SINAPI","REATERRO DE VALA/CAVA SEM CONTROLE DE COMPACTAÇÃO , UTILIZANDO RETRO-ESCAVADEIRA E COMPACTACADOR VIBRATORIO COM MATERIAL REAPROVEITADO","m³",21150,6.02,7.1,150165]
["7.1.9","C.P.U.001",null,"ATERRO COMPACTADO MECANICAMICAMENTE EM CAMADAS DE 20CM, C/CONT., MAT. JAZIDA, C/T ATE 1000 m - 95% PN","m³",22394,17.23,20.329999999999998,455270.02]
["7.1.10",73615,"SINAPI","COLCHAO DE AREIA, INCLUSIVE MAO-DE-OBRA DE ESPALHAMENTO, TRANSPORTE COM CARRO DE MAO E FORNECIMENTO COMERCIAL","m³",661,92.39,109.02,72062.22]
["7.1.11",72829,"SINAPI","ESCAVACAO, CARGA E TRANSPORTE DE MATERIAL DE 1A CATEGORIA, CAMINHO DE SERVICO REVESTIMENTO PRIMARIO, COM ESCAVADEIRA HIDRAULICA E CAMINHAO BASCULANTE 6 M3, DMT 800 ATE 1.000 M","m³",11162,4.17,4.92,54917.04]
["7.2",null,null,"FORNECIMENTO - HIDROMECÂNICOS"]
["7.2.1",null,null,"TUBOS DE AÇO CARBONO DN=1200MM C/TRATAMENTO","m",1837,null,0,0]
["7.2.2",null,null,"CONEXÕES E PEÇAS ESPECIAIS DO SIFÃO SF02","VB",1,null,0,0]
["7.2.3",null,null,"PROTEÇÃO CATÓDICA EM TUBULAÇÃO DE AÇO","VB",1,null,0,0]
["7.3",null,null,"MONTAGEM - HIDROMECÂNICOS"]
["7.3.1",null,null,"MONTAGEM TUBUL. E PECAS DE AÇO CARBONO DN=1200MM C/TESTE HIDROST.","m",1837,null,0,0]
["8.0",null,null,"CX DE VÁLVULA/VISITAS/ENVELOP./DESCARGA DE FUNDO (SIFÃO SF02)",null,"R$",236701.60400000005]
["8.1",null,null,"OBRAS CIVIS"]
["8.1.1","74137/003","SINAPI ","CONCRETO USINADO, IMPORTADO, ESTRUTURAL FCK=20MPA INCLUS. TRANSPORTE HORIZONTAL ATÉ 20M (PROD. 2M3/H) EM CARRINHOS, ADENSAMENTO E ACABAMENTO","m³",266,334.42,394.62,104968.92]
["8.1.2","73936/011 ","sinapi","CONCRETO 1:4:8, CONCRETO MAGRO, C/ BRITA 1 E 2, C/BETONEIRA","m³",19,252.89,298.41000000000003,5669.79]
[null,"00000031","SINAPI","ACO CA-50 1/2\" (12,70 MM)","kg",7043,3.94,4.6500000000000004,32749.95]
[null,"00000032","SINAPI","ACO CA-50 1/4\" (6,35 MM)","kg",115,4.57,5.39,619.85]
[null,"00000034","SINAPI","ACO CA-50 3/8\" (9,52 MM)","kg",6367,4.0599999999999996,4.79,30497.93]
[null,"00000027","SINAPI","ACO CA-50 5/8\" (15,87 MM)","kg",1026,4,4.72,4842.72]
["8.1.4","74075/001","SINAPI","FORMA MADEIRA COMP RESINADA 12MM P/ESTRUTURA REAPROV 2 VEZES - CORTE/MONTAGEM/ESCORAMENTO/DESFORMA","m²",608,66.790000000000006,78.81,47916.480000000003]
["8.1.5","C.P.U.020",null,"ESCADA TIPO MERINHEIRO COM MONTANTES EM CHAPA 3/8\" (9,53MM) E DEGRAUS EM TUBO DE AÇO 1 1/2\" COM LARGURA DE 45CM E DISTANCIA EIXO A EIXO DE 30CM","m",13,143.34443404999999,169.15,2198.9499999999998]
["8.1.6","73998/006","sinapi","ALVENARIA DE BLOCOS DE CONCRETO ESTRUTURAL 19X19X39CM, ESPESSURA 19CM, ASSENTADOS COM ARGAMASSA TRACO 1:0,25:4 (CIMENTO, CAL E AREIA)","m²",36,59.26,69.930000000000007,2517.48]
["8.1.7","74199/001","sinapi","CHAPISCO RUSTICO TRACO 1:3 (CIMENTO E AREIA), ESPESSURA 2CM, PREPARO MANUAL","m²",36,23.62,27.87,1003.32]
["8.1.8","73927/006","SINAPI","EMBOCO PAULISTA (MASSA UNICA) TRACO 1:1:6 (CIMENTO, CAL E AREIA), ESPESSURA 2,0CM, PREPARO MANUAL","m²",36,16.489999999999998,19.46,700.56]
["8.1.9","73954/002 ","SINAPI","PINTURA LATEX ACRILICA AMBIENTES INTERNOS/EXTERNOS, DUAS DEMAOS","m²",36,11.07,13.06,470.16]
["8.1.10",79466,"SINAPI","PINTURA VERNIZ EM MADEIRA 2 DEMAOS","m²",36,7.34,8.66,311.76]
["8.1.11","73922/003","SINAPI","PISO CIMENTADO LISO DESEMPENADO, TRACO 1:3 (CIMENTO E AREIA), ESPESSURA 2,0CM, PREPARO MANUAL","m²",25,23.94,28.25,706.25,null,"quant.","largura","altura","área","a.total"]
[null,"C.P.U.019",null,"JANELA METÁLICA, TIPO BASCULANTE 100x80cm COM TELA DE PROTEÇÃO CONTRA ROEDORES","m²",0.8,240.91749999999999,284.27999999999997,227.42399999999998,null,1,1,0.8,0.8,0.8]
[null,"00004938 ","SINAPI","PORTA METÁLICA 80x210cm","unid",1,319.2,376.66,376.66,null,1,0.8,2.1,1.68,1.68]
["8.1.14",73634,"sinapi"," COBERTURA COM TELHA DE FIBROCIMENTO ESTRUTURAL LARGURA ÚTIL 49CM OU 44CM, INCLUSO ACESSÓRIOS DE FIXAÇÃO E VEDAÇÃO","m²",9,86.95,102.6,923.4]
["8.2",null,null,"FORNECIMENTO - HIDROMECÂNICOS"]
["8.2.1",null,null,"VÁLVULA BORBOLETA C/ATUADOR ELÉTRICO DN=800MM PN-10","cj",1,null,0,0]
["8.2.2",null,null,"VÁLV. GAVETA ACION. DIRETO VOLANTE, PN-10, DN= 150MM","un",1,null,0,0]
["8.2.3",null,null,"VÁLV. GAVETA ACION. DIRETO VOLANTE, PN-10, DN= 300MM","un",1,null,0,0]
["8.2.4",null,null,"JUNTA DE MONTAGEM, DN=800MMM","un",1,null,0,0]
["8.2.5",null,null,"JUNTA GIBAULT DN=300MM","un",1,null,0,0]
["8.2.6",null,null,"VISITA EM AÇO CARBONO","kg",149,null,0,0]
["8.2.7",null,null,"TUBO PVC RIGIDO, J/E, DEFOFO, DIAM 300MM","m",300,null,0,0]
["8.2.8",null,null,"VENTOSA DE TRÍPLICE FUNÇÃO, FOFO, DN=150MM","un",1,null,0,0]
["8.2.9",null,null,"EXTREMIDADE FO.FO., FLANGE E BOLSA, PN10, J.ELAST. DN=300MM","un",1,null,0,0]
["8.3",null,null,"MONTAGEM - HIDROMECÂNICOS"]
["8.3.1",null,null,"MONTAGEM DE VÁLVULA TIPO BORBOLETA DN=800MM C/ATUADOR","un",1,null,0,0]
["8.3.2",null,null,"MONT. TUBO PVC RIGIDO, J/E, DEFOFO, DIAM.300MM","m",300,null,0,0]
["8.3.3",null,null,"MONTAGEM DE VENTOSA DE TRIPLICE FUNÇÃO DN=150","un",1,null,0,0]
["8.3.4",null,null,"MONTAGEM REGISTRO DE GAVETA COM FLANGES FO.FO. DN=150MM","un",1,null,0,0]
["8.3.5",null,null,"MONTAGEM REGISTRO DE GAVETA COM FLANGES FO.FO. DN=300MM","un",1,null,0,0]
["9.0",null,null,"ESTRUTURA DE SAÍDA DO SIFÃO SF02",null,"R$",37983.243999999999]
["9.1",null,null,"OBRAS CIVIS"]
["9.1.1","74137/003","SINAPI ","CONCRETO USINADO, IMPORTADO, ESTRUTURAL FCK=20MPA INCLUS. TRANSPORTE HORIZONTAL ATÉ 20M (PROD. 2M3/H) EM CARRINHOS, ADENSAMENTO E ACABAMENTO","m³",36,334.42,394.62,14206.32]
["9.1.2","73936/011 ","sinapi","CONCRETO 1:4:8, CONCRETO MAGRO, C/ BRITA 1 E 2, C/BETONEIRA","m³",2,252.89,298.41000000000003,596.82000000000005]
[null,"00000031","SINAPI","ACO CA-50 1/2\" (12,70 MM)","kg",495,3.94,4.6500000000000004,2301.75]
[null,"00000032","SINAPI","ACO CA-50 1/4\" (6,35 MM)","kg",123,4.57,5.39,662.97]
[null,"00000034","SINAPI","ACO CA-50 3/8\" (9,52 MM)","kg",2262,4.0599999999999996,4.79,10834.98]
["9.1.4","74075/001","SINAPI","FORMA MADEIRA COMP RESINADA 12MM P/ESTRUTURA REAPROV 2 VEZES - CORTE/MONTAGEM/ESCORAMENTO/DESFORMA","m²",95,66.790000000000006,78.81,7486.95]
["9.1.5",73685,"sinapi","CIMBRAMENTO DE MADEIRA","m³",5,25.95,30.62,153.1]
["9.1.6",73631,"sinapi","GUARDA-CORPO EM TUBO DE ACO GALVANIZADO 1 1/2\"","m²",7.7,191.54,226.02,1740.3540000000003]
["9.2",null,null,"FORNECIMENTO - HIDROMECÂNICOS"]
["9.2.1",null,null,"TALHA MANUAL C/MONOVIA CAP=1 TON - COMPLETA","un",1,null,0,0]
["9.3",null,null,"MONTAGEM - HIDROMECÂNICOS"]
["9.3.1",null,null,"MONTAGEM DE TALHA MANUAL C/MONOVIA CAP=1,0TON","un",1,null,0,0]
["10.0",null,null,"ESTAÇÃO DE BOMBEAMENTO - EB05 (C/SUBESTAÇÃO)",null,"R$",499616.72200000007]
["10.1",null,null,"OBRAS CIVIS"]
["10.1.1","73859/001 ","SINAPI","DESMATAMENTO/LIMPEZA TERRENOS C/EQUIP MECAN(TRATOR:1000M2/H)","m²",2510,0.21,0.25,627.5]
["10.1.2","73964/005","SINAPI","REATERRO DE VALA/CAVA SEM CONTROLE DE COMPACTAÇÃO , UTILIZANDO RETRO-ESCAVADEIRA E COMPACTACADOR VIBRATORIO COM MATERIAL REAPROVEITADO","m³",904,6.02,7.1,6418.4]
[null,"C.P.U.005",null,"ESCAV MEC.VALA N ESCORADA,  MAT 1A, PROF. DE 1,5 A 3M, C/T ATE 200m","m³",881,14.52,17.13,15091.53]
["10.1.4","2 S 01 101 26","SICRO","ESC. MEC. CARGA TRANSP. MAT 2A CAT DMT 800 A 1000M C/E","m³",271,7.5,8.85,2398.35]
["10.1.5","2 S 01 102 06","SICRO","ESC. MEC. CARGA TRANSP. MAT 3A CAT DMT 800 A 1000M","m³",203,22.6,26.67,5414.01]
["10.1.6","C.P.U.001",null,"ATERRO COMPACTADO MECANICAMICAMENTE EM CAMADAS DE 20CM, C/CONT., MAT. JAZIDA, C/T ATE 1000 m - 95% PN","m³",1506,17.23,20.329999999999998,30616.98]
["10.1.7","C.P.U.010",null,"MOMENTO EXTRAORDINÁRIO DE TRANSP. DE MAT. DE 1A E/OU 2A","m³ x km",7313,0.96940128000000003,1.1399999999999999,8336.82]
["10.1.8","C.P.U.011",null,"MOMENTO EXTRAORDINÁRIO DE TRANSPORTE DE MAT. DE 3A","m³ x km",848,1.182566,1.4,1187.2]
["10.1.9",4748,"sinapi","PEDRA BRITADA BICA CORRIDA (NÃO CLASSIFICADA)","m³",5,74.599999999999994,88.03,440.15]
["10.1.10",72829,"SINAPI","ESCAVACAO, CARGA E TRANSPORTE DE MATERIAL DE 1A CATEGORIA, CAMINHO DE SERVICO REVESTIMENTO PRIMARIO, COM ESCAVADEIRA HIDRAULICA E CAMINHAO BASCULANTE 6 M3, DMT 800 ATE 1.000 M","m³",3600,4.17,4.92,17712]
["10.1.11","73998/006","sinapi","ALVENARIA DE BLOCOS DE CONCRETO ESTRUTURAL 19X19X39CM, ESPESSURA 19CM, ASSENTADOS COM ARGAMASSA TRACO 1:0,25:4 (CIMENTO, CAL E AREIA)","m²",147,59.26,69.930000000000007,10279.709999999999]
["10.1.12","74137/003","SINAPI ","CONCRETO USINADO, IMPORTADO, ESTRUTURAL FCK=20MPA INCLUS. TRANSPORTE HORIZONTAL ATÉ 20M (PROD. 2M3/H) EM CARRINHOS, ADENSAMENTO E ACABAMENTO","m³",259,334.42,394.62,102206.58]
["10.1.13","73936/011 ","sinapi","CONCRETO 1:4:8, CONCRETO MAGRO, C/ BRITA 1 E 2, C/BETONEIRA","m³",22,252.89,298.41000000000003,6565.02]
[null,"00000031","SINAPI","ACO CA-50 1/2\" (12,70 MM)","kg",10977,3.94,4.6500000000000004,51043.05]
[null,"00000032","SINAPI","ACO CA-50 1/4\" (6,35 MM)","kg",3543,4.57,5.39,19096.77]
[null,"00000034","SINAPI","ACO CA-50 3/8\" (9,52 MM)","kg",6058,4.0599999999999996,4.79,29017.82]
[null,"00000027","SINAPI","ACO CA-50 5/8\" (15,87 MM)","kg",105,4,4.72,495.6]
[null,"00000039","sinapi","ACO CA-60 - 5,0MM",null,42,4.63,5.46]
["10.1.15","74075/001","SINAPI","FORMA MADEIRA COMP RESINADA 12MM P/ESTRUTURA REAPROV 2 VEZES - CORTE/MONTAGEM/ESCORAMENTO/DESFORMA","m²",1031,66.790000000000006,78.81,81253.11]
["10.1.16","74074/004","SINAPI","FORMA PINHO 3A P/CONCRETO EM FUNDAÇÃO S/REAPROVEITAMENTO - CORTE/MONTAGEM/ESCORAMENTO/DESFORMA, NÃO INCLUÍDO DESMOLDANTE","m²",177,50.06,59.07,10455.39]
["10.1.17",73685,"sinapi","CIMBRAMENTO DE MADEIRA","m³",700,25.95,30.62,21434]
["10.1.18",null,null,"JUNTA DE DIL. C/ SEL. A BASE DE POLIUR. MONOC. (1,5cm x 1,5cm)","m",13,null,0,0]
["10.1.19","00003681","SINAPI"," JUNTA DILATACAO ELASTICA (PVC) P/ CONCRETO (FUGENBAND) O-220/6 PRESSAO ATE 30 MCA","m",13,70.040000000000006,82.65,1074.45]
["10.1.20","74199/001","sinapi","CHAPISCO RUSTICO TRACO 1:3 (CIMENTO E AREIA), ESPESSURA 2CM, PREPARO MANUAL","m²",75,23.62,27.87,2090.25]
["10.1.21","73927/006","SINAPI","EMBOCO PAULISTA (MASSA UNICA) TRACO 1:1:6 (CIMENTO, CAL E AREIA), ESPESSURA 2,0CM, PREPARO MANUAL","m²",75,16.489999999999998,19.46,1459.5]
["10.1.22","73925/002","SINAPI","AZULEJO 1A 15X15CM FIXADO ARGAMASSA COLANTE, REJUNTAMENTO COM CIMENTO BRANCO","m²",21,27.41,32.340000000000003,679.14]
["10.1.23","73954/002 ","SINAPI","PINTURA LATEX ACRILICA AMBIENTES INTERNOS/EXTERNOS, DUAS DEMAOS","m²",75,11.07,13.06,979.5]
["10.1.24",79466,"SINAPI","PINTURA VERNIZ EM MADEIRA 2 DEMAOS","m²",189,7.34,8.66,1636.74]
["10.1.25",72188,"SINAPI","PISO DE BORRACHA PASTILHADO, ESPESSURA 7MM, ASSENTADO COM ARGAMASSA TRACO 1:3 (CIMENTO E AREIA)","m²",51,162.87,192.19,9801.69]
["10.1.26","74108/001","SINAPI","PISO CERAMICO GRES 1A PEI-4 30X30CM, ASSENTADO COM ARGAMASSA TRACO 1:4 (CIMENTO E AREIA) PREPARO MANUAL, COM REJUNTE EM CIMENTO COMUM","m²",7,32.380000000000003,38.21,267.47000000000003]
["10.1.27","73922/003","SINAPI","PISO CIMENTADO LISO DESEMPENADO, TRACO 1:3 (CIMENTO E AREIA), ESPESSURA 2,0CM, PREPARO MANUAL","m²",129,23.94,28.25,3644.25]
["10.1.28","74191/001",null,"RODAPÉ DE CIMENTO LISO COM 15 cm DE ALTURA","m",29,2.44,2.88,83.52]
["10.1.29",73634,"sinapi","COBERTURA COM TELHA DE FIBROCIMENTO ESTRUTURAL LARGURA ÚTIL 49CM OU 44CM, INCLUSO ACESSÓRIOS DE FIXAÇÃO E VEDAÇÃO","m²",194,86.95,102.6,19904.400000000001,null,"quant.","largura","altura","área","a.total"]
[null,"00004914","sinapi","PORTÃO EM CHAPA DE ALUMÍNIO ANODIZADO NA COR NATURAL, COM 4 FOLHAS, DE 300x294cm ","m2",9,289.22000000000003,341.28,3071.52,"P1",1,3,2.95,8.85,8.85]
[null,"73910/001 ","SINAPI","PORTA DE MADEIRA EM CEDRO LISO INTERNO/EXTERNO DE 60x210cm, COM PINTURA À ÓLEO","unid",1,223.97,264.27999999999997,264.27999999999997,"P2",1,0.6,2.1,1.26,1.26]
[null,"74238/002 ","SINAPI","PORTÃO COM ARMAÇÃO DE FERRO E TELA TIPO QUADRADA DE 12mm BITOLA 12 BWG, 260x284cm EM 2 FOLHAS COM PINTURA ELETROSTÁTICA NA COR GRAFITE","m²",7.4,526.67999999999995,621.48,4598.9520000000002,"P3",1,2.6,2.84,7.3839999999999995,7.3839999999999995]
[null,40678,"SINAPI","PORTÃO COM ARMAÇÃO DE FERRO E TELA TIPO QUADRADA DE 12mm BITOLA 12 BWG, 80x210cm COM PINTURA ELETROSTÁTICA NA COR GRAFITE ","m2",1.7,136.33000000000001,160.87,273.47899999999998,"P4",1,0.8,2.1,1.68,1.68]
[null,"C.P.U.018",null,"TELADO COM ARMAÇÃO DE FERRO EM TELA TIPO QUADRADA DE 2\", 140x150cm, COM PINTURA ELETROSTÁSTICA NA COR GRAFITE ","m²",2.1,95.376000000000005,112.54,236.33400000000003,"P5",1,1.4,1.5,2.1,2.1]
[null,"C.P.U.018",null,"TELADO COM ARMAÇÃO DE FERRO EM TELA TIPO QUADRADA DE 2\", 60x150cm, COM PINTURA ELETROSTÁSTICA NA COR GRAFITE","m²",1.8,95.376000000000005,112.54,202.572,"P6",2,0.6,1.5,0.9,1.8]
[null,"C.P.U.018",null,"TELADO COM ARMAÇÃO DE FERRO EM TELA TIPO QUADRADA DE 2\", 390x150cm, COM PINTURA ELETROSTÁSTICA NA COR GRAFITE","m²",5.9,95.376000000000005,112.54,663.9860000000001,"P7",1,3.9,1.5,5.85,5.85]
[null,"C.P.U.021",null,"TELADO COM REQUADRO DE FERRO 337.5x60cm (TELA TIPO QUADRADA DE 12mm BITOLA 12 BWG), COM PINTURA ELETROSTÁTICA NA COR GRAFITE","m²",4.0999999999999996,86.74199999999999,102.36,419.67599999999999,"J4",2,3.375,0.6,2.0249999999999999,4.05]
[null,"C.P.U.021",null,"TELADO COM REQUADRO DE FERRO 377.5x60cm (TELA TIPO QUADRADA DE 12mm BITOLA 12 BWG), COM PINTURA ELETROSTÁTICA NA COR GRAFITE","m²",2.2999999999999998,86.74199999999999,102.36,235.42799999999997,"J5",1,3.7749999999999999,0.6,2.2650000000000001,2.2650000000000001]
[null,"00000601 ","SINAPI","JANELA EM ALUMÍNIO ANODIZADO NA COR NATURAL, EM 3 FOLHAS TIPO MAXIM-AR, COM VIDRO DE CRISTAL 4mm DE 330x120cm ","m²",8,252.55,298.01,2384.08,"J1",2,3.3,1.2,3.96,7.92]
[null,"00000601 ","SINAPI","JANELA EM ALUMÍNIO ANODIZADO NA COR NATURAL, EM 3 FOLHAS, TIPO MAXIM-AR,COM VIDRO CRISTAL 4mm 327.5x120cm","m²",7.9,252.55,298.01,2354.279,"J2",2,3.2749999999999999,1.2,3.93,7.86]
[null,"00000601 ","SINAPI","JANELA EM ALUMÍNIO ANODIZADO NA COR NATURAL, EM 1 FOLHA, TIPO MAXIM-AR,COM VIDRO CRISTAL 4mm 115x60cm","m²",1.4,252.55,298.01,417.21399999999994,"J3",2,1.1499999999999999,0.6,0.69,1.38]
["10.1.35",null,null,"TAMPAS E GRADES METÁLICAS","kg",124,null,0,0]
["10.1.36",73631,"sinapi","GUARDA-CORPO EM TUBO DE ACO GALVANIZADO 1 1/2\"","m²",34.1,191.54,226.02,7707.2820000000011]
["10.1.37","C.P.U.020",null,"ESCADA TIPO MERINHEIRO COM MONTANTES EM CHAPA 3/8\" (9,53MM) E DEGRAUS EM TUBO DE AÇO 1 1/2\" COM LARGURA DE 45CM E DISTANCIA EIXO A EIXO DE 30CM","m",10,143.34443404999999,169.15,1691.5]
["10.1.38","74142/004","sinapi","CERCA COM MOURÕES DE CONCRETO, SEÇÃO \"T\" PONTA INCLINADA, 7,5X7,5CM, ESPAÇAMENTO DE 3M, CRAVADOS 0,5M, COM 11 FIOS DE ARAME FARPADO Nº14 CLASSE 250 - FORNEC E COLOC.","m",230,26.65,31.45,7233.5]
["10.1.39",null,null,"PERFIL METÁLICO COLOCADO COMO GUIA DE TRANSFORMADORES","kg",30,null,0,0,"Sai. O transformador será instalado posteriormente"]
["10.2",null,null,"INSTALAÇÕES HIDROSANITARIAS - INCL. APARELHOS E PEÇAS SANITÁRIAS "]
[null,"73748/001 ","SINAPI","RESERVATÓRIO DÁGUA DE FIBROCIMENTO CILÍNDRICO OU RETANGULAR, CAPACIDADE 1.000L - FORNECIMENTO E COLOCAÇÃO ( EXCLUSIVE TUBULAÇÕES E BOIA)","unid",1,288,339.84,339.84]
[null,6031,"SINAPI","BANCA (TAMPO) DE MARMORE SINTETICO 120X60CM COM CUBA, VALVULA EM PLASTICO BRANCO 1\", SIFAO PLASTICO TIPO COPO 1\" E TORNEIRA CROMADA LONGA 1/2\" OU 3/4\" PARA PIA PADRAO POPULAR - FORNECIMENTO E INSTALACAO","unid",1,145.88,172.14,172.14]
[null,6009,"SINAPI","LAVATORIO EM LOUCA BRANCA, SEM COLUNA PADRAO POPULAR, COM TORNEIRA CROMADA POPULAR , SIFAO,VALVULA E ENGATE PLASTICO","unid",1,118.13,139.38999999999999,139.38999999999999]
[null,"73959/001 ","SINAPI","PONTO DE AGUA FRIA PVC 3/4\" - MEDIA 5,00M DE TUBO DE PVC ROSCAVEL AGUA FRIA 3/4\" E 2 JOELHOS DE PVC ROSCAVEL 90GRAUS AGUA FRIA 3/4\" - FORNECIMENTO E INSTALACAO","PT",4,58.08,68.53,274.12]
[null,68061,"SINAPI","CHUVEIRO PLASTICO BRANCO SIMPLES - FORNECIMENTO E INSTALACAO","UNID",1,10.06,11.87,11.87]
[null,"74165/001 ","SINAPI","TUBO PVC ESGOTO JS PREDIAL DN 40MM, INCLUSIVE CONEXOES - FORNECIMENTO E INSTALACAO","m",6,14.35,16.93,101.58]
[null,"74165/002 ","SINAPI","TUBO PVC ESGOTO PREDIAL DN 50MM, INCLUSIVE CONEXOES - FORNECIMENTO E INSTALACAO","m",6,19.64,23.18,139.08000000000001]
[null,6021,"SINAPI","VASO SANITARIO SIFONADO LOUÇA BRANCA PADRAO POPULAR, COM CONJUNTO PARA FIXAÇAO PARA VASO SANITÁRIO COM PARAFUSO, ARRUELA E BUCHA - FORNECIMENTO E INSTALACAO","unid",1,134.56,158.78,158.78]
[null,"74165/004 ","SINAPI","TUBO PVC ESGOTO PREDIAL DN 100MM, INCLUSIVE CONEXOES - FORNECIMENTO E INSTALACAO","m",35,28.66,33.82,1183.7]
[null,72684,"SINAPI","RALO SECO DE PVC 100X100MM SIMPLES - FORNECIMENTO E INSTALACAO","uni",1,12.82,15.13,15.13]
[null,72685,"SINAPI","RALO SIFONADO DE PVC 100X100MM SIMPLES - FORNECIMENTO E INSTALACAO","uni",1,14.76,17.420000000000002,17.420000000000002]
[null,"74104/001 ","SINAPI","CAIXA DE INSPEÇÃO EM ALVENARIA DE TIJOLO MACIÇO 60X60X60CM, REVESTIDA INTERNAMENTO COM BARRA LISA (CIMENTO E AREIA, TRAÇO 1:4) E=2,0CM, COM TAMPA PRÉ-MOLDADA DE CONCRETO E FUNDO DE CONCRETO 15MPA TIPO C - ESCAVAÇÃO E CONFECÇÃO","unid",5,113.61,134.06,670.3]
[null,"74197/001 ","SINAPI","FOSSA SEPTICA EM ALVENARIA DE TIJOLO CERAMICO MACICO DIMENSOES EXTERNA\nS 1,90X1,10X1,40M, 1.500 LITROS, REVESTIDA INTERNAMENTE COM BARRA LISA, COM TAMPA EM CONCRETO ARMADO COM ESPESSURA 8CM","unid",1,1114.95,1315.64,1315.64]
[null,"74198/002 ","SINAPI","SUMIDOURO EM ALVENARIA DE TIJOLO CERAMICO MACIÇO DIAMETRO 1,40M E ALTURA 5,00M, COM TAMPA EM CONCRETO ARMADO DIAMETRO 1,60M E ESPESSURA 10CM","unid",1,1366.74,1612.75,1612.75]
["10.1.41",null,null,"FORNEC. E INSTAL. CABO NU COBRE, ENTERRADO, PARA ATERRAMENTO ","kg",190,null,0,0]
["10.1.42",null,null,"FORNEC. E INSTAL. HASTE ATERRAMENTO DIAM. 3/4\", 3M ","un",5,null,0,0]
["10.1.43",null,null,"FORNEC. E INSTAL. CONEXÃO APARAFUS., CABO COBRE, P/ATERRAMENTO","un",126,null,0,0]
["10.3",null,null,"FORNECIMENTO DE MATERIAL ELÉTRICO PARA ATERRAMENTO"]
["10.3.1",null,null,"Cabo de cobre nu têmpera meio-mole bitola 70 mm2 - Ref.: Ficap","m",420,null,0,0]
["10.3.2",null,null,"Cabo de cobre nu têmpera meio-mole bitola 35 mm2 - Ref.: Ficap","m",60,null,0,0]
["10.3.3",null,null,"Cabo de cobre nu têmpera meio-mole bitola 25 mm2 - Ref.: Ficap","m",15,null,0,0]
["10.3.4",null,null,"Cabo de cobre nu têmpera meio-mole bitola 16 mm2 - Ref.: Ficap","m",65,null,0,0]
["10.3.5",null,null,"Cabo isolado 450/750V BWF Antiflan bitola 70 mm2 - Ref.: Ficap ","m",25,null,0,0]
["10.3.6",null,null,"Haste de aterramento tipo “copperweld” diâm. 3/4” x 1500 mm - Ref.: Burndy","pç",3,null,0,0]
["10.3.7",null,null,"Conector grampo de encaixe tipo KVS26 - Ref.: Burndy","pç",42,null,0,0]
["10.3.8",null,null,"Conector terminal cabo/barra 25-35 mm2 tipo QAIC-B - Ref.: Burndy","pç",3,null,0,0]
["10.3.9",null,null,"Conector para fixação de condutor em superfície plana tipo K2C23 Ref.: Burndy","pç",3,null,0,0]
["10.3.10",null,null,"Conector para superfícies planas 16-70 mm2 tipo GB26 - ref.: Burndy","pç",25,null,0,0]
["10.3.11",null,null,"Eletroduto de aço galvanizado com luva em uma das extremidades e protetor de rosca na outra diâm. 1” x 3000 mm Ref.: Mannesmann","pç",3,null,0,0]
["10.3.12",null,null,"Mistura despolarizante/redutora “ATERRAGEL”","Doses",null,null,0,0]
["10.3.13",null,null,"Grampo de aterramento haste/cabo - ø 3/4 \" -70mm² - tipo GP6426","pç",3,null,0,0]
["7.3",null,null,"MONTAGEM ATERRAMENTO"]
[null,null,null,"Fazer Composição"]
["11.0",null,null,"TUBULAÇÃO DE RECALQUE - TR04",null,"R$",262647.53999999998]
["11.1",null,null,"OBRAS CIVIS"]
["11.1.1","73859/001 ","SINAPI","DESMATAMENTO/LIMPEZA TERRENOS C/EQUIP MECAN(TRATOR:1000M2/H)","m²",12500,0.21,0.25,3125]
["11.1.2","C.P.U.010",null,"MOMENTO EXTRAORDINÁRIO DE TRANSP. DE MAT. DE 1A E/OU 2A","m³ x km",42700,0.96940128000000003,1.1399999999999999,48678]
["11.1.3","2 S 01 100 22","SICRO","ESC. MEC. CARGA TRANSP. MAT 1ª CAT DMT 50 A 200M C/E","m³",9339,4.1500000000000004,4.9000000000000004,45761.1]
["11.1.4","2 S 01 101 26","SICRO","ESC. MEC. CARGA TRANSP. MAT 2A CAT DMT 800 A 1000M C/E","m³",1038,7.5,8.85,9186.2999999999993]
["11.1.5","76444/002","SINAPI","REATERRO DE VALAS COMPACTACAO MECANICA, C/CONTR.DO GC >= 95% DO PN(C/COMPACTADOR SOLOS C/ PLACA VIBRATORIA MOTOR DIESEL/GASOLINA 7 A 10 HP)","m³",2640,10.68,12.6,33264]
["11.1.6","73964/005","SINAPI","REATERRO DE VALA/CAVA SEM CONTROLE DE COMPACTAÇÃO , UTILIZANDO RETRO-ESCAVADEIRA E COMPACTACADOR VIBRATORIO COM MATERIAL REAPROVEITADO","m³",6370,6.02,7.1,45227]
["11.1.7",73615,"SINAPI","COLCHAO DE AREIA, INCLUSIVE MAO-DE-OBRA DE ESPALHAMENTO, TRANSPORTE COM CARRO DE MAO E FORNECIMENTO COMERCIAL","m³",410,92.39,109.02,44698.2]
["11.1.8",72829,"SINAPI","ESCAVACAO, CARGA E TRANSPORTE DE MATERIAL DE 1A CATEGORIA, CAMINHO DE SERVICO REVESTIMENTO PRIMARIO, COM ESCAVADEIRA HIDRAULICA E CAMINHAO BASCULANTE 6 M3, DMT 800 ATE 1.000 M","m³",1260,4.17,4.92,6199.2]
["11.1.9","C.P.U.020",null,"ESCADA TIPO MERINHEIRO COM MONTANTES EM CHAPA 3/8\" (9,53MM) E DEGRAUS EM TUBO DE AÇO 1 1/2\" COM LARGURA DE 45CM E DISTANCIA EIXO A EIXO DE 30CM","m",6,143.34443404999999,169.15,1014.9]
["11.1.10","74075/001","SINAPI","FORMA MADEIRA COMP RESINADA 12MM P/ESTRUTURA REAPROV 2 VEZES - CORTE/MONTAGEM/ESCORAMENTO/DESFORMA","m²",133,66.790000000000006,78.81,10481.73]
["11.1.11","74137/003","SINAPI ","CONCRETO USINADO, IMPORTADO, ESTRUTURAL FCK=20MPA INCLUS. TRANSPORTE HORIZONTAL ATÉ 20M (PROD. 2M3/H) EM CARRINHOS, ADENSAMENTO E ACABAMENTO","m³",14,334.42,394.62,5524.68]
["11.1.12","73936/011 ","sinapi","CONCRETO 1:4:8, CONCRETO MAGRO, C/ BRITA 1 E 2, C/BETONEIRA","m³",1,252.89,298.41000000000003,298.41000000000003]
[null,"00000031","SINAPI","ACO CA-50 1/2\" (12,70 MM)","kg",239,3.94,4.6500000000000004,1111.3499999999999]
[null,"00000032","SINAPI","ACO CA-50 1/4\" (6,35 MM)","kg",21,4.57,5.39,113.19]
[null,"00000034","SINAPI","ACO CA-50 3/8\" (9,52 MM)","kg",1654,4.0599999999999996,4.79,7922.66]
["11.1.14","C.P.U.003",null,"CAIXA DE BRITA PARA DRENAGEM MEDINDO 50CMX50CMX50CM ","un",2,17.71875,20.91,41.82]
["11.2",null,null,"FORNECIMENTO - HIDROMECÂNICOS"]
["11.2.1",null,null,"TUBOS DE AÇO CARBONO DN=1200MM C/TRATAMENTO","m",1050,null,0,0]
["11.2.2",null,null,"CONEXÕES E PEÇAS ESPECIAIS DA TUBUL TR04","VB",1,null,0,0]
["11.2.3",null,null,"PROTEÇÃO CATÓDICA EM TUBULAÇÃO DE AÇO","VB",1,null,0,0]
["11.2.4",null,null,"VÁLV. ADMISSÃO DE AR, DN=100MM, PN-10","un",2,null,0,0]
["11.2.5",null,null,"VÁLV. GAVETA ACION. DIRETO VOLANTE, PN-10, DN=100MM","un",2,null,0,0]
["11.3",null,null,"MONTAGEM - HIDROMECÂNICOS"]
["11.3.1",null,null,"MONTAGEM TUBUL. E PECAS DE AÇO CARBONO DN=1200MM C/TESTE HIDROST.","m",1050,null,0,0]
["11.3.2",null,null,"MONTAGEM DE REGISTRO DE GAVETA COM FLANGES FO.FO. DN 100","un",2,null,0,0]
["11.3.3",null,null,"MONTAGEM DE VÁLVULA DE ADMISSÃO DE AR, DN=100MM","un",2,null,0,0]
["12.0",null,null,"CANAL/RESERVATÓRIO - RS25",null,"R$",1301526.19]
["12.1",null,null,"OBRAS CIVIS",null,null,null,0]
["12.1.1","73859/001 ","SINAPI","DESMATAMENTO/LIMPEZA TERRENOS C/EQUIP MECAN(TRATOR:1000M2/H)","m²",46500,0.21,0.25,11625]
["12.1.2","C.P.U.001",null,"ATERRO COMPACTADO MECANICAMICAMENTE EM CAMADAS DE 20CM, C/CONT., MAT. JAZIDA, C/T ATE 1000 m - 95% PN","m³",42456,17.23,20.329999999999998,863130.48]
["12.1.3","C.P.U.010",null,"MOMENTO EXTRAORDINÁRIO DE TRANSP. DE MAT. DE 1A E/OU 2A","m³ x km",176900,0.96940128000000003,1.1399999999999999,201666]
["12.1.4","C.P.U.012",null,"REGULARIZAÇÃO DE TALUDES","m²",2761,0.24874000000000002,0.28999999999999998,800.69]
["12.1.5",72829,"SINAPI","ESCAVACAO, CARGA E TRANSPORTE DE MATERIAL DE 1A CATEGORIA, CAMINHO DE SERVICO REVESTIMENTO PRIMARIO, COM ESCAVADEIRA HIDRAULICA E CAMINHAO BASCULANTE 6 M3, DMT 800 ATE 1.000 M","m³",744,4.17,4.92,3660.48]
["12.1.6",73406,"SINAPI","CONCRETO FCK= 15,0 MPA ( 1: 2,5:3) , INCLUIDO PREPARO MECANICO, LANÇAMENTO E ADENSAMENTO.","m³",278,374.09,441.43,122717.54]
["12.1.7",25871,"SINAPI","MANTA TERMOPLÁSTICA, PEAD, GEOMEMBRANA TEXTURIZADA, E = 1,00 MM, NBR 15352","m²",5700,14.56,17.18,97926]
["13.0",null,null,"ESTRUTURA DE ENTRADA DO CANAL/RESERVATÓRIO RS25",null,"R$",36416.269999999997]
["13.1",null,null,"OBRAS CIVIS"]
[null,"C.P.U.006",null,"ESCAV MEC.VALA N ESCORADA,  MAT 1A, PROF. ATE 1,5M, C/T ATE 200m","m³",10,12.95,15.28,152.80000000000001]
[null,"C.P.U.005",null,"ESCAV MEC.VALA N ESCORADA,  MAT 1A, PROF. DE 1,5 A 3M, C/T ATE 200m","m³",12,14.52,17.13,205.56]
["13.1.2","73964/005","SINAPI","REATERRO DE VALA/CAVA SEM CONTROLE DE COMPACTAÇÃO , UTILIZANDO RETRO-ESCAVADEIRA E COMPACTACADOR VIBRATORIO COM MATERIAL REAPROVEITADO","m³",9,6.02,7.1,63.9]
["13.1.3","C.P.U.010",null,"MOMENTO EXTRAORDINÁRIO DE TRANSP. DE MAT. DE 1A E/OU 2A","m³ x km",68,0.96940128000000003,1.1399999999999999,77.52]
["13.1.4","74075/001","SINAPI","FORMA MADEIRA COMP RESINADA 12MM P/ESTRUTURA REAPROV 2 VEZES - CORTE/MONTAGEM/ESCORAMENTO/DESFORMA","m²",108,66.790000000000006,78.81,8511.48]
["13.1.5","74137/003","SINAPI ","CONCRETO USINADO, IMPORTADO, ESTRUTURAL FCK=20MPA INCLUS. TRANSPORTE HORIZONTAL ATÉ 20M (PROD. 2M3/H) EM CARRINHOS, ADENSAMENTO E ACABAMENTO","m³",46,334.42,394.62,18152.52]
["13.1.6","73936/011 ","sinapi","CONCRETO 1:4:8, CONCRETO MAGRO, C/ BRITA 1 E 2, C/BETONEIRA","m³",2,252.89,298.41000000000003,596.82000000000005]
[null,"00000031","SINAPI","ACO CA-50 1/2\" (12,70 MM)","kg",478,3.94,4.6500000000000004,2222.6999999999998]
[null,"00000032","SINAPI","ACO CA-50 1/4\" (6,35 MM)","kg",null,4.57,5.39,0]
[null,"00000034","SINAPI","ACO CA-50 3/8\" (9,52 MM)","kg",1343,4.0599999999999996,4.79,6432.97]
["13.2",null,null,"FORNECIMENTO - HIDROMECÂNICOS"]
["13.2.1",null,null,"VÁLV. GAVETA ACION. DIRETO VOLANTE, PN-10, DN=200MM","un",2,null,0,0]
["13.3",null,null,"MONTAGEM - HIDROMECÂNICOS"]
["13.3.1",null,null,"MONTAGEM REGISTRO GAVETA FO.FO. DN 200","un",2,null,0,0]
["14.0",null,null,"EXTRAVASOR DO CANAL/RESERVATÓRIO RS25",null,"R$",36996.28]
["14.1",null,null,"OBRAS CIVIS"]
[null,"C.P.U.006",null,"ESCAV MEC.VALA N ESCORADA,  MAT 1A, PROF. ATE 1,5M, C/T ATE 200m","m³",22,12.95,15.28,336.16]
[null,"C.P.U.005",null,"ESCAV MEC.VALA N ESCORADA,  MAT 1A, PROF. DE 1,5 A 3M, C/T ATE 200m","m³",27,14.52,17.13,462.51]
["14.1.2","73964/005","SINAPI","REATERRO DE VALA/CAVA SEM CONTROLE DE COMPACTAÇÃO , UTILIZANDO RETRO-ESCAVADEIRA E COMPACTACADOR VIBRATORIO COM MATERIAL REAPROVEITADO","m³",14,6.02,7.1,99.4]
["14.1.3","C.P.U.010",null,"MOMENTO EXTRAORDINÁRIO DE TRANSP. DE MAT. DE 1A E/OU 2A","m³ x km",194,0.96940128000000003,1.1399999999999999,221.16]
["14.1.4","74075/001","SINAPI","FORMA MADEIRA COMP RESINADA 12MM P/ESTRUTURA REAPROV 2 VEZES - CORTE/MONTAGEM/ESCORAMENTO/DESFORMA","m²",136,66.790000000000006,78.81,10718.16]
["14.1.5",73685,"sinapi","CIMBRAMENTO DE MADEIRA","m³",11,25.95,30.62,336.82]
["14.1.6","74137/003","SINAPI ","CONCRETO USINADO, IMPORTADO, ESTRUTURAL FCK=20MPA INCLUS. TRANSPORTE HORIZONTAL ATÉ 20M (PROD. 2M3/H) EM CARRINHOS, ADENSAMENTO E ACABAMENTO","m³",18,334.42,394.62,7103.16]
["14.1.7","73936/011 ","sinapi","CONCRETO 1:4:8, CONCRETO MAGRO, C/ BRITA 1 E 2, C/BETONEIRA","m³",1,252.89,298.41000000000003,298.41000000000003]
["14.1.8",6105,"sinapi","PREPARO MECANICO E LANÇAMENTO MANUAL DE CONCRETO CICLÓPICO 1:3:5, COM 30% DE PEDRA DE MÃO, CAVAS ATÉ 80CM DE LARGURA.","m³",12,249.14,293.99,3527.88]
[null,"00000031","SINAPI","ACO CA-50 1/2\" (12,70 MM)","kg",640,3.94,4.6500000000000004,2976]
[null,"00000032","SINAPI","ACO CA-50 1/4\" (6,35 MM)","kg",184,4.57,5.39,991.76]
[null,"00000034","SINAPI","ACO CA-50 3/8\" (9,52 MM)","kg",1420,4.0599999999999996,4.79,6801.8]
["14.1.10","C.P.U.014",null,"FORNECIMENTO E ASSENTAMENTO DE TUBO DE CONCRETO ARMADO CLASSE PA-2 DN 1000MM, JUNTA EM ARGAMASSA 1:3 CIMENTO:AREIA","m",10,178.3,210.39,2103.9]
["14.1.11","C.P.U.004",null,"ENROCAMENTO MANUAL C/ PEDRA JOGADA-E/C/T/D ATE 1000m","m³",6,143.94999999999999,169.86,1019.16]
["14.2",null,null,"FORNECIMENTO - HIDROMECÂNICOS"]
["14.2.1",null,null,"COMPORTA PLANA QUADRADA C/PEDESTAL 1000X1000MM","cj",1,null,0,0]
["14.3",null,null,"MONTAGEM - HIDROMECÂNICOS"]
["14.3.1",null,null,"MONT. COMP.PLANA, C/PEDESTAL E VOLANTE, 1,00 X 1,00M","un",1,null,0,0]
["15.0",null,null,"TOMADAS D'ÁGUA TA52 E TA53 DO CANAL/RESERVATÓRIO RS25",null,"R$",60668.65]
["15.1",null,null,"OBRAS CIVIS"]
[null,"C.P.U.006",null,"ESCAV MEC.VALA N ESCORADA,  MAT 1A, PROF. ATE 1,5M, C/T ATE 200m","m³",null,12.95,15.28,0]
[null,"C.P.U.005",null,"ESCAV MEC.VALA N ESCORADA,  MAT 1A, PROF. DE 1,5 A 3M, C/T ATE 200m","m³",457,14.52,17.13,7828.41]
["15.1.2","76444/002","SINAPI","REATERRO DE VALAS COMPACTACAO MECANICA, C/CONTR.DO GC >= 95% DO PN(C/COMPACTADOR SOLOS C/ PLACA VIBRATORIA MOTOR DIESEL/GASOLINA 7 A 10 HP)","m³",240,10.68,12.6,3024]
["15.1.3","73964/005","SINAPI","REATERRO DE VALA/CAVA SEM CONTROLE DE COMPACTAÇÃO , UTILIZANDO RETRO-ESCAVADEIRA E COMPACTACADOR VIBRATORIO COM MATERIAL REAPROVEITADO","m³",96,6.02,7.1,681.6]
["15.1.4","C.P.U.001",null,"ATERRO COMPACTADO MECANICAMICAMENTE EM CAMADAS DE 20CM, C/CONT., MAT. JAZIDA, C/T ATE 1000 m - 95% PN","m³",19,17.23,20.329999999999998,386.27]
["15.1.5","74137/003","SINAPI ","CONCRETO USINADO, IMPORTADO, ESTRUTURAL FCK=20MPA INCLUS. TRANSPORTE HORIZONTAL ATÉ 20M (PROD. 2M3/H) EM CARRINHOS, ADENSAMENTO E ACABAMENTO","m³",34,334.42,394.62,13417.08]
["15.1.6","73936/011 ","sinapi","CONCRETO 1:4:8, CONCRETO MAGRO, C/ BRITA 1 E 2, C/BETONEIRA","m³",2,252.89,298.41000000000003,596.82000000000005]
[null,"00000031","SINAPI","ACO CA-50 1/2\" (12,70 MM)","kg",240,3.94,4.6500000000000004,1116]
[null,"00000032","SINAPI","ACO CA-50 1/4\" (6,35 MM)","kg",33,4.57,5.39,177.87]
[null,"00000034","SINAPI","ACO CA-50 3/8\" (9,52 MM)","kg",2937,4.0599999999999996,4.79,14068.23]
["15.1.8","74075/001","SINAPI","FORMA MADEIRA COMP RESINADA 12MM P/ESTRUTURA REAPROV 2 VEZES - CORTE/MONTAGEM/ESCORAMENTO/DESFORMA","m²",231,66.790000000000006,78.81,18205.11]
["15.1.9",73615,"SINAPI","COLCHAO DE AREIA, INCLUSIVE MAO-DE-OBRA DE ESPALHAMENTO, TRANSPORTE COM CARRO DE MAO E FORNECIMENTO COMERCIAL","m³",2,92.39,109.02,218.04]
["15.1.10",73685,"sinapi","CIMBRAMENTO DE MADEIRA","m³",31,25.95,30.62,949.22]
["15.2",null,null,"FORNECIMENTO - HIDROMECÂNICOS"]
["15.2.1",null,null,"COMPORTA PLANA CIRCULAR C/PEDESTAL, DN=700MM - MOTORIZADA","cj",1,null,0,0]
["15.2.2",null,null,"COMPORTA PLANA CIRCULAR C/PEDESTAL, DN=800MM - MOTORIZADA","cj",1,null,0,0]
["15.2.3",null,null,"FORNECIMENTO DE TUBOS DE FOFO PONTA/FLANGE P/TOMADAS D'ÁGUA","VB",1,null,0,0]
["15.2.4",null,null,"CONEXÕES DE FO.FO. PARA AS TOMADAS - DN=700MM","VB",1,null,0,0]
["15.2.5",null,null,"CONEXÕES DE FO.FO. PARA AS TOMADAS - DN=800MM","VB",1,null,0,0]
["15.2.6",null,null,"JUNTA DRESSER, ESTILO 38, DN=700MM","un",1,null,0,0]
["15.2.7",null,null,"JUNTA DRESSER, ESTILO 38, DN=800MM","un",1,null,0,0]
["15.3",null,null,"MONTAGEM - HIDROMECÂNICOS"]
["15.3.1",null,null,"MONTAGEM DE COMPORTA PLANA C/PEDESTAL DN=700MM - MOTORIZADA","un",1,null,0,0]
["15.3.2",null,null,"MONTAGEM DE COMPORTA PLANA C/PEDESTAL DN=800MM - MOTORIZADA","un",1,null,0,0]
["15.3.3",null,null,"MONTAGEM TUBO FO.FO., P&F, PN-10, DIAM. 700MM (TOMADAS)","m",11,null,0,0]
["15.3.4",null,null,"MONTAGEM TUBO FO.FO., P&F, PN-10, DIAM. 800MM (TOMADAS)","m",11,null,0,0]
["16.0",null,null,"CANAL SECUNDÁRIO - CS04",null,"R$",981029.848]
["16.1",null,null,"OBRAS CIVIS"]
["16.1.1","73859/001 ","SINAPI","DESMATAMENTO/LIMPEZA TERRENOS C/EQUIP MECAN(TRATOR:1000M2/H)","m²",86000,0.21,0.25,21500]
["16.1.2","C.P.U.010",null,"MOMENTO EXTRAORDINÁRIO DE TRANSP. DE MAT. DE 1A E/OU 2A","m³ x km",53825,0.96940128000000003,1.1399999999999999,61360.5]
["16.1.3","C.P.U.011",null,"MOMENTO EXTRAORDINÁRIO DE TRANSPORTE DE MAT. DE 3A","m³ x km",23600,1.182566,1.4,33040]
["16.1.4","2 S 04 001 00 ","sicro","ESCAVAÇÃO MECÂNICA DE VALA EM MAT.1A CAT.","m³",6130,4.6500000000000004,5.49,33653.699999999997]
[null,"C.P.U.012",null,"REGULARIZAÇÃO DE TALUDES","m²",7671.2,0.24874000000000002,0.28999999999999998,2224.6479999999997]
["16.1.5","2 S 01 100 22","SICRO","ESC. MEC. CARGA TRANSP. MAT 1ª CAT DMT 50 A 200M C/E","m³",10082,4.1500000000000004,4.9000000000000004,49401.8]
["16.1.6","2 S 01 101 26","SICRO","ESC. MEC. CARGA TRANSP. MAT 2A CAT DMT 800 A 1000M C/E","m³",300,7.5,8.85,2655]
["16.1.7","2 S 01 102 06","SICRO","ESC. MEC. CARGA TRANSP. MAT 3A CAT DMT 800 A 1000M","m³",5664,22.6,26.67,151058.88]
["16.1.8","C.P.U.001",null,"ATERRO COMPACTADO MECANICAMICAMENTE EM CAMADAS DE 20CM, C/CONT., MAT. JAZIDA, C/T ATE 1000 m - 95% PN","m³",10441,17.23,20.329999999999998,212265.53]
["16.1.9",72829,"SINAPI","ESCAVACAO, CARGA E TRANSPORTE DE MATERIAL DE 1A CATEGORIA, CAMINHO DE SERVICO REVESTIMENTO PRIMARIO, COM ESCAVADEIRA HIDRAULICA E CAMINHAO BASCULANTE 6 M3, DMT 800 ATE 1.000 M","m³",2064,4.17,4.92,10154.879999999999]
["16.1.10",73406,"SINAPI","CONCRETO FCK= 15,0 MPA ( 1: 2,5:3) , INCLUIDO PREPARO MECANICO, LANÇAMENTO E ADENSAMENTO.","m³",533,374.09,441.43,235282.19]
["16.1.11",25871,"SINAPI","MANTA TERMOPLÁSTICA, PEAD, GEOMEMBRANA TEXTURIZADA, E = 1,00 MM, NBR 15352","m²",9804,14.56,17.18,168432.72]
["17.0",null,null,"TOMADA D'ÁGUA TA50 - CANAL SECUNDÁRIO CS04",null,"R$",85043.695999999982]
["17.1",null,null,"OBRAS CIVIS"]
[null,"C.P.U.006",null,"ESCAV MEC.VALA N ESCORADA,  MAT 1A, PROF. ATE 1,5M, C/T ATE 200m","m³",200,12.95,15.28,3056]
[null,"C.P.U.005",null,"ESCAV MEC.VALA N ESCORADA,  MAT 1A, PROF. DE 1,5 A 3M, C/T ATE 200m","m³",10,14.52,17.13,171.3]
["17.1.3","C.P.U.001",null,"ATERRO COMPACTADO MECANICAMICAMENTE EM CAMADAS DE 20CM, C/CONT., MAT. JAZIDA, C/T ATE 1000 m - 95% PN","m³",480,17.23,20.329999999999998,9758.4]
["17.1.4","76444/002","SINAPI","REATERRO DE VALAS COMPACTACAO MECANICA, C/CONTR.DO GC >= 95% DO PN(C/COMPACTADOR SOLOS C/ PLACA VIBRATORIA MOTOR DIESEL/GASOLINA 7 A 10 HP)","m³",100,10.68,12.6,1260]
["17.1.5","C.P.U.010",null,"MOMENTO EXTRAORDINÁRIO DE TRANSP. DE MAT. DE 1A E/OU 2A","m³ x km",2900,0.96940128000000003,1.1399999999999999,3306]
["17.1.6","73998/006","sinapi","ALVENARIA DE BLOCOS DE CONCRETO ESTRUTURAL 19X19X39CM, ESPESSURA 19CM, ASSENTADOS COM ARGAMASSA TRACO 1:0,25:4 (CIMENTO, CAL E AREIA)","m²",70,59.26,69.930000000000007,4895.1000000000004]
["17.1.7","74137/003","SINAPI ","CONCRETO USINADO, IMPORTADO, ESTRUTURAL FCK=20MPA INCLUS. TRANSPORTE HORIZONTAL ATÉ 20M (PROD. 2M3/H) EM CARRINHOS, ADENSAMENTO E ACABAMENTO","m³",38,334.42,394.62,14995.56]
["17.1.8","73936/011 ","sinapi","CONCRETO 1:4:8, CONCRETO MAGRO, C/ BRITA 1 E 2, C/BETONEIRA","m³",4,252.89,298.41000000000003,1193.6400000000001]
[null,"00000031","SINAPI","ACO CA-50 1/2\" (12,70 MM)","kg",142,3.94,4.6500000000000004,660.3]
[null,"00000032","SINAPI","ACO CA-50 1/4\" (6,35 MM)","kg",37,4.57,5.39,199.43]
[null,"00000034","SINAPI","ACO CA-50 3/8\" (9,52 MM)","kg",3341,4.0599999999999996,4.79,16003.39]
["17.1.10","74075/001","SINAPI","FORMA MADEIRA COMP RESINADA 12MM P/ESTRUTURA REAPROV 2 VEZES - CORTE/MONTAGEM/ESCORAMENTO/DESFORMA","m²",205,66.790000000000006,78.81,16156.05]
["17.1.11",73685,"sinapi","CIMBRAMENTO DE MADEIRA","m³",50,25.95,30.62,1531]
["17.1.12","74199/001","sinapi","CHAPISCO RUSTICO TRACO 1:3 (CIMENTO E AREIA), ESPESSURA 2CM, PREPARO MANUAL","m²",65,23.62,27.87,1811.55]
["17.1.13","73927/006","SINAPI","EMBOCO PAULISTA (MASSA UNICA) TRACO 1:1:6 (CIMENTO, CAL E AREIA), ESPESSURA 2,0CM, PREPARO MANUAL","m²",65,16.489999999999998,19.46,1264.9000000000001]
["17.1.14","73954/002 ","SINAPI","PINTURA LATEX ACRILICA AMBIENTES INTERNOS/EXTERNOS, DUAS DEMAOS","m²",65,11.07,13.06,848.9]
["17.1.15",79466,"SINAPI","PINTURA VERNIZ EM MADEIRA 2 DEMAOS","m²",55,7.34,8.66,476.3]
["17.1.16","73922/003","SINAPI","PISO CIMENTADO LISO DESEMPENADO, TRACO 1:3 (CIMENTO E AREIA), ESPESSURA 2,0CM, PREPARO MANUAL","m²",38,23.94,28.25,1073.5,null,"quant.","largura","altura","área","a.total"]
[null,"C.P.U.019",null,"JANELA METÁLICA, TIPO BASCULANTE 100x120cm COM TELA DE PROTEÇÃO CONTRA ROEDORES","m²",2.4,240.91749999999999,284.27999999999997,682.27199999999993,null,2,1,1.2,1.2,2.4]
[null,"C.P.U.019",null,"JANELA METÁLICA, TIPO BASCULANTE 100x80cm COM TELA DE PROTEÇÃO CONTRA ROEDORES","m²",0.8,240.91749999999999,284.27999999999997,227.42399999999998,null,1,1,0.8,0.8,0.8,3.2]
[null,"00004938 ","SINAPI","PORTA METÁLICA 80x210cm","unid",3,319.2,376.66,1129.98,null,3,0.8,2.1,1.68,5.04]
["17.1.19",73634,"sinapi","COBERTURA COM TELHA DE FIBROCIMENTO ESTRUTURAL LARGURA ÚTIL 49CM OU 44CM, INCLUSO ACESSÓRIOS DE FIXAÇÃO E VEDAÇÃO","m²",27,86.95,102.6,2770.2]
["17.1.20","74142/004","sinapi","CERCA COM MOURÕES DE CONCRETO, SEÇÃO \"T\" PONTA INCLINADA, 7,5X7,5CM, ESPAÇAMENTO DE 3M, CRAVADOS 0,5M, COM 11 FIOS DE ARAME FARPADO Nº14 CLASSE 250 - FORNEC E COLOC.","m",50,26.65,31.45,1572.5]
["17.2",null,null,"FORNECIMENTO - HIDROMECÂNICOS"]
["17.2.1",null,null,"COMPORTA ENSECADEIRA EM 1 PAINEL DE AÇO DE 1420x1380mm","cj",2,null,0,0]
["17.2.2",null,null,"COMPORTA SETOR 1,20X1,50 - RAIO=1,50M COM. HIDRAUL. - COMPLETA","cj",1,null,0,0]
["17.3",null,null,"MONTAGEM - HIDROMECÂNICOS"]
["17.3.1",null,null,"MONTAGEM COMPORTA TIPO SEGMENTO","cj",1,null,0,0]
["18.0",null,null,"EXTRAVASOR - CANAL SECUNDÁRIO - CS04 (EX-17)",null,"R$",31099.33]
["18.1",null,null,"OBRAS CIVIS"]
[null,"C.P.U.006",null,"ESCAV MEC.VALA N ESCORADA,  MAT 1A, PROF. ATE 1,5M, C/T ATE 200m","m³",38,12.95,15.28,580.64]
[null,"C.P.U.005",null,"ESCAV MEC.VALA N ESCORADA,  MAT 1A, PROF. DE 1,5 A 3M, C/T ATE 200m","m³",40,14.52,17.13,685.2]
["18.1.2","73964/005","SINAPI","REATERRO DE VALA/CAVA SEM CONTROLE DE COMPACTAÇÃO , UTILIZANDO RETRO-ESCAVADEIRA E COMPACTACADOR VIBRATORIO COM MATERIAL REAPROVEITADO","m³",14,6.02,7.1,99.4]
["18.1.3","C.P.U.010",null,"MOMENTO EXTRAORDINÁRIO DE TRANSP. DE MAT. DE 1A E/OU 2A","m³ x km",225,0.96940128000000003,1.1399999999999999,256.5]
["18.1.4","74075/001","SINAPI","FORMA MADEIRA COMP RESINADA 12MM P/ESTRUTURA REAPROV 2 VEZES - CORTE/MONTAGEM/ESCORAMENTO/DESFORMA","m²",111,66.790000000000006,78.81,8747.91]
["18.1.5","74137/003","SINAPI ","CONCRETO USINADO, IMPORTADO, ESTRUTURAL FCK=20MPA INCLUS. TRANSPORTE HORIZONTAL ATÉ 20M (PROD. 2M3/H) EM CARRINHOS, ADENSAMENTO E ACABAMENTO","m³",14,334.42,394.62,5524.68]
["18.1.6","73936/011 ","sinapi","CONCRETO 1:4:8, CONCRETO MAGRO, C/ BRITA 1 E 2, C/BETONEIRA","m³",1,252.89,298.41000000000003,298.41000000000003]
["18.1.7",6105,"sinapi","PREPARO MECANICO E LANÇAMENTO MANUAL DE CONCRETO CICLÓPICO 1:3:5, COM 30% DE PEDRA DE MÃO, CAVAS ATÉ 80CM DE LARGURA.","m³",8,249.14,293.99,2351.92]
["18.1.8",73685,"sinapi","CIMBRAMENTO DE MADEIRA","m³",9,25.95,30.62,275.58]
[null,"00000031","SINAPI","ACO CA-50 1/2\" (12,70 MM)","kg",495,3.94,4.6500000000000004,2301.75]
[null,"00000032","SINAPI","ACO CA-50 1/4\" (6,35 MM)","kg",186,4.57,5.39,1002.54]
[null,"00000034","SINAPI","ACO CA-50 3/8\" (9,52 MM)","kg",1099,4.0599999999999996,4.79,5264.21]
["18.1.10","C.P.U.015",null,"FORNECIMENTO E ASSENTAMENTO DE TUBO DE CONCRETO ARMADO CLASSE PA-2 DN 1200MM, JUNTA EM ARGAMASSA 1:3 CIMENTO:AREIA","m",5,225.86,266.51,1332.55]
["18.1.11","C.P.U.004",null,"ENROCAMENTO MANUAL C/ PEDRA JOGADA-E/C/T/D ATE 1000m","m³",14,143.94999999999999,169.86,2378.04]
["18.2",null,null,"FORNECIMENTO - HIDROMECÂNICOS"]
["18.2.1",null,null,"COMPORTA PLANA QUADRADA C/PEDESTAL 1000X1000MM","cj",1,null,0,0]
["18.3",null,null,"MONTAGEM - HIDROMECÂNICOS"]
["18.3.1",null,null,"MONT. COMP.PLANA, C/PEDESTAL E VOLANTE, 1,00 X 1,00M","un",1,null,0,0]
["19.0",null,null,"TOMADAS D'ÁGUA- CANAL SECUNDÁRIO - CS04 (TS45,TS46,TS47,TS48eTS-48a)",null,"R$",103204.51]
["19.1",null,null,"OBRAS CIVIS"]
["19.1.1","C.P.U.010",null,"MOMENTO EXTRAORDINÁRIO DE TRANSP. DE MAT. DE 1A E/OU 2A","m³ x km",3650,0.96940128000000003,1.1399999999999999,4161]
[null,"C.P.U.006",null,"ESCAV MEC.VALA N ESCORADA,  MAT 1A, PROF. ATE 1,5M, C/T ATE 200m","m³",364,12.95,15.28,5561.92]
[null,"C.P.U.005",null,"ESCAV MEC.VALA N ESCORADA,  MAT 1A, PROF. DE 1,5 A 3M, C/T ATE 200m","m³",350,14.52,17.13,5995.5]
["19.1.3","76444/002","SINAPI","REATERRO DE VALAS COMPACTACAO MECANICA, C/CONTR.DO GC >= 95% DO PN(C/COMPACTADOR SOLOS C/ PLACA VIBRATORIA MOTOR DIESEL/GASOLINA 7 A 10 HP)","m³",66,10.68,12.6,831.6]
["19.1.4","73964/005","SINAPI","REATERRO DE VALA/CAVA SEM CONTROLE DE COMPACTAÇÃO , UTILIZANDO RETRO-ESCAVADEIRA E COMPACTACADOR VIBRATORIO COM MATERIAL REAPROVEITADO","m³",270,6.02,7.1,1917]
["19.1.5","C.P.U.001",null,"ATERRO COMPACTADO MECANICAMICAMENTE EM CAMADAS DE 20CM, C/CONT., MAT. JAZIDA, C/T ATE 1000 m - 95% PN","m³",540,17.23,20.329999999999998,10978.2]
["19.1.6","74137/003","SINAPI ","CONCRETO USINADO, IMPORTADO, ESTRUTURAL FCK=20MPA INCLUS. TRANSPORTE HORIZONTAL ATÉ 20M (PROD. 2M3/H) EM CARRINHOS, ADENSAMENTO E ACABAMENTO","m³",51,334.42,394.62,20125.62]
["19.1.7","73936/011 ","sinapi","CONCRETO 1:4:8, CONCRETO MAGRO, C/ BRITA 1 E 2, C/BETONEIRA","m³",5,252.89,298.41000000000003,1492.05]
[null,"00000031","SINAPI","ACO CA-50 1/2\" (12,70 MM)","kg",834,3.94,4.6500000000000004,3878.1]
[null,"00000032","SINAPI","ACO CA-50 1/4\" (6,35 MM)","kg",149,4.57,5.39,803.11,null,null,3]
[null,"00000034","SINAPI","ACO CA-50 3/8\" (9,52 MM)","kg",3567,4.0599999999999996,4.79,17085.93]
["19.1.9","74075/001","SINAPI","FORMA MADEIRA COMP RESINADA 12MM P/ESTRUTURA REAPROV 2 VEZES - CORTE/MONTAGEM/ESCORAMENTO/DESFORMA","m²",377,66.790000000000006,78.81,29711.37]
["19.1.10",73685,"sinapi","CIMBRAMENTO DE MADEIRA","m³",4,25.95,30.62,122.48]
["19.1.11","C.P.U.003",null,"CAIXA DE BRITA PARA DRENAGEM MEDINDO 50CMX50CMX50CM ","un",5,17.71875,20.91,104.55]
["19.1.12",73615,"SINAPI","COLCHAO DE AREIA, INCLUSIVE MAO-DE-OBRA DE ESPALHAMENTO, TRANSPORTE COM CARRO DE MAO E FORNECIMENTO COMERCIAL","m³",4,92.39,109.02,436.08]
["19.2",null,null,"FORNECIMENTO - HIDROMECÂNICOS"]
["19.2.1",null,null,"COMPORTA PLANA CIRCULAR C/PEDESTAL, DN=400MM - MOTORIZADA","cj",1,null,0,0]
["19.2.2",null,null,"COMPORTA PLANA CIRCULAR C/PEDESTAL, DN=300MM - MOTORIZADA","cj",4,null,0,0]
["19.2.3",null,null,"FORNECIMENTO DE TUBOS DE FOFO PONTA/FLANGE P/TOMADAS D'ÁGUA","VB",1,null,0,0]
["19.2.4",null,null,"CONEXÕES DE FO.FO. PARA AS TOMADAS - DN=400MM","VB",1,null,0,0]
["19.2.5",null,null,"CONEXÕES DE FO.FO. PARA AS TOMADAS - DN=300MM","VB",4,null,0,0]
["19.2.6",null,null,"JUNTA GIBAULT DN=400MM","un",1,null,0,0]
["19.2.7",null,null,"JUNTA GIBAULT DN=300MM","un",4,null,0,0]
["19.2",null,null,"MONTAGEM - HIDROMECÂNICOS"]
["19.2.1",null,null,"MONTAGEM DE COMP. PLANA C/PEDESTAL DN=400MM - MOTORIZADA","un",1,null,0,0]
["19.2.2",null,null,"MONTAGEM DE COMP. PLANA C/PEDESTAL DN=300MM - MOTORIZADA","un",4,null,0,0]
["19.2.3",null,null,"MONTAGEM TUBO FO.FO., P&F, PN-10, DIAM. 400MM (TOMADAS)","m",9,null,0,0]
["19.2.4",null,null,"MONTAGEM TUBO FO.FO., P&F, PN-10, DIAM. 300MM (TOMADAS)","m",48,null,0,0]
["26.0",null,null,"BUEIROS - CANAL PRINCIPAL - TRECHO \"F\" (BU-13 A BU-15)",null,"R$",140748.13]
["26.1",null,null,"OBRAS CIVIS"]
["26.1.1","C.P.U.010",null,"MOMENTO EXTRAORDINÁRIO DE TRANSP. DE MAT. DE 1A E/OU 2A","m³ x km",425,0.96940128000000003,1.1399999999999999,484.5]
["26.1.2","C.P.U.011",null,"MOMENTO EXTRAORDINÁRIO DE TRANSPORTE DE MAT. DE 3A","m³ x km",750,1.182566,1.4,1050]
[null,"C.P.U.006",null,"ESCAV MEC.VALA N ESCORADA,  MAT 1A, PROF. ATE 1,5M, C/T ATE 200m","m³",1120,12.95,15.28,17113.599999999999]
[null,"C.P.U.005",null,"ESCAV MEC.VALA N ESCORADA,  MAT 1A, PROF. DE 1,5 A 3M, C/T ATE 200m","m³",116,14.52,17.13,1987.08]
["26.1.5","C.P.U.009",null,"ESCAVAÇÃO  MEC. VALA N ESCORADA, MAT. DE 3A, C/T ATE 1000m","m³",180,60.64,71.56,12880.8]
["26.1.6","73964/005","SINAPI","REATERRO DE VALA/CAVA SEM CONTROLE DE COMPACTAÇÃO , UTILIZANDO RETRO-ESCAVADEIRA E COMPACTACADOR VIBRATORIO COM MATERIAL REAPROVEITADO","m³",102,6.02,7.1,724.2]
["26.1.7","C.P.U.004",null,"ENROCAMENTO MANUAL C/ PEDRA JOGADA-E/C/T/D ATE 1000m","m³",36,143.94999999999999,169.86,6114.96]
["26.1.8","73936/011 ","sinapi","CONCRETO 1:4:8, CONCRETO MAGRO, C/ BRITA 1 E 2, C/BETONEIRA","m³",200,252.89,298.41000000000003,59682]
["26.1.9",6105,"sinapi","PREPARO MECANICO E LANÇAMENTO MANUAL DE CONCRETO CICLÓPICO 1:3:5, COM 30% DE PEDRA DE MÃO, CAVAS ATÉ 80CM DE LARGURA.","m³",30,249.14,293.99,8819.7000000000007]
["26.1.10","74075/001","SINAPI","FORMA MADEIRA COMP RESINADA 12MM P/ESTRUTURA REAPROV 2 VEZES - CORTE/MONTAGEM/ESCORAMENTO/DESFORMA","m²",111,66.790000000000006,78.81,8747.91]
["26.1.11","C.P.U.014",null,"FORNECIMENTO E ASSENTAMENTO DE TUBO DE CONCRETO ARMADO CLASSE PA-2 DN 1000MM, JUNTA EM ARGAMASSA 1:3 CIMENTO:AREIA","m",72,178.3,210.39,15148.08]
["26.1.12","C.P.U.015",null,"FORNECIMENTO E ASSENTAMENTO DE TUBO DE CONCRETO ARMADO CLASSE PA-2 DN 1200MM, JUNTA EM ARGAMASSA 1:3 CIMENTO:AREIA","m",30,225.86,266.51,7995.3]
["27.0",null,null,"BUEIROS - CANAL SECUNDÁRIO CS04  (BU-16 A BU-17)",null,"R$",85763.4]
["27.1",null,null,"OBRAS CIVIS"]
["27.1.1","C.P.U.010",null,"MOMENTO EXTRAORDINÁRIO DE TRANSP. DE MAT. DE 1A E/OU 2A","m³ x km",300,0.96940128000000003,1.1399999999999999,342]
["27.1.2","C.P.U.011",null,"MOMENTO EXTRAORDINÁRIO DE TRANSPORTE DE MAT. DE 3A","m³ x km",600,1.182566,1.4,840]
[null,"C.P.U.006",null,"ESCAV MEC.VALA N ESCORADA,  MAT 1A, PROF. ATE 1,5M, C/T ATE 200m","m³",294,12.95,15.28,4492.32]
[null,"C.P.U.005",null,"ESCAV MEC.VALA N ESCORADA,  MAT 1A, PROF. DE 1,5 A 3M, C/T ATE 200m","m³",60,14.52,17.13,1027.8]
["27.1.5","C.P.U.009",null,"ESCAVAÇÃO  MEC. VALA N ESCORADA, MAT. DE 3A, C/T ATE 1000m","m³",144,60.64,71.56,10304.64]
["27.1.6","73964/005","SINAPI","REATERRO DE VALA/CAVA SEM CONTROLE DE COMPACTAÇÃO , UTILIZANDO RETRO-ESCAVADEIRA E COMPACTACADOR VIBRATORIO COM MATERIAL REAPROVEITADO","m³",72,6.02,7.1,511.2]
["27.1.7","C.P.U.004",null,"ENROCAMENTO MANUAL C/ PEDRA JOGADA-E/C/T/D ATE 1000m","m³",24,143.94999999999999,169.86,4076.64]
["27.1.8","73936/011 ","sinapi","CONCRETO 1:4:8, CONCRETO MAGRO, C/ BRITA 1 E 2, C/BETONEIRA","m³",85,252.89,298.41000000000003,25364.85]
["27.1.9",6105,"sinapi","PREPARO MECANICO E LANÇAMENTO MANUAL DE CONCRETO CICLÓPICO 1:3:5, COM 30% DE PEDRA DE MÃO, CAVAS ATÉ 80CM DE LARGURA.","m³",25,249.14,293.99,7349.75]
["27.1.10","74075/001","SINAPI","FORMA MADEIRA COMP RESINADA 12MM P/ESTRUTURA REAPROV 2 VEZES - CORTE/MONTAGEM/ESCORAMENTO/DESFORMA","m²",88,66.790000000000006,78.81,6935.28]
["27.1.11","C.P.U.015",null,"FORNECIMENTO E ASSENTAMENTO DE TUBO DE CONCRETO ARMADO CLASSE PA-2 DN 1200MM, JUNTA EM ARGAMASSA 1:3 CIMENTO:AREIA","m",92,225.86,266.51,24518.92]
["28.0",null,null,"VALETAS E SARJETAS",null,"R$",119244.77]
["28.1",null,null,"OBRAS CIVIS"]
["28.1.1","C.P.U.010",null,"MOMENTO EXTRAORDINÁRIO DE TRANSP. DE MAT. DE 1A E/OU 2A","m³ x km",4494,0.96940128000000003,1.1399999999999999,5123.16]
[null,"C.P.U.006",null,"ESCAV MEC.VALA N ESCORADA,  MAT 1A, PROF. ATE 1,5M, C/T ATE 200m","m³",2696,12.95,15.28,41194.879999999997]
["28.1.3","C.P.U.004",null,"ENROCAMENTO MANUAL C/ PEDRA JOGADA-E/C/T/D ATE 1000m","m³",20,143.94999999999999,169.86,3397.2]
["28.1.4","73936/011 ","sinapi","CONCRETO 1:4:8, CONCRETO MAGRO, C/ BRITA 1 E 2, C/BETONEIRA","m³",233,252.89,298.41000000000003,69529.53]
["29.0",null,null,"SISTEMA VIÁRIO",null,"R$",70896]
["29.1",null,null,"OBRAS CIVIS"]
["29.1.1","2 S 02 110 00","SICRO","REGULARIZAÇÃO DO SUBLEITO","m²",24000,1.67,1.97,47280]
["29.1.2",72829,"SINAPI","ESCAVACAO, CARGA E TRANSPORTE DE MATERIAL DE 1A CATEGORIA, CAMINHO DE SERVICO REVESTIMENTO PRIMARIO, COM ESCAVADEIRA HIDRAULICA E CAMINHAO BASCULANTE 6 M3, DMT 800 ATE 1.000 M","m³",4800,4.17,4.92,23616]
[null,null,null,"TOTAL",null,null,"R$",12590810.178000011]